﻿fonds_funds;nom_du_beneficiaire_beneficiary_name;nom_de_l_operation_operation_name;resume_de_l_operation_operation_summary;date_de_debut_de_l_operation_operation_start_date;date_de_fin_de_l_operation_operation_end_date;date_de_crpe_regional_commission;total_des_depenses_eligibles_total_eligible_expenditure;taux_de_cofinancement_ue_union_co_financing_rate;lieu_location;pays_country;categorie_d_intervention_dont_releve_l_operation_name_of_category_of_intervention_for_the_operation;date_de_derniere_mise_a_jour_date_of_last_update
FEDER;UNIVERSITE DE BRETAGNE OCCIDENTALE;Amélioration du parc informatique Disrupt'campus UBO-Bellevue;Le projet proposé vient renforcer les services de formation et d'accompagnement à la transition numérique et compléter l'aménagement prévu par l'achat d'ordinateurs portables et de vidéos projecteurs et matériels sono.;2021-01-03;2021-12-31;2021-01-07;40000.0;50.0;BREST;France;080-Services et applications en matière d'inclusion en ligne, d'accessibilité en ligne, d'apprentissage et d'éducation en ligne, culture numérique;2022-01-20
FEDER;CC PRESQU'ILE DE CROZON-AULNE MARITIME;Animation et aménagement d'un espace de co-travail en Presqu'île de Crozon;Il s’agît de l’aménagement et l’animation d’un espace de travail partagé sur le territoire de la Communauté de communes de la Presqu’île de Crozon afin de répondre à des attentes des habitants, des créateurs d’entreprises et des touristes. L'objectif est d’améliorer et de proposer une solution de télétravail et de développer le lien et l’entraide professionnels.;2016-01-07;2018-07-31;2018-08-11;44973.0;16.9;CC DE LA PRESQUILE DE CROZON;France;080-Services et applications en matière d'inclusion en ligne, d'accessibilité en ligne, d'apprentissage et d'éducation en ligne, culture numérique;2022-01-20
FEDER;BREST METROPOLE;Base de données Services urbains;Le projet consiste en la création d'une base de données géo-référencées sur l'espace public de Brest Métropole par la collecte massive de données de précision, leur traitement et leur organisation, afin de développer les usages et services urbains. Il s’agit de permettre le développement d'applications visant à répondre à des enjeux de transformation et d'aménagement du territoire, de gestion et d'exploitation de l'espace public, de relation à l'administré et d'usage pour le citoyen.;2017-01-07;2020-12-31;2019-12-09;661073.0;50.0;Métropôle de Brest;France;"048-TIC: Autres types d'infrastructures TIC/ressources informatiques à grande échelle/ équipements (y compris les infrastructures en ligne, les centres de données et les capteurs; également lorsqu";2022-01-20
FEDER;CA REDON AGGLOMERATION;Cartographie collaborative en Pays de Redon;Le projet vise à approfondir l'usage de la cartographie collaborative afin d'apporter de nouveaux services à la population et d'améliorer le lien entre collectivités et société civile.;2016-01-06;2018-05-31;2017-09-14;50826.0;78.7;Redon Agglomération;France;080-Services et applications en matière d'inclusion en ligne, d'accessibilité en ligne, d'apprentissage et d'éducation en ligne, culture numérique;2022-01-20
FEDER;SAS CAVOK&CO;Création d'un musée immersif autour de la montgolfière;La déclinaison d'expériences innovantes autour de la montgolfière donnera lieu à la création d'un musée proposant des solutions immersives partagées orientées autour de la notion de voyage de qualité et de proximité, d'un laboratoire d'expérimentation R&D et d' un espace visionnaire pour les professionnels.;2019-02-15;2020-01-31;2021-07-10;52650.0;78.59;SAINT-BRIEUC;France;"048-TIC: Autres types d'infrastructures TIC/ressources informatiques à grande échelle/ équipements (y compris les infrastructures en ligne, les centres de données et les capteurs; également lorsqu";2022-01-20
FEDER;UNIVERSITE DE BRETAGNE SUD;Dat'Access;Le projet numérique partenarial Dat'access vise à collecter, traiter et valoriser les données relatives à la mobilité et à l'accessibilité des lieux, équipements et évènements sur le Pays de Vannes.;2016-01-01;2016-12-31;2017-06-07;81291.0;36.9;Pays de Vannes;France;080-Services et applications en matière d'inclusion en ligne, d'accessibilité en ligne, d'apprentissage et d'éducation en ligne, culture numérique;2022-01-20
FEDER;LAIGNELET;Equipement numérique pour l'école primaire;"Le projet consiste en l’acquisition d’équipements numériques pour les « classes mobiles"" de l'école primaire des trois Chênes de Laignelet.";2017-01-09;2018-06-30;2019-11-04;29051.0;35.31;LAIGNELET;France;"048-TIC: Autres types d'infrastructures TIC/ressources informatiques à grande échelle/ équipements (y compris les infrastructures en ligne, les centres de données et les capteurs; également lorsqu";2022-01-20
FEDER;COMMUNE DE LOUARGAT;Équipements numériques pour l'école des deux Ménés;"Le projet consiste à équiper 6 classes de l’école publique des deux Ménés sur la commune de Louargat de ""kits vidéoprojecteurs interactifs"" : ordinateurs, tableaux interactifs, tablettes numériques et de vidéoprojecteurs. L'équipe pédagogique a créé un programme en lien avec ces nouveaux équipements.";2018-05-11;2020-03-31;2021-04-02;17504.0;70.0;LOUARGAT;France;"048-TIC: Autres types d'infrastructures TIC/ressources informatiques à grande échelle/ équipements (y compris les infrastructures en ligne, les centres de données et les capteurs; également lorsqu";2022-01-20
FEDER;GOUPIL EMPLOI REEMPLOI-ETHIQUE;Formation au numérique des publics éloignés;Le projet a pour objectif le développement des usages numériques sur le territoire du Pays de Morlaix, en s'adressant aux personnes en précarité économique et sociale, souvent en recherche de montée en compétences numériques.;2020-01-02;2023-03-30;2020-10-12;75645.0;60.68;Pays de Morlaix;France;080-Services et applications en matière d'inclusion en ligne, d'accessibilité en ligne, d'apprentissage et d'éducation en ligne, culture numérique;2022-01-20
FEDER;CENTRE COMMUNAL D'ACTION SOCIALE;Inclusion numérique dans les espaces sociaux communs rennais;Mise en place d'un espace numérique dans chaque Espace Social Communs (ESC) rennais, pour l'accompagnement des usagers dans leurs démarches liées à l'e-administration.;2017-03-07;2021-06-30;2021-08-04;503377.0;58.16;RENNES;France;080-Services et applications en matière d'inclusion en ligne, d'accessibilité en ligne, d'apprentissage et d'éducation en ligne, culture numérique;2022-01-20
FEDER;LOUDEAC COMMUNAUTE  BRETAGNE CENTRE;La lecture au plus proche du citoyen;"Internet a progressivement bouleversé les usages en termes d'accès à l'information.
L'accès à distance du catalogue informatisé des bibliothèques rurales de la CIDERAL s'inscrit dans un prolongement logique des services proposés au public et a un impact direct sur la réduction de l'empreinte écologique, prônée sur le Pays du Centre Bretagne. Il s’agit d’une mise en ligne des catalogues des bibliothèques rurales via une solution web dite ""libre"".";2015-04-24;2016-12-31;2019-12-09;16650.0;49.46;Loudéac Communauté – Bretagne Centre;France;"048-TIC: Autres types d'infrastructures TIC/ressources informatiques à grande échelle/ équipements (y compris les infrastructures en ligne, les centres de données et les capteurs; également lorsqu";2022-01-20
FEDER;REGION BRETAGNE FONDS EUROPEENS;Legends of Europe;Legends of Europe est un jeu de piste gratuit en ligne (serious game) à destination du grand public et des élèves de lycées et CFA, dans lequel le joueur incarne un étudiant qui, par mégarde, libère d'un ancien grimoire des créatures issues des légendes européennes. Pour retrouver ces créatures le joueur doit répondre à des quiz portant sur des thématiques européennes. L'objectif de ce jeu est de faire naître chez les joueurs un sentiment d'appartenance à l'Europe, par une meilleure connaissance du continent.;2018-01-02;2020-12-31;2019-03-14;268800.0;50.0;REGION BRETAGNE;France;079-Accès aux informations du secteur public (y compris les données culturelles libres de droit en ligne, les bibliothèques numériques, les contenus numériques et le tourisme en ligne);2022-01-20
FEDER;CC LIFFRE CORMIER COMMUNAUTE;Mise en tourisme du site patrimonial de Chevré à la Bouëxière;Cette mise en tourisme du site de Chevré a pour objectif de mettre en valeur ce site naturel et patrimonial, d'y développer une activité touristique, culturelle, pédagogique et ludique couplée avec des activités de pleine nature. Il sera proposé deux supports de médiation: des panneaux implantés sur site sur des points d’intérêt associés à une application numérique.;2016-02-17;2017-04-28;2018-09-13;48730.0;50.0;BOUEXIERE (LA);France;080-Services et applications en matière d'inclusion en ligne, d'accessibilité en ligne, d'apprentissage et d'éducation en ligne, culture numérique;2022-01-20
FEDER;REGION BRETAGNE FONDS EUROPEENS;MobiBreizh;Renouvellement du système d'information multimodale par plusieurs nouvelles orientations pour la mise en réseau d’outils et de données numériques ainsi que pour faciliter et encourager l’usage des transports collectifs sur le territoire breton.;2017-01-06;2022-06-30;2019-03-14;1005544.0;50.0;REGION BRETAGNE;France;"048-TIC: Autres types d'infrastructures TIC/ressources informatiques à grande échelle/ équipements (y compris les infrastructures en ligne, les centres de données et les capteurs; également lorsqu";2022-01-20
FEDER;POLE D'EQUILIBRE TERRITORIAL ET RURAL DU PAYS DE GUINGAMP;Numérisation et assainissement au Pays de Guingamp;Il s’agit de la mise en place d’une plate-forme numérique mutualisée entre les EPCI du Pays de Guingamp pour une gestion optimisée du service public d’assainissement non collectif (SPANC).;2017-07-02;2017-12-31;2021-04-02;18393.0;70.0;Pays de Guingamp;France;078-Services et applications d'administration en ligne (y compris passation des marchés publics en ligne, mesures dans le domaine des TIC soutenant la réforme de l'administration publique, mesures;2022-01-20
FEDER;SYND MIXTE E-MEGALIS BRETAGNE;Plateforme régionale administration électronique;Le Syndicat mixte de coopération territoriale Mégalis Bretagne développe une nouvelle architecture de la plateforme régionale de services mutualisés d'administration électronique (guichet unique de toutes les collectivités en Bretagne) afin d'assurer la pérennité des services offerts par les 6 anciens prestataires et de faire face aux problématiques d'interopérabilité des systèmes d'information.;2014-01-01;2017-06-30;2016-08-11;1699555.0;18.68;REGION BRETAGNE;France;078-Services et applications d'administration en ligne (y compris passation des marchés publics en ligne, mesures dans le domaine des TIC soutenant la réforme de l'administration publique, mesures;2022-01-20
FEDER;RENNES METROPOLE;Refonte de l'écosystème d'information numérique de Rennes, Ville et Métropole;"Le projet consiste en une refonte globale de l'écosystème web de la ville de Rennes et Rennes Métropole pour améliorer l'offre de services et d'information. Pour cela il est proposé un portail d'information et de services complet collaboratif, participatif et ouvert aux acteurs locaux : institutions, associations, citoyens,... via des outils de données ouvertes en Open Data.
A cette fin, Rennes Métropole fait appel à un prestataire spécialisé dans les techniques de l'information et de la communication.";2016-11-10;2019-09-30;2018-05-17;333333.0;19.95;Métropôle de Rennes;France;080-Services et applications en matière d'inclusion en ligne, d'accessibilité en ligne, d'apprentissage et d'éducation en ligne, culture numérique;2022-01-20
FEDER;MONTFORT COMMUNAUTE;Semaine de l'effet numérique 2015;"Organisation d'une semaine d'animations dédiée au numérique, évènement gratuit et grand public, baptisé ""L'effet numérique"" sur l'ensemble du territoire communautaire (8 communes) du 26 au 31 mai 2015 en partenariat avec le réseau des médiathèques.";2014-01-09;2015-06-30;2017-12-14;16462.0;56.19;MONTFORT COMMUNAUTE;France;080-Services et applications en matière d'inclusion en ligne, d'accessibilité en ligne, d'apprentissage et d'éducation en ligne, culture numérique;2022-01-20
FEDER;RECTORAT D ACADEMIE DE RENNES;Toutatice;Toutatice est un espace de services numériques. Le projet consiste à mettre en place plusieurs outils au bénéfice des directeurs d’établissements scolaires ainsi que des services académiques : déploiement d'espaces numériques pédagogiques, visioconférences, mise à disposition de ressources pédagogiques, cartographies associant ressources, scénarios pédagogiques et leur géolocalisation.;2014-01-01;2017-12-31;2017-09-03;2740902.0;16.42;REGION BRETAGNE;France;080-Services et applications en matière d'inclusion en ligne, d'accessibilité en ligne, d'apprentissage et d'éducation en ligne, culture numérique;2022-01-20
FEDER;CREWNICLES;WIZAR;Le projet WIZAR est une application gratuite qui valorise, de manière ludique, l'histoire, les légendes et le patrimoine local. Elle est destinée à un large public, en particulier les familles et adolescents, touristes ou habitants des pays de Redon et de la Communauté de communes de La Gacilly. Ses objectifs sont de développer les pratiques numériques par le jeu sur smartphone et de favoriser l'activité touristique et économique en impliquant les professionnels du secteur.;2015-01-09;2016-12-31;2016-08-03;145000.0;34.48;"CC DU PAYS DE LA GACILLY
CC DU PAYS DE REDON";France;080-Services et applications en matière d'inclusion en ligne, d'accessibilité en ligne, d'apprentissage et d'éducation en ligne, culture numérique;2022-01-20
FEDER;INRAE;AGROECOTERMER 2.30E - Équipement d'une station d'observation des flux de gaz à effet de serre;Le projet consiste en l'acquisition des instruments et capteurs nécessaires à l'équipement complet de la station de mesure des flux de gaz à effet de serre sur prairie.;2019-01-06;2020-12-31;2020-10-09;180000.0;46.39;"RENNES
RHEU (LE)";France;058-Infrastructures de recherche et d'innovation (publiques);2022-01-20
FEDER;INRAE;APIVALE - INRAE - 2021;Dans le cadre du projet APIVALE, l'INRAE fait l'acquisition d'équipements pour la plateforme de méthanisation et de valorisation des digestats afin de mener des travaux de recherche sur la valorisation des effluents organiques.;2019-01-01;2022-09-30;2021-04-03;413000.0;54.24;SAINT-GILLES;France;058-Infrastructures de recherche et d'innovation (publiques);2022-01-20
FEDER;INRAE;APIVALE - INRAE - Phase 5;Le projet porte sur l’acquisition d’équipements pour un dispositif agronomique de caractérisation de la valeur agronomique des effluents organiques. Il porte également sur la mise en place d’une base de données permettant de gérer les données produites et d'opérer les évaluations environnementales des filières de recyclage des effluents d’élevage.;2019-01-11;2022-11-30;2020-12-11;265000.0;30.19;SAINT-GILLES;France;058-Infrastructures de recherche et d'innovation (publiques);2022-01-20
FEDER;ECOLE NATIONALE D INGENIEURS DE BREST;ATOM - 2016;Dans le cadre de SOPHIE Photonique, le projet ATOM développe de nouvelles approches par des outils de simulation, de test et de validation de nouvelles fonctions pour la transmission optique.;2016-01-09;2018-12-31;2016-09-11;77000.0;31.17;PLOUZANE;France;058-Infrastructures de recherche et d'innovation (publiques);2022-01-20
FEDER;ASSOCIATION CELADON;AVEROES - E-DRONES - 2015-2016;Le projet E-DRONES s’inscrit dans AVEROES, projet consacré à l’amélioration de la navigation des robots sous marins. E-DRONES permettra dans un premier temps d'équiper un bateau de l’association CELADON de l'infrastructure nécessaire aux robots sous-marins, dont d’importants moyens de communication haut débit vers la terre pour proposer des services innovants tels que la téléopération, la téléassistance et la téléscience.;2015-01-09;2016-09-30;2016-02-02;150000.0;33.33;BREST;France;059-Infrastructures de recherche et d'innovation (privées, y compris les parcs scientifiques);2022-01-20
FEDER;UNIVERSITE DE RENNES I;BUFFON - Phase 2;Le projet BUFFON porte sur le développement de nouvelles méthodes de modélisations numériques et expérimentales, et d'observation, pour la compréhension et la prédiction des changements environnementaux sur les systèmes continentaux. La seconde phase du projet consiste à développer de nouvelles méthodes de modélisation numérique et expérimentale, et d'observation, pour la compréhension et la prédiction des changements environnementaux sur les systèmes continentaux.;2016-01-10;2018-07-31;2017-07-02;1023000.0;19.99;RENNES;France;058-Infrastructures de recherche et d'innovation (publiques);2022-01-20
FEDER;UNIVERSITE DE RENNES I;BUFFON - Phase 4;Dans le cadre du projet BUFFON, la phase 4 sera consacrée à la caractérisation in situ et en laboratoire de la physique et de la chimie de l'environnement.;2018-01-11;2021-07-31;2019-06-13;603000.0;16.58;RENNES;France;058-Infrastructures de recherche et d'innovation (publiques);2022-01-20
FEDER;UNIVERSITE DE RENNES I;CARE - Phase 1;La première phase du projet CARE, dont l'objectif est de structurer la recherche en cancérologie sur le site de Rennes, consiste à acquérir un équipement permettant d’analyser les cellules impliquées dans le processus cancéreux.;2015-01-07;2016-03-31;2015-08-12;250000.0;20.0;RENNES;France;058-Infrastructures de recherche et d'innovation (publiques);2022-01-20
FEDER;UNIVERSITE DE RENNES I;CARE - Phase 2;La seconde phase du projet CARE a pour objectif l'acquisition d'un équipement de microscopie optique. Cet équipement permettra de développer l'offre technologique proposée par le plateau d'imagerie photonique de la plateforme labellisée IBISA MRic.;2016-01-06;2017-10-31;2016-12-22;680000.0;19.85;RENNES;France;058-Infrastructures de recherche et d'innovation (publiques);2022-01-20
FEDER;UNIVERSITE DE RENNES I;CARE - Phase 3;Dans le cadre du projet Care, cette troisième phase consiste à l'acquisition d'équipements pour l'Université de Rennes 1.;2017-01-05;2018-03-31;2017-06-07;294000.0;39.8;RENNES;France;058-Infrastructures de recherche et d'innovation (publiques);2022-01-20
FEDER;UNIVERSITE DE RENNES I;CARE - Phase 4;La phase 2018 du projet CARE permet l'acquisition d'équipements (cytomètre trieur nouvelle génération) pour répondre aux besoins des programmes de recherche, principalement en cancérologie.;2018-01-06;2019-10-31;2018-05-07;650000.0;33.08;RENNES;France;058-Infrastructures de recherche et d'innovation (publiques);2022-01-20
FEDER;INRIA;CeSGO - E Science - 2016;Le projet E Science est la première phase du projet CeSGO et consiste à élaborer une infrastructure de données à intégrer à la plate-forme bioinformatique GenOuest qui héberge le projet CeSGO.;2015-01-05;2017-06-30;2016-02-02;393867.0;24.99;RENNES;France;058-Infrastructures de recherche et d'innovation (publiques);2022-01-20
FEDER;INRIA;CeSGO - E-Science - 2017;Dans le cadre du projet CeSGO E-Science, l'INRIA poursuit sa participation pour l'année 2017.;2017-01-03;2019-02-28;2017-06-07;324773.0;15.44;RENNES;France;058-Infrastructures de recherche et d'innovation (publiques);2022-01-20
FEDER;UNIVERSITE DE RENNES I;ChemBioMat - Phase 1;Le projet CHEMBIOMAT concerne la recherche en science du vivant. La première phase « Structures et Dynamique : Biomolécules et Matériaux » consiste à acquérir des équipements (Console de résonnance magnétique nucléaire haute résolution) permettant des recherches en chimie médicinale et en biologie moléculaire.;2015-01-10;2017-02-28;2016-02-02;210000.0;35.71;RENNES;France;058-Infrastructures de recherche et d'innovation (publiques);2022-01-20
FEDER;UNIVERSITE DE RENNES I;CRESUCHIRP;Dans le cadre du projet CRESUCHIRP, l’opération vise à l'acquisition des équipements nécessaires à la création d'écoulements supersoniques froids. Ces recherches ont des applications dans le domaine de la chimie. Le projet inclut l'accueil d'une nouvelle équipe de jeunes chercheurs (bourses Advanced Grant du Conseil Européen de la Recherche).;2016-01-10;2021-08-31;2017-07-02;647000.0;45.0;RENNES;France;060-Activités de recherche et d'innovation dans les centres de recherche publics et les centres de compétence, y compris la mise en réseau;2022-01-20
FEDER;UNIVERSITE DE BRETAGNE SUD;Cyber Crypto - 2016;Dans le cadre du projet CYBER SSI, l’Université de Bretagne Sud coordonne le sous-projet Cyber Crypto qui porte sur la sécurisation du Cloud Computing.;2016-01-07;2017-05-31;2017-09-03;150000.0;33.33;LORIENT;France;058-Infrastructures de recherche et d'innovation (publiques);2022-01-20
FEDER;UNIVERSITE DE BRETAGNE SUD;Cyber Crypto - 2017;Dans le domaine de la cybersécurité, le projet a pour objectif l’évaluation de la sécurité par l’analyse de la fuite d’informations volontaires ou involontaires. Cyber Crypto concerne la conception de composants matériels sûrs, et plus particulièrement l'implémentation matérielle et logicielle de primitives cryptographiques asymétriques en lien avec le centre de cyber sécurité (CSC) de Vannes.;2017-01-07;2018-06-30;2018-12-04;115000.0;43.48;LORIENT;France;060-Activités de recherche et d'innovation dans les centres de recherche publics et les centres de compétence, y compris la mise en réseau;2022-01-20
FEDER;INSTITUT NATIONAL DES SCIENCES APPLIQUEES DE RENNES;CYBER SSI - 2020;Afin d'améliorer la sécurité des systèmes informatiques (cartes de paiement, billetique transport, bâtiments publics, appareils médicaux implantés, passeports électroniques ou encore permis de conduire de dernière génération), le projet porte sur l’acquisition d’un serveur de calcul.;2020-01-08;2021-03-31;2020-12-11;36200.0;39.23;RENNES;France;058-Infrastructures de recherche et d'innovation (publiques);2022-01-20
FEDER;Ecole nationale supérieure Mines-Télécom Atlantique Bretagne-Pays de la Loire;CYBER SSI - Mines Telecom - 2016;Dans le cadre du projet CYBER SSI, L’école nationale supérieure des Mines Telecom Atlantique poursuit ses actions de recherche et développement des technologies liées à la cybersécurité.;2016-01-01;2017-07-31;2017-11-05;496000.0;40.12;CESSON-SEVIGNE;France;058-Infrastructures de recherche et d'innovation (publiques);2022-01-20
FEDER;INSTITUT NATIONAL DES SCIENCES APPLIQUEES DE RENNES;DIADEM - 2016;"Le sous-projet DIADEM concerne les systèmes antennaires toujours plus complexes, intégrant des capacités de reconfigurabilité de faisceau, d'agilité de faisceau, associés à des problématiques de reconnaissance de cibles. Les domaines d'application sont les systèmes d'aide à la conduite ; la défense). Le but de la plateforme DIADEM est de réunir un ensemble unique de moyens permettant de diagnostiquer, sur le plan radioélectrique, des capteurs de types variés : antennes, dispositifs électroniques associés, capteurs intégrés et matériaux associés.";2016-01-06;2017-04-30;2016-12-22;150000.0;40.0;RENNES;France;058-Infrastructures de recherche et d'innovation (publiques);2022-01-20
FEDER;INSTITUT NATIONAL DES SCIENCES APPLIQUEES DE RENNES;DURABIMAT - INRA;Dans le cadre de la phase de conception et caractérisation de matériaux bio-sourcés ou éco-conçus du projet DURABIMAT, des équipements seront acquis par un laboratoire de l’INSA permettant la modélisation de systèmes mécaniques innovants (laser tracker) et de réaliser des mesures de température et de d’humidité de nouveaux matériaux.;2015-01-10;2017-06-30;2016-10-05;91000.0;35.16;RENNES;France;058-Infrastructures de recherche et d'innovation (publiques);2022-01-20
FEDER;INSTITUT NATIONAL DES SCIENCES APPLIQUEES DE RENNES;DURABIMAT - INSA - 2017;Dans le cadre du projet DURABIMAT, l’INSA poursuit sa participation pour l’année 2017.;2017-01-07;2018-12-31;2017-09-14;128000.0;41.8;RENNES;France;058-Infrastructures de recherche et d'innovation (publiques);2022-01-20
FEDER;UNIVERSITE DE BRETAGNE SUD;DURABIMAT - UBS - 2016-2017;Dans le cadre du projet DURABIMAT, cette opération consiste à acquérir des équipements pour tester et sélectionner les matériaux présentant une meilleure durabilité.;2016-01-02;2017-05-31;2017-07-02;415000.0;40.48;"LORIENT
VANNES";France;058-Infrastructures de recherche et d'innovation (publiques);2022-01-20
FEDER;UNIVERSITE DE BRETAGNE OCCIDENTALE;ECO SYS MER - 2021;Cette opération est la poursuite du projet Eco Sys Mer (plateforme expérimentale dédiée aux énergies marines renouvelables, principalement les hydroliennes, les houlogénérateurs et les éoliennes offshores) pour l'année 2021.;2020-01-11;2022-08-31;2021-04-02;250000.0;32.0;BREST;France;058-Infrastructures de recherche et d'innovation (publiques);2022-01-20
FEDER;ECOLE NATIONALE D INGENIEURS DE BREST;ECO-SYS-MER - ENIB - 2015;L'ambition du projet ECO-SYS-MER (Eco-ingénierie des grands systèmes mécaniques marins) est de permettre au futur institut de jouer un rôle encore plus important aux niveaux régional, national et international dans la résolution des questions actuelles liées à l'ingénierie de la mécanique, des matériaux et des systèmes utilisés dans les domaines en interaction avec le milieu marin comme la construction navale et offshore, les énergies marines... Cette opération consiste en l’acquisition par un laboratoire de l’ENIB de données ainsi que d’une caméra infrarouge de précision.;2015-01-09;2016-08-31;2016-04-14;155000.0;38.71;PLOUZANE;France;058-Infrastructures de recherche et d'innovation (publiques);2022-01-20
FEDER;ENSTA BRETAGNE;ECO-SYS-MER - ENSTAB - 2017;ECO SYS MER est un projet de recherche appliquée en milieu marin. L’ENSTAB poursuit sa participation au projet en 2017.;2017-01-01;2018-08-31;2017-06-07;395000.0;35.44;BREST;France;058-Infrastructures de recherche et d'innovation (publiques);2022-01-20
FEDER;ENSTA BRETAGNE;ECO-SYS-MER - ENSTAB - 2019;ECO-SYS-MER est un projet de recherche appliquée en milieu marin. L’ENSTAB poursuit sa participation au projet en 2019.;2019-01-07;2020-09-30;2020-12-03;360000.0;32.5;BREST;France;058-Infrastructures de recherche et d'innovation (publiques);2022-01-20
FEDER;INRAE;ELEPHANS - Rénovation du Moulin de Saint-Gilles;Dans le cadre du projet ELEPHANS, le moulin expérimental de Saint-Gilles est rénové afin de mener des recherches sur la qualité technologique des aliments composés, l’incorporation de nouvelles matières premières et de nouveaux éléments nutritionnels ainsi que sur les technologies de fabrication.;2019-01-09;2022-09-30;2021-04-03;710000.0;14.79;SAINT-GILLES;France;058-Infrastructures de recherche et d'innovation (publiques);2022-01-20
FEDER;AGENCE NATIONALE SECURITE SANITAIRE ALIMENTATION ENVIRONNEMENT TRAVAIL;ELEPHANS - Volet 3;Le volet 3 du projet ELEPHANS consiste à l'acquisition de matériels et d'équipements scientifiques pour le site expérimental aviaire du laboratoire (nouveau bâtiment consacré aux volailles de chair) où est analysé de façon automatisée le comportement animal.;2019-01-07;2020-03-30;2020-05-14;46954.0;38.44;PLOUFRAGAN;France;058-Infrastructures de recherche et d'innovation (publiques);2022-01-20
FEDER;CENTRE NATIONAL DE LA RECHERCHE SCIENTIFIQUE;EMBARC - 2015 : Consolider EMBRC Bretagne;En 2015, le projet EMBARC consiste en l'acquisition d’équipements (spectromètres de masse) pour analyser les grandes algues et les communautés associées dans des conditions proches de leur milieu naturel. Ces équipements sont accessibles, via un plateau technique (MetaboMer), aux nombreux chercheurs en génomique, génétique, écologie, biodiversité ainsi qu’aux enseignants.;2015-01-07;2016-01-31;2015-11-17;218925.0;26.92;ROSCOFF;France;058-Infrastructures de recherche et d'innovation (publiques);2022-01-20
FEDER;CENTRE NATIONAL DE LA RECHERCHE SCIENTIFIQUE;EMBARC - 2016;En 2016, l'accès aux ressources biologiques marines, à des plateformes technologiques et à l'expertise scientifique et technique permet à la communauté scientifique de caractériser de plus en plus finement la biodiversité marine.;2016-01-11;2017-10-31;2016-08-11;400000.0;45.0;ROSCOFF;France;058-Infrastructures de recherche et d'innovation (publiques);2022-01-20
FEDER;CENTRE NATIONAL DE LA RECHERCHE SCIENTIFIQUE;EMBARC - 2017;Dans le cadre du projet EMBARC, la seconde phase consiste à renforcer des plates-formes en génomique et post-génomique pour l'étude des algues et des communautés associée par la station biologique de Roscoff (SBR).;2017-01-01;2018-06-30;2017-06-07;326075.0;33.73;ROSCOFF;France;058-Infrastructures de recherche et d'innovation (publiques);2022-01-20
FEDER;UNIVERSITE DE BRETAGNE OCCIDENTALE;EpiGen Brest - 2015;Le projet Epi Gen Brest vise à développer au sein de l’UBO, une plateforme ouverte d’études génétiques dans le domaine des maladies multifactorielles et des organismes marins en interaction avec leur environnement. Le projet a plusieurs objectifs, notamment de renforcer les liens entre la clinique et les disciplines plus fondamentales et d’améliorer les soins et de mettre en place une médecine personnalisée.;2016-02-01;2016-12-31;2016-07-06;334761.0;32.86;BREST;France;058-Infrastructures de recherche et d'innovation (publiques);2022-01-20
FEDER;IFREMER;Euro Argo - 2017;Dans le cadre du projet Euro Argo, Ifremer poursuit sa participation pour l'année 2017.;2017-01-01;2018-09-30;2016-09-11;1108200.0;38.98;PLOUZANE;France;058-Infrastructures de recherche et d'innovation (publiques);2022-01-20
FEDER;IFREMER;Euro Argo - 2018;Dans le cadre du projet Euro Argo, IFREMER poursuit sa participation pour l'année 2018.;2018-01-01;2019-12-31;2018-08-11;1130663.0;44.22;PLOUZANE;France;058-Infrastructures de recherche et d'innovation (publiques);2022-01-20
FEDER;IFREMER;Euro Argo - 2020;Le projet EURO ARGO s'intègre dans un programme global d'observation des océans. Il a pour objectif de développer un réseau global de plus de 3000 flotteurs profilants autonomes mesurant en temps réel la température et la salinité des océans des 2000 premiers mètres de l'océan.;2020-01-01;2021-12-31;2020-08-10;1145480.0;46.75;PLOUZANE;France;058-Infrastructures de recherche et d'innovation (publiques);2022-01-20
FEDER;UNIVERSITE DE RENNES I;FOTON - Lannion - Phase 2;Le projet FOTON constitue la seconde phase du projet SOPHIE Photonique sur le site de Lannion et consiste en l'acquisition d'équipements pour des analyses optiques de pointe au profit des secteurs de la santé et de l'environnement.;2017-01-01;2019-02-28;2016-09-11;350000.0;34.29;LANNION;France;058-Infrastructures de recherche et d'innovation (publiques);2022-01-20
FEDER;UNIVERSITE DE RENNES I;FOTON - Lannion - Phase 3;La 3ème phase du projet FOTON poursuit l'acquisition d'équipements qui feront progresser le niveau d'expertise, la qualité de la recherche, la fertilisation croisée entre les thématiques scientifiques, la visibilité et l'attractivité internationale dans le domaine de la physique des télécommunications.;2018-01-09;2021-05-31;2019-03-14;510000.0;41.18;LANNION;France;060-Activités de recherche et d'innovation dans les centres de recherche publics et les centres de compétence, y compris la mise en réseau;2022-01-20
FEDER;MUSEUM NATIONAL D'HISTOIRE NAT;HERMINE;HERMINE est un projet recherche sur la fonctionnalité des écosystèmes marins avec lesquels les activités humaines sont en interaction. Il consiste à caractériser les organismes à leurs différents stades de développement, analyser leurs évolutions et interactions afin de faire des propositions aux différents acteurs du littoral en matière de gestion et de conservation des ressources écosystémiques.;2015-01-06;2017-09-30;2015-08-12;489027.0;34.76;CONCARNEAU;France;058-Infrastructures de recherche et d'innovation (publiques);2022-01-20
FEDER;INRAE;IAA - High Tech Usine du Futur - 2018;"Dans le cadre du projet ""IAA - High Tech Usine du futur"", l'IRSTEA poursuit sa participation pour l'année 2018.";2018-01-01;2021-12-31;2018-05-07;442000.0;25.11;RENNES;France;060-Activités de recherche et d'innovation dans les centres de recherche publics et les centres de compétence, y compris la mise en réseau;2022-01-20
FEDER;INRIA;IMMERSTAR - IMMERSIA;"Le projet de nouvelle plate-forme de réalité virtuelle, porté par le centre de recherche INRIA Rennes-Bretagne Atlantique, consiste principalement à faire évoluer l'équipement de réalité virtuelle (plateforme IMMERSIA), afin d'offrir une immersion visuelle de très haute qualité tout en développant les capacités de collaboration entre les plate-forme du projet IMMERSTAR.
L'équipement a vocation à être utilisé par les équipes des établissements scientifiques et industriels de la région.";2016-01-01;2018-09-30;2016-12-22;690898.0;21.71;RENNES;France;058-Infrastructures de recherche et d'innovation (publiques);2022-01-20
FEDER;AGENCE NATIONALE SECURITE SANITAIRE ALIMENTATION ENVIRONNEMENT TRAVAIL;INFECTIO - ANSES - Phase 2;Le second volet du projet INFECTIO consiste en l'acquisition de matériels scientifiques pour les unités de recherche de l'Anses : Laboratoire de Ploufragan-Plouzané.;2017-01-01;2018-03-31;2017-12-14;191274.0;41.17;"PLOUFRAGAN
PLOUZANE";France;058-Infrastructures de recherche et d'innovation (publiques);2022-01-20
FEDER;UNIVERSITE DE RENNES I;INFECTIO - UR1 - Phase 2;Dans le cadre de la seconde phase du projet INFECTIO, l'Université de Rennes 1 poursuit sa participation par l'acquisition d'ensemble d'équipements dédiés à la manipulation, l'observation, la quantification et le stockage des agents infectieux.;2017-01-10;2018-12-31;2017-09-14;174000.0;33.91;RENNES;France;058-Infrastructures de recherche et d'innovation (publiques);2022-01-20
FEDER;ENSTA BRETAGNE;I-ROMI - ENSTAB - 2017;Le projet I-ROMI (Infrastructure de Recherche pour Observatoires Marins Innovants) a pour objectif global la création d'une plateforme de recherche et d'expérimentation d'observation marine.;2017-01-03;2018-06-30;2017-06-07;122000.0;36.89;BREST;France;058-Infrastructures de recherche et d'innovation (publiques);2022-01-20
FEDER;ENSTA BRETAGNE;I-ROMI - ENSTAB - 2019;Cette opération est la poursuite du projet I-ROMI (création d'une plate-forme de recherche et d'expérimentation pour l'observation du milieu marin) pour l'année 2019.;2020-01-10;2022-06-30;2021-04-02;100000.0;55.0;BREST;France;058-Infrastructures de recherche et d'innovation (publiques);2022-01-20
FEDER;INSTITUT SUPERIEUR D ELECTRONIQUE ET DU NUMERIQUE ISEN;LMAIR - 2018-2020;Dans le cadre du projet LMAIR YNCREA Ouest poursuit sa participation pour 2018-2019-2020.;2017-01-07;2020-07-31;2019-03-14;217000.0;13.13;BREST;France;058-Infrastructures de recherche et d'innovation (publiques);2022-01-20
FEDER;UNIVERSITE DE RENNES 2;LOUSTIC - 2016;L’opération consiste à compléter les équipements de LOUSTIC, plateforme de recherche pluridisciplinaire sur les usages des technologies de l'information et de la communication créée en 2007.;2015-11-05;2016-12-31;2017-09-03;162000.0;40.74;RENNES;France;058-Infrastructures de recherche et d'innovation (publiques);2022-01-20
FEDER;UNIVERSITE DE RENNES 2;LOUSTIC - 2017;Dans le cadre du projet LOUSTIC, l'Université de Rennes 2 poursuit sa participation pour l'année 2017.;2017-01-01;2017-12-31;2017-12-10;138000.0;33.33;RENNES;France;058-Infrastructures de recherche et d'innovation (publiques);2022-01-20
FEDER;UNIVERSITE DE RENNES I;MATECOM - ANTIDOT - Phase 2;Dans le cadre du sous-projet ANTIDOT (projet MATECOM), l’Université de Rennes 1 fait l’acquisition d'une station de travail pour le traitement et la micogravure laser.;2017-01-06;2019-01-31;2017-06-07;200000.0;40.0;SAINT-BRIEUC;France;058-Infrastructures de recherche et d'innovation (publiques);2022-01-20
FEDER;UNIVERSITE DE RENNES I;MATECOM - META-STAF;Le projet MATECOM – META-STAF a pour objectif le développement de matériaux innovants pour des applications spécifiques en télécommunications, électronique souple, capteurs et nanotechnologies.;2017-01-06;2019-01-31;2017-06-07;159000.0;39.31;RENNES;France;058-Infrastructures de recherche et d'innovation (publiques);2022-01-20
FEDER;UNIVERSITE DE RENNES I;MATECOM - Phase 4;Le projet MATECOM a pour objectif le développement de matériaux innovants pour des applications spécifiques en télécommunications, électronique souple, capteurs et nanotechnologies. Cette phase 4 vise à finaliser la phase 2 de META-STAF afin d'aboutir à un plateau technique unique en France.;2018-01-11;2021-03-31;2019-12-09;142000.0;29.58;RENNES;France;060-Activités de recherche et d'innovation dans les centres de recherche publics et les centres de compétence, y compris la mise en réseau;2022-01-20
FEDER;UNIVERSITE DE BRETAGNE OCCIDENTALE;MATECOM - UBO - Phase 2;Le projet Multimat Matécom phase 2 consiste à développer des capteurs de corrosion en vue de la fabrication de matériaux innovants.;2020-01-09;2021-09-30;2021-04-02;297000.0;36.36;BREST;France;058-Infrastructures de recherche et d'innovation (publiques);2022-01-20
FEDER;UNIVERSITE DE RENNES I;NAM-Ouest - Phase 3;Le projet vise à acquérir des équipements nécessaires aux études du métabolisme cellulaire, afin d'améliorer la compréhension de l'impact des désordres alimentaires sur le bien-être et la survenue de maladies chroniques du foie et de l'appareil digestif.;2018-01-06;2019-06-30;2019-03-14;190000.0;39.47;RENNES;France;058-Infrastructures de recherche et d'innovation (publiques);2022-01-20
FEDER;UNIVERSITE DE BRETAGNE SUD;NAM-Ouest Nutrition, Alimentation et Métabolisme;Le projet a pour objectif la mise en évidence d'interactions moléculaire dans la cellule qui sont à l'origine de la maladie d'Alzheimer en relation avec les mécanismes de drogues anti-cancéreuses (cancer du sein). Ces études viseront à identifier des molécules naturelles pouvant spécifiquement bloquer une voie d'activation de la maladie d'Alzheimer.;2017-01-03;2018-03-31;2018-08-02;140000.0;35.71;VANNES;France;058-Infrastructures de recherche et d'innovation (publiques);2022-01-20
FEDER;UNIVERSITE DE BRETAGNE OCCIDENTALE;O3DO - Phase 3;Acquisition et développement de dispositifs d'observation 3D des domaines océaniques, de la colonne d'eau à la surface et sub-surface du plancher océanique (océanographie, biologie, biogéochimie, géophysique).;2018-01-01;2022-12-31;2021-04-03;1364000.0;34.38;BREST;France;058-Infrastructures de recherche et d'innovation (publiques);2022-01-20
FEDER;IFREMER;ROEC - IFREMER - 2016;Dans le cadre du projet ROEC, l’opération rassemble les actions de l’IFREMER pour l'année 2016.;2016-01-07;2016-12-31;2016-10-14;478000.0;39.96;PLOUZANE;France;058-Infrastructures de recherche et d'innovation (publiques);2022-01-20
FEDER;IFREMER;ROEC - IFREMER - 2017;Le projet ROEC consiste à observer le milieu marin côtier à l’aide de mesures automatisées in situ à haute fréquence. Les sources de données sont indispensables et complémentaires des réseaux basse fréquence, des observations satellite et de la modélisation numérique pour comprendre le fonctionnement de l’environnement marin côtier, le changement global sur les écosystèmes, et pour développer de nouveaux outils et déployer un réseau régional d’observations.;2017-01-01;2018-08-31;2018-08-02;563000.0;36.06;PLOUZANE;France;058-Infrastructures de recherche et d'innovation (publiques);2022-01-20
FEDER;IFREMER;ROEC - IFREMER - 2018;Dans le cadre du projet ROEC, l'Ifremer poursuit sa participation pour les années 2018-2019 en matière d’observation du milieu marin côtier.;2018-01-01;2019-12-31;2019-11-04;388000.0;25.0;PLOUZANE;France;058-Infrastructures de recherche et d'innovation (publiques);2022-01-20
FEDER;SERVICE HYDROGRAPHIQUE ET OCEANOGRAPHIQUE DE LA MARINE;ROEC - SHOM - 2018;Le SHOM poursuit sa participation au projet ROEC pour l'année 2018 : réseau d'observations continues à haute fréquence de l'environnement côtier, basée sur une approche intégrée pluri-disciplinaire (physique, biologie et chimie).;2017-01-11;2020-12-31;2020-06-02;605000.0;32.07;BREST;France;060-Activités de recherche et d'innovation dans les centres de recherche publics et les centres de compétence, y compris la mise en réseau;2022-01-20
FEDER;UNIVERSITE DE RENNES I;SCANMAT - Phase 3;L’objectif est de créer un consortium thématique autour des matériaux multifonctionnels. La mise en commun des savoir-faire et des équipements permettra de créer un Centre d’Analyses Multi échelles des Matériaux.;2018-01-09;2020-01-31;2019-03-14;322000.0;44.1;RENNES;France;058-Infrastructures de recherche et d'innovation (publiques);2022-01-20
FEDER;ENSTA BRETAGNE;SMD MAR - ENSTAB - 2019;Le projet SMD-MAR propose de remplacer un robot unique et sophistiqué évoluant exclusivement en environnement sous-marin (robot AUV) par un système coordonné de drones hétérogènes multi-milieux. Le système est composé d'une flottille de petits robots sous-marins, de surface et de drones aériens.;2020-01-01;2021-02-28;2020-09-07;175000.0;46.86;BREST;France;058-Infrastructures de recherche et d'innovation (publiques);2022-01-20
FEDER;UNIVERSITE DE BRETAGNE OCCIDENTALE;SMD MAR - UBO - 2021;Dans le cadre du projet SMD MAR, l'Université de Bretagne Occidentale poursuit sa participation pour l'année 2021 dans le but d'augmenter les moyens robotiques pour le domaine maritime.;2019-01-09;2021-11-30;2021-04-03;89300.0;44.01;BREST;France;060-Activités de recherche et d'innovation dans les centres de recherche publics et les centres de compétence, y compris la mise en réseau;2022-01-20
FEDER;ENSTA BRETAGNE;SMD-MAR - ENSTAB - 2016;Afin d'améliorer l'étude de l'environnement maritime océanique, le projet SMD-MAR vise à remplacer les robots uniques sous-marins par un système multi-drône multi milieux qui a l'avantage d'un faible coût individuel. Le large spectre d'applications, s'étendant du domaine militaire à l'acquisition de données pour la recherche a contribué à un essor de cette technologie.;2016-01-04;2017-03-31;2016-08-11;200000.0;45.5;BREST;France;058-Infrastructures de recherche et d'innovation (publiques);2022-01-20
FEDER;PHOTONICS BRETAGNE;SOPHIE - 2020;Le projet CPER SOPHIE 2020 a pour objectif de pérenniser le niveau d'expertise de top niveau mondial dans le domaine des fibres optiques spéciales par l’acquisition d'équipements dans les domaines des Capteurs et laser innovants et de l'agrophotonique.;2020-01-06;2022-12-31;2020-08-10;854000.0;33.96;LANNION;France;058-Infrastructures de recherche et d'innovation (publiques);2022-01-20
FEDER;PHOTONICS BRETAGNE;SOPHIE Photonique - 2017;"Le projet SOPHIE fédère l'ensemble des acteurs de l'enseignement supérieur et de la recherche académique du Grand Ouest de la filière ""technologies matérielles"" (du matériau au système) pour le numérique.";2017-01-01;2019-04-30;2016-09-11;570000.0;17.54;LANNION;France;059-Infrastructures de recherche et d'innovation (privées, y compris les parcs scientifiques);2022-01-20
FEDER;INSTITUT NATIONAL DES SCIENCES APPLIQUEES DE RENNES;SOPHIE Photonique - MADO - 2017;Dans le cadre du sous-projet MADO (projet SOPHIE Photonique), l'INSA poursuit sa participation pour l'année 2017.;2017-01-07;2018-12-31;2017-09-14;261000.0;36.4;RENNES;France;058-Infrastructures de recherche et d'innovation (publiques);2022-01-20
FEDER;Ecole nationale supérieure Mines-Télécom Atlantique Bretagne-Pays de la Loire;SOPHIE Photonique - RESTO - 2015;"Le projet RESTO (Réseaux fixes et sans fil Energétiquement Sobre exploitant la Transparence Optique) est un sous-projet de SOPHIE consacré au développement de la photonique en Bretagne. Il regroupe des actions sur les réseaux optiques cohérents à très haut débit et l’optique hyperfréquence qui doivent permettre de disposer de ""tuyaux"" tout-optiques d’une capacité de plus en plus élevée sur des distances toujours plus longues.";2015-11-05;2015-12-31;2015-08-12;70000.0;40.0;BREST;France;060-Activités de recherche et d'innovation dans les centres de recherche publics et les centres de compétence, y compris la mise en réseau;2022-01-20
FEDER;UNIVERSITE DE RENNES I;SOPHIE Photonique - UR1 - Phase 2;Dans la cadre de SOPHIE Photonique, l’opération consiste à l’achat d’équipements pour faire progresser la visibilité et l'attractivité internationale, le niveau d'expertise, la qualité de la recherche, la fertilisation croisée entre les thématiques scientifiques suivantes : télécommunications et réseaux, lasers, capteurs et métrologie.;2016-01-10;2017-12-31;2017-07-02;115000.0;34.78;RENNES;France;058-Infrastructures de recherche et d'innovation (publiques);2022-01-20
FEDER;UNIVERSITE DE RENNES I;SOPHIE Photonique Lannion - Phase 1 (FOTON ENSSAT);Dans la cadre de SOPHIE Photonique, l’opération consiste à l’achat d’équipements pour faire progresser la visibilité et l'attractivité internationale, le niveau d'expertise, la qualité de la recherche, la fertilisation croisée entre les thématiques scientifiques suivantes : télécommunications et réseaux, lasers, capteurs et métrologie. L'UMR Foton travaille particulièrement sur la mise en modules Télécom.;2016-01-10;2018-01-31;2017-11-05;430000.0;39.53;LANNION;France;058-Infrastructures de recherche et d'innovation (publiques);2022-01-20
FEDER;UNIVERSITE DE RENNES I;SOPHIE Photonique Lannion - Phase 1 (TREMACO);Dans la cadre de SOPHIE Photonique, le sous-projet TREMACO s'inscrit dans l'axe télécommunication et réseau optique.;2016-01-10;2017-11-30;2017-11-05;172000.0;46.51;LANNION;France;058-Infrastructures de recherche et d'innovation (publiques);2022-01-20
FEDER;Ecole nationale supérieure Mines-Télécom Atlantique Bretagne-Pays de la Loire;SOPHIE Stic & Ondes - IMT - 2016;Dans le cadre du projet Stic & Ondes, l’opération s’inscrit en complémentarité avec la plateforme CAMILL pour proposer des moyens et une expertise complète sur la caractérisation des phénomènes de propagation (communication à haut débits, imagerie avec réseau de capteurs intégrés, radar pour la détection).;2016-01-01;2017-07-31;2017-11-05;340000.0;39.71;PLOUZANE;France;058-Infrastructures de recherche et d'innovation (publiques);2022-01-20
FEDER;INSTITUT NATIONAL DES SCIENCES APPLIQUEES DE RENNES;SOPHIE Stic & Ondes - INSA - 2018;Dans le cadre du projet SOPHIE Stic & Ondes, l'INSA poursuit sa participation pour 2018 avec la mise en place d’équipements scientifiques de pointe mutualisés et ouverts à l’ensemble de la filière.;2018-01-09;2021-06-30;2019-11-04;226000.0;30.97;RENNES;France;058-Infrastructures de recherche et d'innovation (publiques);2022-01-20
FEDER;UNIVERSITE DE RENNES I;SOPHIE Stic & Ondes - UR1 - Phase 2a;Dans le cadre du projet SOPHIE Stic & Ondes, la phase 2a du site de Rennes 1 consiste à acquérir des équipements de métrologie hyperfréquences pour l’étude des rayonnements électromagnétiques.;2016-01-06;2017-11-30;2017-09-03;999760.0;20.0;RENNES;France;058-Infrastructures de recherche et d'innovation (publiques);2022-01-20
FEDER;UNIVERSITE DE RENNES I;SOPHIE Stic & Ondes - UR1 - Phase 3b;La phase 3b du projet Stic & Ondes, permettra à l'Université de poursuivre les acquisitions pour les plateaux techniques mutualisés CAMILL, CACENDRA et DIADEM en se dotant de systèmes de positionnement d’antennes à tester et de sondes de mesures.;2017-01-10;2022-05-31;2018-07-06;1035000.0;22.32;RENNES;France;060-Activités de recherche et d'innovation dans les centres de recherche publics et les centres de compétence, y compris la mise en réseau;2022-01-20
FEDER;CENTRE NATIONAL DE LA RECHERCHE SCIENTIFIQUE;Système de pompage pour écoulements supersoniques;Le projet porte sur l’acquisition d’un puissant système de pompage d'une capacité totale de plus de 50 000 m3/h, qui permet de générer des écoulements de gaz supersoniques ou hypersoniques afin de les porter aux températures extrêmes régnant dans divers objets astrophysiques.;2019-01-09;2021-06-30;2019-12-12;390000.0;25.64;RENNES;France;058-Infrastructures de recherche et d'innovation (publiques);2022-01-20
FEDER;IFREMER;THALASSA;L'objectif de l'opération est de moderniser le Thalassa pour élargir ses missions actuelles dans les domaines halieutiques et océanographiques. Le projet consiste en l’installation d’équipements permettant de conduire des missions dans le domaine des géosciences ou de l’environnement et de réaliser les travaux de maintien en conditions opérationnelles pour les vingt prochaines années.;2015-01-12;2018-09-30;2016-07-06;16100000.0;10.77;PLOUZANE;France;058-Infrastructures de recherche et d'innovation (publiques);2022-01-20
FEDER;Ecole nationale supérieure Mines-Télécom Atlantique Bretagne-Pays de la Loire;VIGISAT 2 - 2015;Le projet VIGISAT 2 porte sur la création de la première station française civile de réception d’images satellite radar haute résolution. Il fédère les laboratoires de recherche régionaux, et permet l’accès simplifié aux données satellites. Les images ont vocation à être utilisées dans la filière des énergies marines renouvelables notamment.;2015-11-05;2015-12-31;2015-08-12;412000.0;35.19;BREST;France;058-Infrastructures de recherche et d'innovation (publiques);2022-01-20
FEDER;Ecole nationale supérieure Mines-Télécom Atlantique Bretagne-Pays de la Loire;VITAAL - IMT Atlantique - 2016-2017;Dans le cadre du projet VITAAL, IMT Atlantique poursuit sa participation pour les années 2016 et 2017.;2016-01-01;2017-07-31;2017-11-05;189500.0;40.63;PLOUZANE;France;058-Infrastructures de recherche et d'innovation (publiques);2022-01-20
FEDER;Ecole nationale supérieure Mines-Télécom Atlantique Bretagne-Pays de la Loire;VITAAL - IMT Atlantique - 2019;Dans le cadre du projet VITAAL, IMT Atlantique travaille sur l’analyse des activités à domicile, les nouveaux environnements interactifs, la télé-rééducation fonctionnelle et visuelle.;2018-01-07;2019-09-30;2019-04-07;96000.0;50.0;PLOUZANE;France;058-Infrastructures de recherche et d'innovation (publiques);2022-01-20
FEDER;UNIVERSITE DE BRETAGNE OCCIDENTALE;VITAAL - Phase 3;Dans le cadre du projet VITAAL, l'Université de Bretagne Occidentale poursuit sa participation pour l'année 2021.;2017-01-10;2021-11-30;2021-04-02;455000.0;32.97;BREST;France;060-Activités de recherche et d'innovation dans les centres de recherche publics et les centres de compétence, y compris la mise en réseau;2022-01-20
FEDER;UNIVERSITE DE BRETAGNE SUD;VITAAL - UBS - 2017;Dans le cadre du projet VITAAL, l'UBS poursuit sa participation pour l'année 2017.;2017-01-05;2018-06-30;2018-12-04;70800.0;29.38;LORIENT;France;060-Activités de recherche et d'innovation dans les centres de recherche publics et les centres de compétence, y compris la mise en réseau;2022-01-20
FEDER;Ecole nationale supérieure Mines-Télécom Atlantique Bretagne-Pays de la Loire;Chaire CNI - Phase 1;"Le projet consiste à financer une chaire internationale dans le domaine de la cybersécurité des
infrastructures critiques. Elle réunit des chercheurs spécialistes confrontés à la réalité des problèmes
de sécurité des systèmes industriels pour apporter des solutions concrètes et validées scientifiquement.";2016-01-06;2017-10-31;2017-06-07;200000.0;50.0;CESSON-SEVIGNE;France;060-Activités de recherche et d'innovation dans les centres de recherche publics et les centres de compétence, y compris la mise en réseau;2022-01-20
FEDER;Ecole nationale supérieure Mines-Télécom Atlantique Bretagne-Pays de la Loire;Chaire CNI - Phase 2;Poursuite des activités de la chaire Cybersécurité des infrastructures critiques.;2017-01-11;2018-10-31;2018-08-11;200000.0;50.0;CESSON-SEVIGNE;France;060-Activités de recherche et d'innovation dans les centres de recherche publics et les centres de compétence, y compris la mise en réseau;2022-01-20
FEDER;Ecole nationale supérieure Mines-Télécom Atlantique Bretagne-Pays de la Loire;Chaire Cybersécurité des Infrastructures Critiques - Phase 2;La chaire Cybersécurité des Infrastructures Critiques a pour objectif de développer des solutions, validées théoriquement et expérimentalement, pour protéger et défendre les infrastructures critiques contre les cyber-attaques.;2020-01-01;2022-12-31;2019-07-11;299000.0;50.0;CESSON-SEVIGNE;France;060-Activités de recherche et d'innovation dans les centres de recherche publics et les centres de compétence, y compris la mise en réseau;2022-01-20
FEDER;UNIVERSITE DE RENNES I;CORRIBIOM;"Le projet CORRIBIOM (""Ecological CORRidors for the unseen majority of BIOdiversity : new perspectives based on Microorganisms for agroecology"") a pour objectif d’analyser les corridors écologiques et de proposer des préconisations de pratiques alternatives de gestion des agrosystèmes et d'aménagement.";2020-01-09;2022-09-30;2020-09-07;140400.0;50.0;RENNES;France;060-Activités de recherche et d'innovation dans les centres de recherche publics et les centres de compétence, y compris la mise en réseau;2022-01-20
FEDER;UNIVERSITE DE RENNES I;Plateforme projets européens (2PE) - 2016;Le pôle d'ingénierie de projets européens et internationaux (2 PE) est un dispositif au service de la recherche et de l'enseignement supérieur en Bretagne et en Pays de la Loire . Sa vocation est de faciliter l'accès aux programmes cadres européens (H2020 et Erasmus + en priorité) et aux autres sources de financement accessibles aux acteurs de l'ESR et accompagne les porteurs de projets pour des projets à dimension européenne et internationale.;2016-01-01;2016-12-31;2016-12-22;390400.0;49.95;RENNES;France;060-Activités de recherche et d'innovation dans les centres de recherche publics et les centres de compétence, y compris la mise en réseau;2022-01-20
FEDER;UNIVERSITE DE RENNES I;Plateforme projets européens (2PE) Bretagne - 2021;La Plateforme projets européens (2PE) Bretagne est un dispositif mutualisé qui soutient et valorise la participation de la communauté académique bretonne aux programmes européens dédiés à la recherche et l'innovation, Horizon Europe et à l'éducation et la formation tout au long de la vie, Erasmus+.;2021-01-01;2021-12-31;2021-01-07;652855.0;50.0;"BREST
RENNES";France;060-Activités de recherche et d'innovation dans les centres de recherche publics et les centres de compétence, y compris la mise en réseau;2022-01-20
FEDER;BREST METROPOLE;SAFER SEAS - 2015;L'opération vise à soutenir l'organisation d'un événement sur la sécurité et la sûreté maritime nommé « SAFER SEAS - a Sea Tech Event » (à Brest du 26 au 30 octobre 2015).;2014-01-05;2016-03-31;2015-11-17;254667.0;13.74;BREST;France;060-Activités de recherche et d'innovation dans les centres de recherche publics et les centres de compétence, y compris la mise en réseau;2022-01-20
FEDER;TECHNOPOLE BREST IROISE;Sea Tech Week - 2020;Organisée tous les deux ans à Brest, la Sea Tech Week® est l'occasion de rencontrer toute l'expertise de la communauté Campus mondial de la mer et de tisser des ollaborations internationales.;2019-01-12;2021-03-31;2020-10-12;160944.0;36.54;BREST;France;060-Activités de recherche et d'innovation dans les centres de recherche publics et les centres de compétence, y compris la mise en réseau;2022-01-20
FEDER;ESPACE DES SCIENCES LES CHAMPS LIBRES;Acquisition d'une sphère pour l'Espace des Sciences de Morlaix;Le projet porte sur l'acquisition d’une sphère de projection interactive pour la salle de géologie située à l'Espace des sciences à Morlaix, à la Manufacture des Tabacs.;2021-01-09;2022-03-31;2021-09-09;151008.0;40.0;MORLAIX;France;061-Activités de recherche et d'innovation dans les centres de recherche privés, y compris la mise en réseau;2022-01-20
FEDER;CA LANNION-TREGOR COMMUNAUTE;Biodiversité et bocage sur le bassin versant du Léguer;Le projet rassemble des actions de gestion et d'entretien adaptées à la préservation de la biodiversité dans les haies mais également de prendre en compte les trames vertes et bleues dans les politiques publiques.;2016-01-01;2020-04-30;2016-12-07;330296.0;16.55;LANNION;France;060-Activités de recherche et d'innovation dans les centres de recherche publics et les centres de compétence, y compris la mise en réseau;2022-01-20
FEDER;CONSERVATOIRE BOTANIQUE NATIONAL DE BREST;Cartographie des grands types de végétation en Bretagne;Le projet vise à élaborer une cartographie de la végétation au niveau régional afin de fournir une vision globale et partagée au niveau régional de l’occupation de l’espace par les végétations. Elle permettra ainsi aux collectivités de prendre en compte l’enjeu végétation sur leurs territoires.;2018-01-01;2020-06-30;2018-05-07;348834.0;24.52;REGION BRETAGNE;France;060-Activités de recherche et d'innovation dans les centres de recherche publics et les centres de compétence, y compris la mise en réseau;2022-01-20
FEDER;BRETAGNE VIVANTE SEPNB;Étude de la dynamique des populations de Grand murin;La conservation des espèces de chiroptère menacées et d'intérêt communautaire comme le Grand murin ne peut être efficace sans une compréhension fine de la dynamique de ces populations et une connaissance de leur niche écologique sur un cycle annuel. La présente étude, basée sur une collaboration entre secteurs naturaliste et scientifique, a pour objet d'améliorer les connaissances sur l'état de santé et la dynamique de population d'une espèce de chauve-souris menacée et d'intérêt communautaire, le Grand murin, et sur une caractéristique particulière aux chauves-souris : leur longévité.;2015-01-01;2018-06-30;2016-12-22;212982.0;22.66;REGION BRETAGNE;France;060-Activités de recherche et d'innovation dans les centres de recherche publics et les centres de compétence, y compris la mise en réseau;2022-01-20
FEDER;IFREMER;Initium Maris-médiation;Projet arts-sciences est initié par l'artiste Nicolas Floc'h et porte sur la représentation photographique de paysages sous-marins bretons avec un haut contenu scientifique et un volet de médiation et de communication d'envergure associé.;2019-01-01;2022-06-30;2020-08-10;424808.0;49.95;REGION BRETAGNE;France;060-Activités de recherche et d'innovation dans les centres de recherche publics et les centres de compétence, y compris la mise en réseau;2022-01-20
FEDER;ESPACE DES SCIENCES LES CHAMPS LIBRES;Labo de Merlin II;"Le projet de renouvellement d'une salle exploratoire pour le public familial, ""Le Laboratoire de Merlin II"", à l'Espace des sciences de Rennes a pour objectif de contribuer à la culture scientifique et technique en Bretagne. Les nouvelles installations consistent en des manipulations illustrant des sujets variés (énergie, mécanique, optique...) ; elles sont directement mises en œuvre par le public qui expérimente ainsi lui-même le principe scientifique.";2015-05-15;2017-08-31;2016-12-07;294000.0;30.61;RENNES;France;061-Activités de recherche et d'innovation dans les centres de recherche privés, y compris la mise en réseau;2022-01-20
FEDER;BRETAGNE VIVANTE SEPNB;Observatoire Herpétologique de Bretagne;"L'observatoire herpétologique de Bretagne a pour objectifs de coordonner et d'animer le réseau des acteurs régionaux ""amphibiens-reptiles"", de structurer la donnée naturaliste, la valider, l'analyser et la mettre à disposition et enfin d'apporter une expertise au niveau régional et local.";2020-01-07;2022-06-30;2021-08-04;196396.0;46.5;REGION BRETAGNE;France;061-Activités de recherche et d'innovation dans les centres de recherche privés, y compris la mise en réseau;2022-01-20
FEDER;BRETAGNE VIVANTE SEPNB;Plan Régional d'Actions pour le gravelot à collier interrompu en Bretagne;"Dans le but de conserver et renforcer la population bretonne de Gravelot à collier interrompu, espèce menacée à l'échelle européenne, Bretagne vivante anime un Plan régional d'actions, en collaboration avec de nombreux partenaires.
Les actions proposées dans ce plan visent 3 principaux objectifs : l'amélioration des connaissances de l'espèce et des habitats qu'elle occupe; la protection des sites de reproduction et de l'habitat des oiseaux ;
et l'information et la sensibilisation du grand public, des élus et des scolaires.";2016-01-01;2017-06-30;2016-12-22;99628.0;40.47;REGION BRETAGNE;France;060-Activités de recherche et d'innovation dans les centres de recherche publics et les centres de compétence, y compris la mise en réseau;2022-01-20
FEDER;CENTRE ETUDE VALORISATION ALGUES (CEVA);ADBIOM;Le projet ADBIOM (Aquaculture Durable : vers de nouvelles pratiques pour préserver la BIOdiversité Marine) vise à définir les bonnes pratiques permettant de garantir le maintien d'un bon état écologique des milieux marins tout en favorisant le maintien et la reconquête des habitats soumis à de multiples pressions dans les zones particulièrement riches en activités aquacoles.;2021-01-07;2023-06-30;2021-08-04;189343.0;40.0;PLEUBIAN;France;062-Transfert de technologies et coopération entre universités et entreprises, principalement au profit des PME;2022-01-20
FEDER;VEGENOV-BBV;BASIMIL;Le projet BASILIL vise à créer une variété de basilic tolérante au mildiou par la mise au point de stratégies de réduction de la pression sanitaire liée à cette maladie.;2017-01-04;2020-06-30;2019-06-13;141800.0;40.0;SAINT-POL-DE-LEON;France;059-Infrastructures de recherche et d'innovation (privées, y compris les parcs scientifiques);2022-01-20
FEDER;ADRIA DEVELOPPEMENT;BIOMICS;Le projet BIOMICS consiste à concevoir un outil de microbiologie prévisionnel afin d'évaluer la capacité des bactéries (Listeria, Bacillus et Campylobacter) à survivre au stress encouru lors de la transformation des produits laitiers et de la filière volaille notamment.;2016-01-06;2019-11-30;2016-04-14;182866.0;40.0;QUIMPER;France;061-Activités de recherche et d'innovation dans les centres de recherche privés, y compris la mise en réseau;2022-01-20
FEDER;VEGENOV-BBV;Biotechnologies végétales innovantes en appui à la création variétale;L'objectif de ce projet de ressourcement scientifique est de développer l'expertise scientifique de Vegenov pour l'exploitation de la diversité des espèces végétales et algales, l'accélération de la création de nouvelles variétés et l'acquisition d'outils d'analyse pour la mesure de la qualité des aliments et la santé des plantes.;2017-02-07;2018-12-31;2018-08-03;523000.0;40.0;SAINT-POL-DE-LEON;France;061-Activités de recherche et d'innovation dans les centres de recherche privés, y compris la mise en réseau;2022-01-20
FEDER;INSTITUT MAUPERTUIS;HLAW-THLE - Institut Maupertuis;Le projet HLAW – THLE (Hybrid Laser Arc Welding – Très Haute Limite Elastique) vise à étudier la faisabilité technico-économique d’un type de soudage sur des structures en acier technique à très haute limite élastique. L’objectif est d’offrir aux entreprises et industries de nouvelles solutions robotiques.;2017-01-02;2021-01-31;2017-09-03;300074.0;40.0;BRUZ;France;061-Activités de recherche et d'innovation dans les centres de recherche privés, y compris la mise en réseau;2022-01-20
FEDER;VEGENOV-BBV;Investissements R&D - VEGENOV - 2016;Cette opération d'investissement, complémentaire du ressourcement scientifique, porte sur l'acquisition d'une quinzaine de nouveaux équipements, en faveur du développement de nouvelles variétés et de l'optimisation de la création variétale.;2016-01-01;2017-12-31;2016-04-14;365620.0;40.0;SAINT-POL-DE-LEON;France;061-Activités de recherche et d'innovation dans les centres de recherche privés, y compris la mise en réseau;2022-01-20
FEDER;VEGENOV-BBV;Investissements R&D - VEGENOV - 2019-2020;Dans le cadre du projet VEGENOV, les investissements en R&D visent à développer des technologies innovantes d'analyse du vivant pour créer de nouvelles variétés végétales.;2019-01-01;2020-12-31;2019-09-05;700425.0;39.98;SAINT-POL-DE-LEON;France;059-Infrastructures de recherche et d'innovation (privées, y compris les parcs scientifiques);2022-01-20
FEDER;ASSOCIATION POLE CRISTAL;Laboratoire du Pôle Cristal - 2020-2021;Le projet consiste à s'appuyer sur les équipements existants du Laboratoire du Pôle Cristal, en maximiser le potentiel et les compléter afin de développer l'activité de recherche et développement du Pôle dans ses phases expérimentales.;2020-02-21;2021-09-30;2020-05-14;521968.0;40.0;DINAN;France;061-Activités de recherche et d'innovation dans les centres de recherche privés, y compris la mise en réseau;2022-01-20
FEDER;SATT OUEST VALORISATION SAS;Maturation de projets d'innovation 2019-2021;Dans le cadre de ses missions de valorisation de la recherche publique et de transfert de technologies, le programme de maturation vise à financer 7 à 12 projets de maturation issus de la recherche publique bretonne pour un transfert vers le monde industriel.;2019-08-03;2022-12-31;2019-06-13;1200000.0;25.0;REGION BRETAGNE;France;062-Transfert de technologies et coopération entre universités et entreprises, principalement au profit des PME;2022-01-20
FEDER;PHOTONICS BRETAGNE;NANF;Le projet NANF vise à mettre au point un procédé fiable et reproductible permettant de réaliser une fibre antirésonante à coeur creux en verre de silice. Ce type de fibre est un élément clé des systèmes plus complexes. Les applications concernent plusieurs domaines dont celui du micro-usinage laser, détection d'espèces chimiques ou de gaz, notamment dans l'infrarouge, voir même la transmission à haut débits dans les datas centers.;2016-01-10;2018-06-30;2016-10-14;200000.0;20.0;LANNION;France;061-Activités de recherche et d'innovation dans les centres de recherche privés, y compris la mise en réseau;2022-01-20
FEDER;INSTITUT MAUPERTUIS;PALIS HP;Le projet PALIS HP (Plateforme Applications Laser Industrielles Haute Performance) consiste à renouveler les équipements de la plate-forme laser par des équipements de dernière génération pour étendre le domaine d'activité et l’expertise de l'Institut Maupertuis, accompagner un plus grand nombre d’entreprises en développant la capacité de la technologie à d’autres métaux et à d’autres utilisateurs, tout en réalisant des économies dans le domaine des circuits de fluide et la consommation énergétique.;2018-01-07;2022-03-31;2018-11-12;1278200.0;35.53;BRUZ;France;062-Transfert de technologies et coopération entre universités et entreprises, principalement au profit des PME;2022-01-20
FEDER;UNIVERSITE DE RENNES I;PEPITE - 2019;Le Pôle Etudiant pour l'Innovation, le Transfert et l'Entrepreneuriat Bretagne Pays de la Loire sensibilise, forme et accompagne les étudiants et jeunes diplômés à l'entrepreneuriat.;2019-01-01;2019-12-31;2019-08-10;215270.0;27.41;RENNES;France;062-Transfert de technologies et coopération entre universités et entreprises, principalement au profit des PME;2022-01-20
FEDER;ACTALIA;REPLAIT;L'objectif de ce projet est d'identifier des techniques pour améliorer la qualité des laits et optimiser leurs conditions de conservation en vue de la fabrication de fromages.;2018-01-04;2019-12-31;2019-06-02;160275.0;15.6;RENNES;France;062-Transfert de technologies et coopération entre universités et entreprises, principalement au profit des PME;2022-01-20
FEDER;VEGENOV-BBV;VEGENOV - 2020-2021;Le projet consiste en l'acquisition d’équipements destinés à des travaux de R&D collectifs concernant la sélection végétale, les technologies récentes d'analyse du vivant.;2020-07-27;2023-06-30;2020-12-11;967440.0;41.76;SAINT-POL-DE-LEON;France;061-Activités de recherche et d'innovation dans les centres de recherche privés, y compris la mise en réseau;2022-01-20
FEDER;ENERGIE TRANSFERT THERMIQUE;ETT Innov;Le projet ETT Innov est un projet structurant d'entreprise visant à moderniser notre approche du marché, par le développement d'une nouvelle gamme Green Line éco-responsable avec un PRG (Pouvoir de Réchauffement Global) significativement plus faible qu'à aujourd'hui, associé à une communication à distance en mode prédictif et IOT (Internet Of Things), permettant la vente de nouvelles prestations de services attendues par nos clients, entrainant une évolution de notre production.;2020-06-25;2023-06-30;2021-04-03;1236424.0;25.0;PLOUDALMEZEAU;France;057-Investissements dans les infrastructures, capacités et équipements des grandes entreprises directement liés aux activités de recherche et d'innovation;2022-01-20
FEDER;PAULIC MEUNERIE SA;Qualista Expert;Le projet vise à améliorer la signature nutritionnelle globale des farines de blé tendre en s'appuyant sur les effets positifs d'un nouveau procédé d'ozonation.;2020-10-12;2023-06-30;2021-04-03;1666667.0;30.0;SAINT-GERAND;France;057-Investissements dans les infrastructures, capacités et équipements des grandes entreprises directement liés aux activités de recherche et d'innovation;2022-01-20
FEDER;INRIA;CARTAM - INRIA;L'objectif du projet CARTAM 2 (Cartographie des adventices et des maladies en filières grandes cultures et légumes d'industries) est d'établir de manière précoce des cartes de menaces en matière d'adventices et de maladies pour délivrer le conseil le plus adapté pour chaque parcelle. L'INRIA est chef de file de ce projet de recherche collaborative réalisé en partenariat avec Triskalia.;2019-06-01;2021-12-31;2018-08-11;105230.0;50.0;RENNES;France;062-Transfert de technologies et coopération entre universités et entreprises, principalement au profit des PME;2022-01-20
FEDER;UNIVERSITE DE BRETAGNE SUD;CHAT - UBS;L'Université de Bretagne Sud est partenaire du projet de recherche collaborative CHAT coordonné par MEDGICGROUP.;2016-01-12;2018-11-30;2016-12-22;62700.0;50.0;VANNES;France;062-Transfert de technologies et coopération entre universités et entreprises, principalement au profit des PME;2022-01-20
FEDER;COLLECTE LOCALISATION SATELLITES;CREDOC - CLS;Le projet CREDOC vise à concevoir une solution automatisant le suivi et les contrôles effectués par les institutions financières lors du transport maritime de marchandises. CLS est chef de file de ce projet de recherche collaborative réalisé en partenariat avec SEMSOFT.;2018-03-09;2021-02-03;2018-11-10;241973.0;12.5;PLOUZANE;France;062-Transfert de technologies et coopération entre universités et entreprises, principalement au profit des PME;2022-01-20
FEDER;UNIVERSITE DE RENNES I;DEEP BLUE - UR1;Afin de détecter des polluants marins, le projet DEEP BLUE propose d'améliorer les appareils de mesure en utilisant des lasers solides de longueur d'onde courte (bleu, violet et UV profond) et à spectre étroit. L'Université de Rennes 1 est chef de file de ce projet de recherche collaborative, réalisé en partenariat avec Oxxius et l'Ifremer.;2016-01-11;2019-04-30;2016-12-22;181500.0;25.0;RENNES;France;062-Transfert de technologies et coopération entre universités et entreprises, principalement au profit des PME;2022-01-20
FEDER;PHOTON LINES;EPSOLYS - Photon Lines;Photon Lines est partenaire avec l'INRA de ce projet de recherche collaborative EPSOLYS coordonné par les établissements Michel Pichon.;2017-01-12;2021-07-31;2017-12-14;260454.0;22.5;SAINT-GREGOIRE;France;062-Transfert de technologies et coopération entre universités et entreprises, principalement au profit des PME;2022-01-20
FEDER;EXCELCAR;EXCELCAR - Volet fonctionnement;Cette opération finance les actions de fonctionnement du projet EXCELCAR.;2015-01-01;2018-09-30;2015-09-15;2107000.0;5.8;REGION BRETAGNE;France;062-Transfert de technologies et coopération entre universités et entreprises, principalement au profit des PME;2022-01-20
FEDER;EXCELCAR;EXCELCAR 2;EXCELCAR2 est une plateforme ouverte permettant d'accélérer la transformation de la filière automobile-véhicules vers l'industrie du futur : projets d'innovation, démonstrateurs, formations, sur lignes pilotes et équipements industriels échelle 1.;2018-01-10;2021-09-30;2019-03-14;8002456.0;10.43;CHARTRES-DE-BRETAGNE;France;062-Transfert de technologies et coopération entre universités et entreprises, principalement au profit des PME;2022-01-20
FEDER;Ecole nationale supérieure Mines-Télécom Atlantique Bretagne-Pays de la Loire;FLEXDEC 5G - IMT Atlantique;IMT Atlantique est partenaire avec eSoftThings et l'UBS du projet de recherche collaborative FLEXDEC 5G coordonné par TurboConcept.;2017-01-01;2019-12-31;2016-08-11;53920.0;50.0;BREST;France;062-Transfert de technologies et coopération entre universités et entreprises, principalement au profit des PME;2022-01-20
FEDER;CAILABS;FLYLIGHT - CAILabs;L’objectif du projet FLYLIGHT est de concevoir une l’infrastructure optique d’une nouvelle génération de réseau aéronautique, à partir de la technologie MPLC développée par . CAILabs est chef de file de ce projet de recherche collaborative, réalisé en partenariat avec Photonics Bretagne.;2016-10-15;2018-10-14;2016-10-14;340938.0;11.25;RENNES;France;062-Transfert de technologies et coopération entre universités et entreprises, principalement au profit des PME;2022-01-20
FEDER;VEGENOV-BBV;GWASSICA - VEGENOV;VEGENOV est partenaire avec l'INRA du projet de recherche collaborative GWASSICA coordonné par OBS Innovation.;2018-01-01;2021-03-31;2016-09-11;98200.0;50.92;SAINT-POL-DE-LEON;France;062-Transfert de technologies et coopération entre universités et entreprises, principalement au profit des PME;2022-01-20
FEDER;UNIVERSITE DE RENNES I;HEALTH KER - UR1;L'Université Rennes 1 est partenaire du projet de recherche collaborativeHEALTH KER coordonné par SCALIAN DS.;2019-01-11;2022-12-31;2019-08-10;91350.0;100.0;RENNES;France;062-Transfert de technologies et coopération entre universités et entreprises, principalement au profit des PME;2022-01-20
FEDER;INSERM;HEM Dental Care - INSERM;L'objectif du projet de recherche collaborative HEM Dental Care est de permettre le développement d'un transporteur d'oxygène sous forme de gel comme adjuvant au traitement des parodontites. L'INSERM est chef de file de ce projet réalisé en partenariat avec Hemarina et HTL.;2018-01-10;2021-09-30;2018-08-11;125000.0;50.0;RENNES;France;062-Transfert de technologies et coopération entre universités et entreprises, principalement au profit des PME;2022-01-20
FEDER;SA HEMARINA;HEMLYO - Hermarina;Le projet HEMLYO est un projet de recherche dans le domaine du sang. Il a pour objectif de développer le premier porteur d’oxygène à base d’hémoglobine universel, à partir de vers marins. Hemarina est chef de file de ce projet de recherche collaborative réalisé en partenariat avec l'Université de Bretagne Occidentale.;2017-02-11;2021-12-31;2017-12-10;601400.0;22.5;MORLAIX;France;062-Transfert de technologies et coopération entre universités et entreprises, principalement au profit des PME;2022-01-20
FEDER;UNIVERSITE DE BRETAGNE OCCIDENTALE;HEMLYO - UBO;L'Université de Bretagne Occidentale est partenaire du projet de recherche collaborative HEMLYO coordonné par Hemarina.;2017-02-11;2021-12-31;2017-12-10;218032.0;50.0;BREST;France;062-Transfert de technologies et coopération entre universités et entreprises, principalement au profit des PME;2022-01-20
FEDER;SAS DYNAMIXYZ;HPPA - Dynamixyz;Le projet HPPA propose d’'incorporer du son 3D personnalisé dans les prothèses auditives afin de permettre aux personnes appareillées de suivre une conversation dans un milieu bruité. Dynamixyz est partenaire avec Centrale Supelec de ce projet de recherche collaborative coordonné par 3D Sound Labs.;2016-01-11;2020-04-30;2016-12-22;159111.0;31.42;CESSON-SEVIGNE;France;062-Transfert de technologies et coopération entre universités et entreprises, principalement au profit des PME;2022-01-20
FEDER;LEARN & GO;Kaligo DYS - Learn&Go;Le projet Kaligo DYS vise à proposer une solution logicielle sur tablette tactile associée à un stylet ergonomique pour faciliter le diagnostic et la rééducation des troubles de l'apprentissage de l'écriture comme la dysgraphie et la dyspraxie chez les enfants et les jeunes adultes. Learn&Go est chef de file de ce projet de recherche collaborative réalisé en partenariat avec Rennes 1 et Rennes 2.;2018-01-09;2020-12-31;2018-11-10;525435.0;11.25;RENNES;France;062-Transfert de technologies et coopération entre universités et entreprises, principalement au profit des PME;2022-01-20
FEDER;UNIVERSITE DE RENNES 2;Kaligo DYS - UR2;Rennes 2 est partenaire avec Rennes 1 du projet de recherche collaborative Kaligo DYS coordonné par Learn&Go.;2018-01-09;2020-12-31;2018-11-10;79000.0;50.0;RENNES;France;062-Transfert de technologies et coopération entre universités et entreprises, principalement au profit des PME;2022-01-20
FEDER;ENSTA BRETAGNE;KER-SEVECO - ENSTA BRETAGNE;L'ENSTAB est partenaire avec Mobility Tech Green du projet de recherche collaborative KER-SEVECO coordonné par KEREVAL.;2019-01-12;2022-01-07;2019-07-11;136199.0;50.0;BREST;France;062-Transfert de technologies et coopération entre universités et entreprises, principalement au profit des PME;2022-01-20
FEDER;ENERGIENCY;LEARN-IA - ENERGIENCY;LEARN-IA a pour objectif le développement d’un logiciel permettant d’améliorer la performance énergétique des bâtiments grâce à des données hétérogènes. ENERGIENCY est chef de file de ce projet de recherche collaborative réalisé en partenariat avec Script & Go et IMT Atlantique.;2019-01-07;2022-12-31;2019-08-10;322835.0;22.5;RENNES;France;062-Transfert de technologies et coopération entre universités et entreprises, principalement au profit des PME;2022-01-20
FEDER;BOCCARD;OPTIMAL - Boccard;Le projet OPTIMAL concerne la valorisation des protéines du lait. Il a pour objectif de créer un logiciel permettant d'aider à la conception et à la conduite d'un procédé de fractionnement mettant en œuvre une opération de filtration. Boccard est chef de file de ce projet de recherche collaborative, réalisé en partenariat avec l'INRA.;2017-01-04;2020-12-31;2016-10-14;292478.0;17.1;MONTAUBAN-DE-BRETAGNE;France;062-Transfert de technologies et coopération entre universités et entreprises, principalement au profit des PME;2022-01-20
FEDER;FONDATION B-COM;Parcours de télérééducation - Fondation B-Com;"B-Com est partenaire avec ARTEFACTO et le Pôle Saint Hélier du projet de recherche collaborative""Parcours de télérééducation"" coordonné par APIZEE.";2019-01-11;2022-01-02;2019-07-11;113175.0;45.0;CESSON-SEVIGNE;France;062-Transfert de technologies et coopération entre universités et entreprises, principalement au profit des PME;2022-01-20
FEDER;C RIS PHARMA;PKD STOP - C RIS PHARMA;Le CNRS/IGDR est partenaire avec C RIS PHARMA du projet de recherche collaborative PKD STOP coordonné par ManRos.;2016-01-11;2020-04-30;2016-09-13;418150.0;22.5;SAINT-MALO;France;062-Transfert de technologies et coopération entre universités et entreprises, principalement au profit des PME;2022-01-20
FEDER;GAIAGO;SAPHIR - Gaïago;VEGENOV est partenaire avec Gaïago du projet de recherche collaborative SAPHIR coordonné par Cooperl innovation.;2018-01-06;2022-11-30;2018-09-13;318840.0;22.5;SAINT-MALO;France;062-Transfert de technologies et coopération entre universités et entreprises, principalement au profit des PME;2022-01-20
FEDER;VEGENOV-BBV;SAPHIR - VEGENOV;Gaïago est partenaire avec VEGENOV du projet de recherche collaborative SAPHIR coordonné par Cooperl innovation.;2018-01-06;2022-11-30;2018-09-13;157000.0;40.0;SAINT-POL-DE-LEON;France;062-Transfert de technologies et coopération entre universités et entreprises, principalement au profit des PME;2022-01-20
FEDER;INSTITUT NATIONAL DES SCIENCES APPLIQUEES DE RENNES;Silver Connect - INSA;L'INSA est partenaire du projet de recherche collaborative Silver Connect coordonné par Telecom Santé.;2018-01-09;2022-02-28;2018-11-10;160000.0;50.0;RENNES;France;062-Transfert de technologies et coopération entre universités et entreprises, principalement au profit des PME;2022-01-20
FEDER;AZNETWORK;silver@home - Aznetwork;Le projet silver@home consiste à développer une solution globale permettant au senior de suivre l'évolution de son état de santé à domicile ou en extérieur dans de bonnes conditions. Cette solution allie hautes technologies et réseaux sociaux et médicaux. Ce projet de recherche collaborative est coordonné par Aznetwork, en partenariat avec RF Track et l'Université de Rennes 1.;2017-01-03;2020-10-31;2016-10-14;349246.0;5.63;RENNES;France;062-Transfert de technologies et coopération entre universités et entreprises, principalement au profit des PME;2022-01-20
FEDER;RF TRACK;silver@home - RF Track;RF Track est partenaire avec l'Université Rennes 1 du projet de recherche collaborative silver@home coordonné par Aznetwork.;2017-01-03;2020-10-31;2016-10-14;196488.0;25.45;RENNES;France;062-Transfert de technologies et coopération entre universités et entreprises, principalement au profit des PME;2022-01-20
FEDER;UNIVERSITE DE RENNES I;silver@home - UR1;L'Université Rennes 1 est partenaire avec RF Track du projet de recherche collaborative silver@home coordonné par Aznetwork.;2017-01-03;2020-10-31;2016-10-14;150400.0;25.0;RENNES;France;062-Transfert de technologies et coopération entre universités et entreprises, principalement au profit des PME;2022-01-20
FEDER;FRANCE ENERGIES MARINES;SUBSEE4D - FEM;France Energies Marines est partenaire, avec l'IMT Atlantique, du projet de recherche collaborative SubSEE4D dont CERVVAL est chef de file.;2020-01-01;2022-12-31;2019-12-12;241400.0;22.5;PLOUZANE;France;062-Transfert de technologies et coopération entre universités et entreprises, principalement au profit des PME;2022-01-20
FEDER;INSTITUT MAUPERTUIS;SURMOUL 3D - Institut Mauperthuis;L'Université Bretagne Sud est partenaire avec l'institut Maupertuis du projet de recherche collaborative SURMOUL 3D coordonné par Coriolis Composites.;2016-01-09;2019-01-03;2016-12-22;155012.0;40.0;BRUZ;France;062-Transfert de technologies et coopération entre universités et entreprises, principalement au profit des PME;2022-01-20
FEDER;INRAE RENNES;TUBER BIO SCAN - INRA;Le projet TUBER BIO SCAN est un projet de recherche sur la pomme-de-terre. Par l'étude des mécanismes de réaction de la pomme terre au stress hydrique, l'objectif est de proposer des outils de diagnostic et des solutions. L' INRA est partenaire avec l'IRSTEA de ce projet de recherche collaborative coordonné par Germicopa.;2018-01-01;2021-12-31;2016-09-11;129450.0;50.0;RHEU (LE);France;062-Transfert de technologies et coopération entre universités et entreprises, principalement au profit des PME;2022-01-20
FEDER;ECOLE NAVALE;ULISS EMR - École navale;L'École navale est partenaire du projet de recherche collaborative ULISS MER coordonné par Entech.;2017-01-09;2020-03-31;2016-09-11;104924.0;50.0;BREST;France;062-Transfert de technologies et coopération entre universités et entreprises, principalement au profit des PME;2022-01-20
FEDER;INSERM;UV4LIFE - INSERM;L'Université Rennes 1 est partenaire avec l'INSERM du projet de recherche collaborative UV4LIFE coordonné par OXXIUS SA.;2019-09-16;2023-03-16;2019-12-09;63000.0;100.0;RENNES;France;062-Transfert de technologies et coopération entre universités et entreprises, principalement au profit des PME;2022-01-20
FEDER;UNIVERSITE DE RENNES I;UV4LIFE - UR1;L'INSERM est partenaire avec l'Université Rennes 1 du projet de recherche collaborative UV4LIFE coordonné par OXXIUS SA.;2019-09-16;2023-03-16;2019-12-09;169000.0;50.0;RENNES;France;062-Transfert de technologies et coopération entre universités et entreprises, principalement au profit des PME;2022-01-20
FEDER;ABYSS INGREDIENTS;VIPP - Abyss Ingredients;L'Université Rennes 1 est partenaire avec Abyss Ingredient du projet de recherche collaborative VIPP coordonné par C RIS Pharma.;2018-12-20;2022-11-30;2018-11-12;269520.0;22.5;CAUDAN;France;062-Transfert de technologies et coopération entre universités et entreprises, principalement au profit des PME;2022-01-20
FEDER;UNIVERSITE DE RENNES I;VIPP - UR1;Abyss Ingredients est partenaire avec l'Université Rennes 1 du projet de recherche collaborative VIPP coordonné par C RIS Pharma.;2018-12-20;2022-11-30;2018-11-12;138412.0;50.0;RENNES;France;062-Transfert de technologies et coopération entre universités et entreprises, principalement au profit des PME;2022-01-20
FEDER;SARL MER AGITEE;WINDFIELD - MER AGITEE;Mer Agitée est partenaire avec SensUp du projet de recherche collaborative WINDFIELD coordonné par Telecom Bretagne.;2016-01-09;2019-12-31;2016-10-14;194104.0;25.76;FORET-FOUESNANT (LA);France;062-Transfert de technologies et coopération entre universités et entreprises, principalement au profit des PME;2022-01-20
FEDER;Ecole nationale supérieure Mines-Télécom Atlantique Bretagne-Pays de la Loire;WINDFIELD - Telecom Bretagne;L’objectif du projet WINDFIELD est de concevoir, développer et tester le démonstrateur d’une solution innovante pour la mesure de vent en temps réel (micro-capteurs laser synchronisés).Les domaines d'application sont nombreux: course au large, surveillance des risques nucléaires, bactériologiques ou chimiques, etc. Telecom Bretagne est chef de file de ce projet de recherche collaborative réalisé en partenariat avec Mer Agitée et SensUp.;2016-01-09;2019-12-31;2016-10-14;73346.0;68.17;PLOUZANE;France;062-Transfert de technologies et coopération entre universités et entreprises, principalement au profit des PME;2022-01-20
FEDER;BIOTECH SANTE BRETAGNE;Soutien à l'innovation dans les 2 filières Biotechnologies et Santé en Bretagne dans le cadre des stratégies régionales S3, SRDEII, BreizhCop;La santé et les biotechnologies sont reconnues comme filières stratégiques et leviers d'innovation dans la S3 régionale. Par sa connaissance des atouts et enjeux, Biotech Santé Bretagne accompagne la mise en réseau des acteurs, l'animation de plusieurs leviers thématiques de la nouvelle S3, et la structuration des 2 filières.;2021-01-01;2021-12-31;2021-09-09;400000.0;50.0;REGION BRETAGNE;France;061-Activités de recherche et d'innovation dans les centres de recherche privés, y compris la mise en réseau;2022-01-20
FEDER;CBB CAPBIOTEK;CAPBIOTEK - 2017;Le projet vise à poursuivre en 2017 la structuration du secteur des biotechnologies en Bretagne en faveur de l'innovation et la filière, en lien avec la S3, notamment pour favoriser l'émergence de projets structurants en biotechnologies.;2017-01-01;2017-12-31;2017-09-14;200000.0;50.0;REGION BRETAGNE;France;061-Activités de recherche et d'innovation dans les centres de recherche privés, y compris la mise en réseau;2022-01-20
FEDER;BRETAGNE DEVELOPPEMENT INNOVATION;Mise en œuvre de la S3 - 2016;Mise en œuvre de la stratégie spécialisée intelligente (S3) à travers la structuration de données économiques sur les domaines d'innovation stratégiques (DIS), le positionnement sur le plan européen de projets bretons liés à la S3 et l'organisation d'actions de valorisation de la S3 au niveau régional.;2016-01-01;2016-12-31;2016-12-07;763477.0;50.0;REGION BRETAGNE;France;061-Activités de recherche et d'innovation dans les centres de recherche privés, y compris la mise en réseau;2022-01-20
FEDER;BRETAGNE DEVELOPPEMENT INNOVATION;Mise en oeuvre de la S3 - 2017;L’opération rassemble toutes les activités menées par BDI pour la mise en œuvre de la S3 pour l’année 2017 à travers la structuration de données économiques sur les domaines d'innovation stratégiques, le positionnement sur le plan européen de projets bretons liés à la S3 et l'organisation d'actions de valorisation au niveau régional.;2017-01-01;2017-12-31;2017-12-10;697270.0;50.0;REGION BRETAGNE;France;061-Activités de recherche et d'innovation dans les centres de recherche privés, y compris la mise en réseau;2022-01-20
FEDER;BRETAGNE DEVELOPPEMENT INNOVATION;Mise en œuvre de la S3 - 2018;Poursuite de la mise en oeuvre de la S3 pour l’année 2018 à travers la structuration de données économiques sur les domaines d'innovations stratégiques (DIS), le positionnement sur le plan européen de projets bretons liés à la S3 et l'organisation d'actions de valorisation de la S3 au niveau régional.;2018-01-01;2018-12-31;2018-11-10;947900.0;47.1;CESSON-SEVIGNE;France;061-Activités de recherche et d'innovation dans les centres de recherche privés, y compris la mise en réseau;2022-01-20
FEDER;BRETAGNE DEVELOPPEMENT INNOVATION;Mise en œuvre de la S3 - 2019;"Mise en œuvre de la ""stratégie de spécialisation intelligente"" (S3) à travers la structuration de données économiques sur les domaines d'innovations stratégiques (DIS), le positionnement européen de projets bretons liés à la S3 et l'organisation d'actions de valorisation de la S3 au niveau régional.";2019-01-01;2019-12-31;2019-12-09;1183480.0;48.11;CESSON-SEVIGNE;France;061-Activités de recherche et d'innovation dans les centres de recherche privés, y compris la mise en réseau;2022-01-20
FEDER;BRETAGNE DEVELOPPEMENT INNOVATION;Mise en œuvre de la S3 - 2020;"Mise en œuvre de la S3 à travers :
- la structuration et le développement de données économiques et les compétences disponibles sur les domaines d'innovations stratégiques (DIS) ;
- le positionnement européen de projets bretons liés à la S3 ;
- l'organisation de l'European Cyber Week.";2020-01-01;2020-12-31;2020-10-09;700000.0;50.0;CESSON-SEVIGNE;France;061-Activités de recherche et d'innovation dans les centres de recherche privés, y compris la mise en réseau;2022-01-20
FEDER;BRETAGNE DEVELOPPEMENT INNOVATION;Mise en œuvre de la S3 pour les technologies du numérique et de l'électronique;Le projet vise à mettre en œuvre les principes de la stratégie de spécialisation intelligente (S3) pour les technologies du numérique et de l'électronique en participant à l’élaboration de plusieurs stratégies (filière numérique, cybersécurité), en accompagnant le montage de projets européens, en participant à la gouvernance de la SRDEII, en actualisant des bases de données et enfin par une mission d’observatoire de la cybersécurité.;2015-01-01;2015-12-31;2015-09-15;80000.0;50.0;REGION BRETAGNE;France;061-Activités de recherche et d'innovation dans les centres de recherche privés, y compris la mise en réseau;2022-01-20
FEDER;UNIVERSITE DE RENNES I;Plug in labs Ouest - 2016;Plug in labs Ouest est le portail de compétences des laboratoires de recherche publics de Bretagne, dont l'objectif principal est d'accélérer les mises en relation entre partenaires socio-économiques et experts scientifiques sur le territoire régional.;2016-01-01;2016-12-31;2016-12-07;102245.0;22.01;REGION BRETAGNE;France;060-Activités de recherche et d'innovation dans les centres de recherche publics et les centres de compétence, y compris la mise en réseau;2022-01-20
FEDER;REGION BRETAGNE FONDS EUROPEENS;Acquisition de masques nécessaires au secteur de la santé;Le projet consiste en l'achat de 1,9 million de masques, mis à disposition des collectivités locales bretonnes, pour une redistribution rapide et coordonnée sur leur territoire.;2020-03-23;2020-12-31;2020-09-07;1986175.0;100.0;REGION BRETAGNE;France;053-Infrastructures de santé;2022-01-20
FEDER;ASS BRETONNE INTERPROFESSIONNELLE BOIS;ABIBOIS 2016-2017;A travers son travail d'animation des entreprises, ABIBOIS offre la possibilité d'apporter une offre en lien avec la marque « Bois Français ». En 2016-2017, l'accompagnement des entreprises se traduit par l'organisation de rencontres collectives et d'accompagnements individuels, le guide « Bois Locaux & Savoir-faire bretons » sera actualisé.;2016-01-01;2017-12-31;2017-07-02;259996.0;15.0;REGION BRETAGNE;France;067-Développement commercial des PME, soutien à l'esprit d'entreprise et à l'incubation (y compris le soutien aux entreprises issues de l'essaimage);2022-01-20
FEDER;AGEFOS PME REGION BRETAGNE;CAPE;"L'opération intitulée ""CAPE – Conseil Action Petite Entreprise"", menée par l'Agefos PME s’adresse aux PME bretonnes de tous secteurs d’activité et cible plus particulièrement les entreprises de moins de 50 salariés. Ce dispositif d’analyse et de conseil doit permettre d’accompagner 100 dirigeants d’entreprises dans la stratégie de développement de leur société.";2017-01-12;2019-09-30;2018-08-02;519988.0;30.0;REGION BRETAGNE;France;066-Services d'appui avancé aux PME et groupes de PME (y compris services de gestion, de commercialisation et de conception);2022-01-20
FEDER;GRAIN DE SAIL;Atelier du chocolat : un site industriel du futur;"Le projet porté par Grain de sail vise la construction d'un ""site industriel du futur"" (nouvel atelier de transformation du chocolat automatisé), s'appuyant sur des technologies de pointe et répondant simultanément à des enjeux organisationnels, environnementaux et sociétaux.";2020-03-07;2021-06-30;2020-12-11;1088800.0;20.21;MORLAIX;France;001-Investissement productif générique dans les petites et moyennes entreprises («PME»);2022-01-20
FEDER;SYND MIXTE E-MEGALIS BRETAGNE;Bretagne Très Haut Débit - Phase 1;"Le projet Bretagne Très Haut Débit (BTHD) a pour ambition d'amener le Très Haut Débit (THD) à travers la fibre optique à 100 % des foyers bretons à l'horizon 2030. 
La première phase (2014-2018) est le déploiement de la fibre optique pour environ 240 000 locaux.";2014-01-01;2022-12-31;2017-12-14;278185407.0;28.36;REGION BRETAGNE;France;"047-TIC: Réseau haut débit à très grande vitesse (accès/boucle locale; >/= 100 Mbps)";2022-01-20
FEDER;MICRO LYNX PHOTOGRAVURE;Modernisation de Micro Lynx;La projet consiste à l'achat de nouveaux équipements pour moderniser le process et gagner en compétitivité afin de pérenniser l'entreprise et ses emplois.;2020-08-26;2021-08-26;2020-10-12;1200000.0;16.67;RENNES;France;001-Investissement productif générique dans les petites et moyennes entreprises («PME»);2022-01-20
FEDER;PETR DU PAYS DE MORLAIX;Co-construire une stratégie numérique de territoire;"Le projet consiste à réaliser une étude intitulée ""Co-construire une stratégie numérique de territoire"". Ce projet est porté à l'échelle du Pays de Morlaix, composé de 3 EPCI (Communauté de communes du Pays de Landivisiau, Morlaix Communauté, Haut Léon Communauté). Son objectif est de définir et de partager une vision cohérente numérique pour l'avenir à 3/5 ans, avec les acteurs locaux et EPCI.";2019-01-03;2021-12-31;2021-01-07;62381.0;29.66;Pays de Morlaix;France;080-Services et applications en matière d'inclusion en ligne, d'accessibilité en ligne, d'apprentissage et d'éducation en ligne, culture numérique;2022-01-20
FEDER;EMP ROTOMOULAGE;Modernisation d'EMP MOTOROULAGE;"L'entreprise EMP ROTOMOULAGE poursuit ses investissements pour accompagner son développement. Cela implique aussi le fonctionnement interne de l'entreprise qui a mis en 2020 l'accent sur l'amélioration de son système d'information et sur l'amélioration des conditions de travail des opérateurs de production.
Dans la continuité de ce travail réalisé en 2020, EMP ROTOMOULAGE souhaite désormais fiabiliser le suivi de ses stocks, assurer la traçabilité de ses produits et surtout maitriser ses coûts de fabrication. C'est dans ce cadre, qu'elle a décidé d'investir dans un ERP et dans un système d'étiquetage RFID pour ses produits finis.";2020-05-11;2021-12-31;2021-04-03;98610.0;44.0;DOL-DE-BRETAGNE;France;001-Investissement productif générique dans les petites et moyennes entreprises («PME»);2022-01-20
FEDER;ROI MORVAN COMMUNAUTE;Centre de télé-travail pour travailleurs et entrepreneurs;La réhabilitation d'un ancien local commercial en télé-centre tout équipé offre un lieu adapté aux besoins des travailleurs du secteur tertiaire et des entreprises du territoire.;2015-05-10;2016-01-05;2017-06-07;34944.0;42.93;GOURIN;France;"048-TIC: Autres types d'infrastructures TIC/ressources informatiques à grande échelle/ équipements (y compris les infrastructures en ligne, les centres de données et les capteurs; également lorsqu";2022-01-20
FEDER;ALLIORA;Modernisation des procédés de fabrication de l'entreprise Alliora;Dans le cadre de la réponse à l'AAP Process & Numérisation, l’entreprise souhaite automatiser et robotiser ses lignes de production. Elle souhaite également engager une transformation numérique grâce à la mise en place d’un configurateur digital dédié à la conception en ligne et à l’achat des coffrets personnalisés.;2021-03-29;2022-06-30;2021-01-07;980850.0;24.61;FOUGERES;France;001-Investissement productif générique dans les petites et moyennes entreprises («PME»);2022-01-20
FEDER;LE POOOL;Communication, numérique et territoire - 2017-2018;"Le projet ""La communication au service de la valorisation de l'écosystème numérique et du territoire"" promeut et valorise les startups innovantes, les talents aux compétences permettant de développer de nouveaux services et outils, de nouvelles applications numériques.";2017-01-01;2018-12-31;2017-06-07;487640.0;16.67;"CARENTOIR
La Gacilly
MALESTROIT
RENNES
SAINT-MALO";France;082-Services et applications TIC pour les PME (y compris le commerce électronique, le e-Business et les processus d'entreprise en réseau), les laboratoires vivants, les entrepreneurs web et les start-;2022-01-20
FEDER;TLHP;Numérisation et amélioration des process pour TLHP;"Dans le cadre de l'appel à projets ""Process & Numérisation"" de la Région, l’entreprise TLHP investit dans l’achat de 2 robots miniloads (ou trans-stockeur) pour automatiser le système de stockage et ainsi améliorer la productivité et les conditions de travail.";2020-11-23;2021-12-31;2021-10-06;979460.0;24.89;BOURGBARRE;France;001-Investissement productif générique dans les petites et moyennes entreprises («PME»);2022-01-20
FEDER;CC BRETAGNE PORTE DE LOIRE COMMUNAUTE;Création d'un nouveau portail internet pour une meilleure identification du territoire - partie Bretagne Porte Loire Communauté;Suite à différentes fusions qui font évoluer les territoires, il apparaît que les sites existants ne correspondent plus à la réalité administrative des territoires et ne répondent plus aux nouveaux usages numériques des habitants. Il s'agit donc de concevoir un nouveau portail internet à l'échelle du Pays des Vallons de Vilaine. Le projet concerne essentiellement la conception des sites relatifs à Bretagne Porte de Loire Communauté, l'une des deux composantes territoriales du pays des Vallons de Vilaine et de son portail mutualisé entre les deux communautés de communes.;2017-01-01;2021-04-30;2021-09-12;48057.0;65.16;Bretagne porte de Loire Communauté;France;"048-TIC: Autres types d'infrastructures TIC/ressources informatiques à grande échelle/ équipements (y compris les infrastructures en ligne, les centres de données et les capteurs; également lorsqu";2022-01-20
FEDER;HLB;Numérisation et outils industriels pour HLB;"Dans le cadre de l'appel à projets ""Process & numérisation"" de la Région Bretagne, l’entreprise HLB investit dans un nouvel outil informatique (ERP) de partage de l’information et de suivi de ses activités ainsi que du matériel industriel pour améliorer sa productuvité.";2021-01-13;2021-12-31;2021-06-05;731050.0;25.28;ELVEN;France;001-Investissement productif générique dans les petites et moyennes entreprises («PME»);2022-01-20
FEDER;ROCHE AUX FEES COMMUNAUTE;Dolmen de la Roche aux Fées;Réalisation d'un dispositif d'interprétation numérique de la construction du dolmen de la Roche aux Fées. Le public est invité à suivre la démarche de l'archéologue pour tenter de connaitre à la fois les bâtisseurs et les compétences, connaissances, techniques, moyens humains et matériels que requiert un projet architectural comme celui de la construction d’un dolmen.;2015-09-03;2016-06-30;2017-11-05;29055.0;50.0;ESSE;France;"048-TIC: Autres types d'infrastructures TIC/ressources informatiques à grande échelle/ équipements (y compris les infrastructures en ligne, les centres de données et les capteurs; également lorsqu";2022-01-20
FEDER;SAS LODI;Outil de gestion informatisée de la relation client pour LODI;"Dans le cadre de l'appel à projets ""Process & numérisation"" de la Région Bretagne, la SAS LODI implante un outil de gestion informatisée de la relation client (CRM) pour exploiter la base de client de l’ERP de l’entreprise ainsi que les remontées du terrain.";2020-11-27;2021-12-31;2021-06-05;59940.0;40.0;GRAND-FOUGERAY;France;001-Investissement productif générique dans les petites et moyennes entreprises («PME»);2022-01-20
FEDER;COMMUNAUTE DE COMMUNES DE HAUTE CORNOUAILLE;Équipements numériques pour une médiathèque départementale;Le projet consiste en l'achat de matériel et d'équipement informatique pour la médiathèque. L'objectif est d'accueillir à la fois le public aux heures d'ouverture, le public cybernaute du territoire de Haute Cornouaille mais aussi des ateliers spécifiques sur différents thèmes et des formations pour toutes les populations actives du territoire.;2016-02-26;2016-11-30;2017-06-07;17026.0;69.99;PLONEVEZ-DU-FAOU;France;080-Services et applications en matière d'inclusion en ligne, d'accessibilité en ligne, d'apprentissage et d'éducation en ligne, culture numérique;2022-01-20
FEDER;GROUPE LE DELLIOU ENVIRONNEMENT;Transformation numérique du groupe GLD Environnement;"Dans le cadre de l'appel à projets ""Process&Numérisation"" de la Région Bretagne, le groupe GLD Environnement acquière un ERP pour améliorer sa compétitivité dans le cadre de sa transformation numérique et de la refonte de son système d’information globale.";2020-09-25;2021-12-31;2021-08-04;232917.0;34.35;LOCOAL-MENDON;France;001-Investissement productif générique dans les petites et moyennes entreprises («PME»);2022-01-20
FEDER;@ ESTIM NUMERIQUE;ESTIM Numérique pour les femmes;Le projet vise à professionnaliser l'association ESTIM Numérique par des recrutements en vue de favoriser l'intégration des femmes par les technologies de l'information.;2018-11-15;2022-12-31;2020-05-14;287958.0;22.04;Métropôle de Rennes;France;080-Services et applications en matière d'inclusion en ligne, d'accessibilité en ligne, d'apprentissage et d'éducation en ligne, culture numérique;2022-01-20
FEDER;UNION REGION SOC COOPER OUVRIERE PRODUCT;ALTER'REBOND;"L’accompagnement d’Alter Rebond se compose de trois dispositifs complémentaires :
- un accompagnement gratuit ;
- un plan de relance d’entraide et solidaire ;
- des actions de formations à distance.";2020-03-15;2021-12-31;2020-10-09;100513.0;49.91;REGION BRETAGNE;France;073-Soutien aux entreprises sociales (PME);2022-01-20
FEDER;COMMUNE DE BREST;Fab@brest;Il s'agit de soutenir un projet de développement numérique, à l'échelle de Brest Métropole, en direction des habitants par le biais de la formation des acteurs proposant de la médiation numérique. La méthode proposée est collaborative avec des acteurs locaux et des bénéficiaires associés aux différentes phases du projet.;2018-01-01;2021-12-31;2018-05-07;179512.0;50.0;Métropôle de Brest;France;080-Services et applications en matière d'inclusion en ligne, d'accessibilité en ligne, d'apprentissage et d'éducation en ligne, culture numérique;2022-01-20
FEDER;CA GOLFE DU MORBIHAN - VANNES AGGLOMERATION;Centrale photovoltaïque pour la piscine d'Elven;Golfe du Morbihan-Vannes Agglomération met en place une centrale photovoltaïque sur ombrières à Elven, sur le site du centre aquatique communautaire. L’énergie produite a vocation à être autoconsommée.;2018-08-31;2022-04-30;2021-06-05;158407.0;70.0;ELVEN;France;010-Énergies renouvelables: énergie solaire;2022-01-20
FEDER;Ecole nationale supérieure Mines-Télécom Atlantique Bretagne-Pays de la Loire;FHYRennes;"Le projet ""Formations Hybrides à Rennes"" consiste à mettre en place des formations innovantes au format MOOC hybride (en ligne et accompagné) portant sur le numérique et l’internet des objets. Les applications concernent notamment les domaines des réseaux électriques intelligents et du véhicule électrique.";2018-01-03;2021-12-31;2019-06-13;520742.0;50.62;Rennes Métropole;France;080-Services et applications en matière d'inclusion en ligne, d'accessibilité en ligne, d'apprentissage et d'éducation en ligne, culture numérique;2022-01-20
FEDER;CC PRESQU'ILE DE CROZON-AULNE MARITIME;Chaufferie bois à la piscine de Crozon;La communauté de communes de la Presqu'île de Crozon exploite en régie depuis 2007 la piscine intercommunale Nautil'Ys. Suite à un audit énergétique, la collectivité a décidé la construction d’une chaufferie bois à la piscine intercommunale qui sera alimentée par le filière bois énergie locale.;2015-05-20;2016-06-30;2018-09-13;408202.0;15.81;CROZON;France;011-Énergies renouvelables: énergie de biomasse;2022-01-20
FEDER;ANTICIPA ADIT;French Tech Brest +;"L'opération consiste à organiser des actions labellisées dans le cadre des ""Métropoles French Tech"" à Brest ainsi qu'à Lannion, Morlaix et Quimper, en réponse à l'appel à projets national de 2015.";2016-01-01;2018-12-31;2016-09-11;219906.0;25.0;"BREST
LANNION
MORLAIX
QUIMPER";France;082-Services et applications TIC pour les PME (y compris le commerce électronique, le e-Business et les processus d'entreprise en réseau), les laboratoires vivants, les entrepreneurs web et les start-;2022-01-20
FEDER;COMMUNE DE COMMANA;Chaufferie bois et réseau de chaleur pour le complexe scolaire de Commana;Le projet consiste en la création d'une chaufferie bois et d'un réseau de chaleur desservant le groupe scolaire de Commana, engageant une action de maîtrise de la consommation et de développement des énergies renouvelables issues de filière locale.;2018-01-09;2020-07-30;2020-09-07;293140.0;18.25;COMMANA;France;023-Mesures environnementales visant à réduire et/ou à éviter les émissions de gaz à effet de serre (y compris le traitement et le stockage du méthane et le compostage);2022-01-20
FEDER;TECHNOPOLE BREST IROISE;French Tech Brest + Technolope Brest Iroise;"Le projet consiste à l'organisation d'actions labellisées dans le cadre des ""Métropoles French Tech"" à Brest ainsi qu'à Lannion, Morlaix et Quimper, en réponse à l'appel à projet national de 2015.";2015-01-09;2018-12-31;2017-12-14;373128.0;25.0;"COTES-D'ARMOR
FINISTERE";France;082-Services et applications TIC pour les PME (y compris le commerce électronique, le e-Business et les processus d'entreprise en réseau), les laboratoires vivants, les entrepreneurs web et les start-;2022-01-20
FEDER;COMMUNE DE PLOUEZOC'H;Chaufferie bois granulés et réseau de chaleur à Plouezoc'h;Le projet consiste à installer une chaufferie bois granulés et un réseau de chaleur pour la commune de Plouezoc'h.;2019-05-20;2020-01-09;2020-10-12;172860.0;22.18;PLOUEZOCH;France;023-Mesures environnementales visant à réduire et/ou à éviter les émissions de gaz à effet de serre (y compris le traitement et le stockage du méthane et le compostage);2022-01-20
FEDER;TECHNOPOLE QUIMPER CORNOUAILLE;French Tech Brest + Technopole Quimper Cornouaille;"Le projet consiste à l'organisation d'actions labellisées dans le cadre des ""Métropoles French Tech"" à Brest ainsi qu'à Lannion, Morlaix et Quimper, en réponse à l'appel à projet national de 2015.";2016-01-01;2018-12-31;2016-09-11;172300.0;25.0;"COTES-D'ARMOR
FINISTERE";France;082-Services et applications TIC pour les PME (y compris le commerce électronique, le e-Business et les processus d'entreprise en réseau), les laboratoires vivants, les entrepreneurs web et les start-;2022-01-20
FEDER;COMMUNE DE PEDERNEC;Chaufferie bois pour bâtiments communaux à Pédernec;Le projet consiste en la création d'une chaufferie bois plaquette, afin d'alimenter les bâtiments communaux scolaires et périscolaire de Pédernec en chauffage et eau chaude sanitaire.;2016-01-06;2018-07-31;2019-06-13;268491.0;16.88;PEDERNEC;France;011-Énergies renouvelables: énergie de biomasse;2022-01-20
FEDER;SADAL ENGINEERING;HERMINE : Application innovante de découverte des patrimoines;Il s’agit de proposer une information touristique de qualité aux touristes et visiteurs lorsque ceux-ci passent à proximité d’un lieu d’intérêt patrimonial ou culturel équipé.;2018-05-14;2019-11-30;2021-04-03;86967.0;78.95;Pays de Ploërmel - Coeur de Bretagne;France;"048-TIC: Autres types d'infrastructures TIC/ressources informatiques à grande échelle/ équipements (y compris les infrastructures en ligne, les centres de données et les capteurs; également lorsqu";2022-01-20
FEDER;COHERENCE ENERGIES;ECLAIRS;Le projet ECLAIRS (pour Energie Citoyenne Locale en Autoconsommation Innovante de Rennes Sud) consiste à réaliser deux boucles locales d’autoconsommation collective dans les quartiers sud de la ville de Rennes, sur la base d’une initiative citoyenne.;2019-04-11;2023-03-31;2020-12-11;817911.0;65.0;RENNES;France;023-Mesures environnementales visant à réduire et/ou à éviter les émissions de gaz à effet de serre (y compris le traitement et le stockage du méthane et le compostage);2022-01-20
FEDER;SAS DIORREN PROJECT;Le Ker - Parc à thème;"Cette opération est la création d'un parc à thème, « Le Ker », dédié à la culture et au patrimoine breton, et plus spécifiquement à l'Histoire de Vannes et du golfe du Morbihan. 
Le parc ambitionne de relater l'histoire de la Bretagne en proposant des activités ludiques et dynamiques à l'aide des toutes dernières nouveautés multimédia et numériques (film historique en 3D, salle de cinéma dynamique sensorielle équipée du système Infini'D).";2015-01-09;2016-05-31;2016-09-13;721701.0;10.48;VANNES;France;080-Services et applications en matière d'inclusion en ligne, d'accessibilité en ligne, d'apprentissage et d'éducation en ligne, culture numérique;2022-01-20
FEDER;NWJ MET;Energy Breizh Box;Le projet consiste en l'installation d'un réseau de 9 NW J Box en Bretagne. Ce dispositif de stockage d'énergie pilotée par un système intelligent autonome assure la régularité de fréquence sur le réseau de distribution électrique.;2019-01-10;2020-12-31;2020-10-09;5373990.0;40.0;"ALLAIRE
BIGNAN
MELGVEN
MONTREUIL-LE-GAST
PLOEREN
PLOUHARNEL
SAINT-BRIEUC-DES-IFFS
VEZIN-LE-COQUET
VITRE";France;003-Investissement productif dans les grandes entreprises lié à une économie à faible intensité de carbone;2022-01-20
FEDER;SERVICE HYDROGRAPHIQUE ET OCEANOGRAPHIQUE DE LA MARINE;Litto3D;Le projet Litto3D consiste en l'acquisition de l'ensemble des données géographiques du littoral de la Bretagne au profit du développement de l'économie numérique et maritime et de la gestion des risques littoraux bretons.;2018-11-20;2022-12-31;2019-09-05;4275000.0;23.39;REGION BRETAGNE;France;"048-TIC: Autres types d'infrastructures TIC/ressources informatiques à grande échelle/ équipements (y compris les infrastructures en ligne, les centres de données et les capteurs; également lorsqu";2022-01-20
FEDER;SUEZ RV OUEST SASU;Injection au réseau GRDF de biométhane produit par l'Ecopôle de Gueltas;Le projet consiste à injecter le biométhane produit sur l’écopôle de Gueltas (56) au réseau de distribution de gaz à partir de déchets ultimes non valorisables issus d'entreprises et collectivités de Bretagne.;2017-01-07;2018-12-31;2019-03-14;301676.0;26.04;GUELTAS;France;012-Autres types d'énergies renouvelables (y compris l'énergie hydroélectrique, géothermique et marine) et intégration des énergies renouvelables (y compris stockage, infrastructures de production;2022-01-20
FEDER;MAISON DU TOURISME BAIE DE MORLAIX - MONTS D'ARREE;Nouvelle stratégie numérique de la Maison du tourisme Baie de Morlaix;Le projet consiste en une campagne d'affichage au lancement du nouveau site web, sur mobilier urbain ainsi qu'une diffusion sur les réseaux sociaux.;2018-01-01;2020-03-31;2021-04-03;59724.0;45.17;Morlaix Communauté;France;080-Services et applications en matière d'inclusion en ligne, d'accessibilité en ligne, d'apprentissage et d'éducation en ligne, culture numérique;2022-01-20
FEDER;DEM BE POS;Installation chaufferie biomasse dans une poussinière;L’entreprise DEM BE POS assure l’élevage de poussins durant leurs premières semaines. Une chaudière biomasse a été installée afin de couvrir les besoins thermiques de l’exploitation à partir d’une ressource énergétique locale et neutre en carbone.;2018-03-09;2019-06-28;2020-08-10;239682.0;65.0;GUER;France;011-Énergies renouvelables: énergie de biomasse;2022-01-20
FEDER;ASSOCIATION BUG;Phalanstère;Le projet Phalanstère porte sur la formation des populations et de leurs médiateurs aux usages numériques via des ateliers et tiers-lieux pour former aux rudiments du numérique. Une plateforme interopérable de badges numériques est également développée pour permettre de valoriser les savoirs acquis par l’ensemble des bénéficiaires.;2017-12-04;2021-12-31;2019-12-09;217058.0;52.41;Rennes Métropole;France;"048-TIC: Autres types d'infrastructures TIC/ressources informatiques à grande échelle/ équipements (y compris les infrastructures en ligne, les centres de données et les capteurs; également lorsqu";2022-01-20
FEDER;SYNDICAT DEPARTEMENTAL D ENERGIE ET D EQUIPEMENT DU FINISTERE;Iroise Nerzh connect;Afin de réduire la consommation en énergie et de favoriser l'utilisation d'énergie renouvelable au sein de la Communauté de Communes du pays d'Iroise, le projet Iroise Nerzh connect, porté par le Syndicat départemental d'énergie du Finistère, vise à fournir un système de gestion intelligente et de pilotage de la consommation, en utilisant des services smart city bas-débit. Citoyens et entreprises du territoire seront régulièrement informés des données relatives à la consommation d'énergie et sensibilisés aux démarches d'économie à développer.;2019-01-01;2021-12-31;2021-11-16;1563246.0;40.0;Communauté de communes du Pays d'Iroise;France;012-Autres types d'énergies renouvelables (y compris l'énergie hydroélectrique, géothermique et marine) et intégration des énergies renouvelables (y compris stockage, infrastructures de production;2022-01-20
FEDER;POLE METROPOLITAIN DU PAYS DE BREST;Pilotage du foncier économique en Pays de Brest;Le projet consiste en la création d’une base de données dédiée à la gestion du foncier économique et à la gestion de la relation client avec les prospects et les entreprises installées ainsi qu’une une application extranet pour l'animation du Système d'Information, accessible à l'ensemble des EPCI du Pays de Brest et à leurs aménageurs.;2017-04-21;2018-04-07;2019-12-09;74880.0;30.0;Pays de Brest;France;078-Services et applications d'administration en ligne (y compris passation des marchés publics en ligne, mesures dans le domaine des TIC soutenant la réforme de l'administration publique, mesures;2022-01-20
FEDER;LANGUEUX;Optimisation énergétique au bénéfice de bâtiments publics;Dans le cadre de la reconstruction de la salle omnisport de Langueux (22), des panneaux photovoltaïques sont déployés sur la toiture et une batterie de stockage installée. Les besoins électriques de l’équipement seront couverts et le surplus sera redistribué aux bâtiments communaux limitrophes.;2017-01-01;2019-05-31;2019-09-05;67543.0;65.0;LANGUEUX;France;010-Énergies renouvelables: énergie solaire;2022-01-20
FEDER;AUDELOR - LORIENT TECHNOPOLE;Plate-forme numérique en Bretagne Sud;La création de cette plate-forme de mise en réseau de tiers lieux vise à développer les usages du numérique en rassemblant les différents acteurs locaux. Le but est de renforcer l'attractivité, le rayonnement, l'innovation et le développement du Pays de Lorient et de la Bretagne Sud tout en agissant sur les facteurs d'exclusion.;2017-01-09;2019-03-17;2019-08-10;124259.0;79.05;LORIENT;France;082-Services et applications TIC pour les PME (y compris le commerce électronique, le e-Business et les processus d'entreprise en réseau), les laboratoires vivants, les entrepreneurs web et les start-;2022-01-20
FEDER;CC PRESQU'ILE DE CROZON-AULNE MARITIME;Plateforme et bâtiments de stockage;Ce projet porte sur la construction d'un bâtiment de stockage des plaquettes bois d'une superficie d'environ 600 m2 y compris un local pour engins, et également sur la construction d'une plateforme d'une superficie de 1 500 à 2 000 m2 en vue du stockage, du broyage et du séchage du bois.;2016-01-06;2018-01-31;2018-09-13;552459.0;13.58;CROZON;France;011-Énergies renouvelables: énergie de biomasse;2022-01-20
FEDER;COMMUNE DE BREST;Portail Famille-Espace Parents;Mise en place d'un portail à destination des familles abonnées à une activité périscolaire, extrascolaire ou à un accueil dans une structure petite enfance gérés la ville de Brest.;2016-01-05;2019-09-30;2019-11-04;85548.0;28.6;BREST;France;078-Services et applications d'administration en ligne (y compris passation des marchés publics en ligne, mesures dans le domaine des TIC soutenant la réforme de l'administration publique, mesures;2022-01-20
FEDER;ENTECH SE;POGRA - POsitive GRid Area - Smart grid au siège d'Entech SE;Le projet POGRA démontre qu'une activité industrielle et tertiaire peut supporter les réseaux énergétiques en évitant des coûts d'infrastructure grâce aux technologies de conversion et stockage d’énergie renouvelable et à l'intelligence artificielle.;2019-01-10;2021-09-30;2020-10-09;2557717.0;45.0;QUIMPER;France;003-Investissement productif dans les grandes entreprises lié à une économie à faible intensité de carbone;2022-01-20
FEDER;MONTFORT COMMUNAUTE;Semaine de l'effet numérique 2017;Mise en place de la 2ème édition de l'Effet Numérique portant diverses animations sur le territoire de Montfort Communauté, suite au succès de la 1ère édition menée en mai 2015.;2016-09-26;2017-07-31;2021-09-09;10112.0;89.26;Montfort Communauté;France;080-Services et applications en matière d'inclusion en ligne, d'accessibilité en ligne, d'apprentissage et d'éducation en ligne, culture numérique;2022-01-20
FEDER;BORALEX STOCKAGE PLOUGUIN;Projet de stockage d'électricité par batteries électrochimiques de Plouguin (Ploug'In Stockage);Le projet consiste en la création d'un parc hybride par l'ajout d'une batterie électrochimique Lithium-ion d'une puissance minimum de 2 MW sur le site éolien de Plouguin (8MW).;2020-12-22;2023-06-30;2021-09-09;1392611.0;40.0;PLOUGUIN;France;003-Investissement productif dans les grandes entreprises lié à une économie à faible intensité de carbone;2022-01-20
FEDER;CCI METROPOLITAINE BRETAGNE OUEST;SOLUTIC 2016-2017-2018;"Le programme ""SOLUTIC 2016-2017"" comprends plusieurs actions et évènements destinés à accompagner la transition numérique des entreprises dans le Pays de Brest (e-commerce, réseaux sociaux, community management, nouveaux produits et services numériques).";2016-03-18;2018-05-23;2017-06-07;125600.0;50.0;Pays de Brest;France;082-Services et applications TIC pour les PME (y compris le commerce électronique, le e-Business et les processus d'entreprise en réseau), les laboratoires vivants, les entrepreneurs web et les start-;2022-01-20
FEDER;BAULON;Réalisation d'un réseau de chaleur et d'une chaufferie pour la commune de Baulon;Création d'un réseau de chaleur pour 5 ERP publics et construction d'une chaufferie collective à bois sur la commune de Baulon en Ille-et-Vilaine.;2018-11-27;2020-12-31;2021-07-10;312440.0;37.91;BAULON;France;003-Investissement productif dans les grandes entreprises lié à une économie à faible intensité de carbone;2022-01-20
FEDER;MIGNONED AR BREZHONEG;Stal.bzh;"Le projet ""Stal"", qui veut dire commerce en breton, a pour objectif de développer un outil liant la langue bretonne et les relations commerciales selon le principe de l'offre et la demande au travers d'un site internet et sa déclinaison en applications mobiles sur smartphones.";2017-01-10;2019-08-31;2018-05-07;56843.0;16.66;REGION BRETAGNE;France;080-Services et applications en matière d'inclusion en ligne, d'accessibilité en ligne, d'apprentissage et d'éducation en ligne, culture numérique;2022-01-20
FEDER;STOLECT;STOLECT - Réalisation d'un pilote industriel de stockage massif d'électricité;Ce projet réalisé en partenariat avec la SNCF en lien avec le projet SMILE vise à industrialiser la technologie STOLECT. La construction d'un dispositif pilote de stockage d'énergie (1 MW et 5 MWh) a pour objectif de démontrer la viabilité technique et commerciale de cette technologie.;2019-01-10;2023-03-31;2020-09-04;3559500.0;56.19;RENNES;France;003-Investissement productif dans les grandes entreprises lié à une économie à faible intensité de carbone;2022-01-20
FEDER;ASSOCIATION DE SERVICES ET D'AIDE A DOMICILE MENE RANCE;Télégestion mobile;Le projet vise la mise en place de télégestion mobile pour une optimisation des interventions à domicile des salariés de l'ASAD par la mise à dispostion de smartphone et d'une application permettant de déclarer les interventions, consulter les plannings, les fiches des bénéficiaires, les contacts.;2015-01-07;2018-12-31;2020-12-11;19124.0;50.16;Loudéac Communauté - Bretagne Centre;France;081-Solutions TIC relevant le défi du vieillissement actif et en bonne santé et services et applications de santé en ligne (y compris les soins en ligne et l'assistance à l'autonomie à domicile);2022-01-20
FEDER;SEM LIGER;Unité de méthanisation;Il s'agit de la création d’une unité de méthanisation de 60 000 tonnes de déchets organiques issus de l’industrie agroalimentaire, d’activités agricoles implantée sur le territoire et des collectivités assurant la production d’électricité et de chaleur par cogénération et de carburant bioGNV.;2014-01-21;2018-07-31;2016-07-07;10085017.0;3.7;LOCMINE;France;003-Investissement productif dans les grandes entreprises lié à une économie à faible intensité de carbone;2022-01-20
FEDER;CINEMATHEQUE DE BRETAGNE;Un scanner pour la cinémathèque de Bretagne;Acquisition d'un nouvel équipement de numérisation : un scanner qui permettra un travail plus rapide, la création de fichiers numériques haute résolution, la restitution des couleurs ou le traitement de films très dégradés et le traitement de tous les formats argentiques.;2018-01-09;2023-05-31;2021-08-04;224118.0;50.0;REGION BRETAGNE;France;079-Accès aux informations du secteur public (y compris les données culturelles libres de droit en ligne, les bibliothèques numériques, les contenus numériques et le tourisme en ligne);2022-01-20
FEDER;COTES D'ARMOR HABITAT OPH;Logo et mention FEDER;Logo et mention FEDER dans tous les supports de communication et sur le panneau de chantier;2015-09-02;2018-12-31;2019-12-12;753445.0;9.62;PLOUGRESCANT;France;014-Rénovation en vue d'accroître l'efficacité énergétique du parc de logements existant, projets de démonstration et actions de soutien;2022-01-20
FEDER;POHER COMMUNAUTE;VORGIUM;VORGIUM est un Centre d'Interprétation Archéologique Virtuel pour la conservation, la valorisation et l'interprétation du patrimoine archéologique de Carhaix. Le projet consiste à financer des équipements multimedia de médiation à l'attention du grand public et des scolaires.;2016-01-10;2019-01-30;2017-07-02;270290.0;26.84;CARHAIX-PLOUGUER;France;"048-TIC: Autres types d'infrastructures TIC/ressources informatiques à grande échelle/ équipements (y compris les infrastructures en ligne, les centres de données et les capteurs; également lorsqu";2022-01-20
FEDER;SOC HABITATION LOYER MODERE LA RANCE;Réhabilitation de 17 pavillons résidence La Landelle à Trébédan (22);"La résidence ""La Landelle"" à Trébédan est composée de 17 pavillons individuels construits en 1976. Bien qu'elle ait connu plusieurs opérations de gros entretien, elle nécessitait une réhabilitation plus globale notamment sur les aspects thermiques, sécuritaires, esthétiques et fonctionnels.";2016-04-21;2016-11-17;2020-10-09;133782.0;28.18;TREBEDAN;France;014-Rénovation en vue d'accroître l'efficacité énergétique du parc de logements existant, projets de démonstration et actions de soutien;2022-01-20
FEDER;CA DINAN AGGLOMERATION;Wifi territorial;Dinan Agglomération équipe 12 communes de son territoire en bornes wifi publiques et gratuites. Dans des lieux à forte fréquentation, les visiteurs et locaux ont accès à l'information locale via le portail du site de l'office de tourisme intercommunal.;2016-04-01;2018-12-31;2019-12-12;86189.0;35.0;Dinan Agglomération;France;"048-TIC: Autres types d'infrastructures TIC/ressources informatiques à grande échelle/ équipements (y compris les infrastructures en ligne, les centres de données et les capteurs; également lorsqu";2022-01-20
FEDER;HLM AIGUILLON CONSTRUCTION SA;Réhabilitation de 24 logements à la Chapelle Thouarault;Réhabilitation de 24 logements, situés rue Montual, passage Du Guesclin, à la Chapelle Thouarault, visant à améliorer la performance énergétique de ce groupe d'habitation.;2016-01-05;2018-01-15;2018-08-02;356716.0;15.42;CHAPELLE-THOUARAULT (LA);France;014-Rénovation en vue d'accroître l'efficacité énergétique du parc de logements existant, projets de démonstration et actions de soutien;2022-01-20
FEDER;AGENCE NATIONALE SECURITE SANITAIRE ALIMENTATION ENVIRONNEMENT TRAVAIL;APIVALE - ANSES;Ce projet porte sur l'acquisition de divers équipements nécessaires au fonctionnement de la plateforme de gestion des effluents organiques.;2020-01-01;2021-09-30;2021-09-09;200000.0;25.0;PLOUFRAGAN;France;058-Infrastructures de recherche et d'innovation (publiques);2022-01-20
FEDER;SOC HABITATION LOYER MODERE LA RANCE;Réhabilitation de 30 logements individuels à Saint-Cast-le-Guildo;Il s'agit d'une réhabilitation thermique de 30 logements afin de réaliser des économies d'énergie.;2017-02-13;2017-07-25;2019-08-10;299487.0;29.18;SAINT-CAST-LE-GUILDO;France;014-Rénovation en vue d'accroître l'efficacité énergétique du parc de logements existant, projets de démonstration et actions de soutien;2022-01-20
FEDER;INRAE;APIVALE - IRSTEA - Phase 1;Le projet APIVALE (APproche Intégrée des filières de Valorisation des Effluents organiques) vise la création en Bretagne d’une plateforme à vocation nationale et internationale de gestion et de valorisation (énergétique et agronomique) des effluents organiques, notamment ceux issus de l’élevage.;2015-01-06;2017-05-31;2015-08-12;130000.0;19.23;RENNES;France;058-Infrastructures de recherche et d'innovation (publiques);2022-01-20
FEDER;HLM AIGUILLON CONSTRUCTION SA;Réhabilitation de 50 logements à Rennes;Il s'agt d'une réhabilitation de 50 logements dans une résidence située à Rennes.;2016-01-01;2020-01-31;2021-09-12;450114.0;14.05;RENNES;France;014-Rénovation en vue d'accroître l'efficacité énergétique du parc de logements existant, projets de démonstration et actions de soutien;2022-01-20
FEDER;INRAE;APIVALE - IRSTEA - Phase 2;Le projet APIVALE vise la création en Bretagne d’une plateforme à vocation nationale et internationale de gestion et de valorisation (énergétique et agronomique) des effluents organiques, notamment ceux issus de l’élevage. La secpnde phase consiste à développer une plateforme de R&D sur la valorisation des effluents organiques pour le recyclage de la matière organique et des nutriments comme amendement et fertilisant en agriculture tout en appréciant parallèlement mieux l'impact des traitements subis par les effluents.;2016-01-01;2018-01-31;2016-12-22;415000.0;19.88;RENNES;France;060-Activités de recherche et d'innovation dans les centres de recherche publics et les centres de compétence, y compris la mise en réseau;2022-01-20
FEDER;SA D HLM D ARMORIQUE;Réhabilitation énergétique de 50 logements sur le Pays de Morlaix;Travaux de réhabilitation énergétique de 50 logements.;2015-01-02;2018-01-01;2018-11-12;698006.0;7.16;Pays de Morlaix;France;014-Rénovation en vue d'accroître l'efficacité énergétique du parc de logements existant, projets de démonstration et actions de soutien;2022-01-20
FEDER;INRAE;APIVALE 2020 - plateforme de méthanisation et de valorisation des digestats.;"En s'appuyant sur les principes de l'agro-écologie et de l'écologie industrielle, deux disciplines scientifiques qui s'inspirent du fonctionnement des processus écologiques, l'objectif du projet présente ci-après est de fédérer les compétences et de renforcer les moyens pour une vision renouvelée et plus systémique de la question de l'optimisation de la valorisation des effluents organiques sur les territoires. Il s'agit donc de développer une plateforme de R&D sur la valorisation des effluents organiques pour le recyclage de la matière organique et
des nutriments comme amendement et fertilisant en agriculture tout en appréciant parallèlement mieux l'impact des traitements subis par les effluents
sur le rôle de ces derniers dans les transferts d'agents microbiens, de gènes d'antibiorésistances ou de résidus médicamenteux.
Les partenaires du projet CPER APIVALE sont Irstea, INRA, ANSES et UBS.
L'objectif du projet APIVALE est de fédérer les compétences et de renforcer les moyens pour une vision renouvelée et plus systémique de la question de
l'optimisation de la valorisation des effluents organiques sur les territoires.
Pour répondre à cet objectif, les partenaires souhaitent développer une plateforme de R&D sur la valorisation des effluents et déchets organiques.";2020-01-01;2023-05-31;2021-04-03;308500.0;29.01;SAINT-GILLES;France;058-Infrastructures de recherche et d'innovation (publiques);2022-01-20
FEDER;BREST METROPOLE HABITAT;Réhabilitation énergétique de 56 logements à Brest;Il s'agît d'une réhabilitation de 56 logements, situés à Brest, afin de réaliser des économies d'énergie.;2016-12-15;2020-06-30;2021-09-12;490775.0;40.0;BREST;France;014-Rénovation en vue d'accroître l'efficacité énergétique du parc de logements existant, projets de démonstration et actions de soutien;2022-01-20
FEDER;UNIVERSITE DE BRETAGNE OCCIDENTALE;BioPol;Dans le cadre de SOPHIE Photonique, le projet BioPol s'inscrit dans le nouvel axe de recherche microscopie du vivant appliquée au diagnostic biomédical initié depuis fin 2009.;2017-01-03;2018-12-31;2017-12-14;200000.0;50.0;BREST;France;058-Infrastructures de recherche et d'innovation (publiques);2022-01-20
FEDER;ESPACIL HABITAT SA HLM;Réhabilitation et amélioration thermique de 19 pavillons collectifs - Résidence Jean de Montfort 3 à Auray (56);Il s'agit d'une réhabilitation thermique de 19 pavillons (8 T3 et 11 T4) situés dans la résidence Jean de Montfort 3 à Auray afin de réaliser des économies d'énergie.;2017-01-03;2018-05-30;2020-10-09;328217.0;17.37;AURAY;France;054-Infrastructures de logement;2022-01-20
FEDER;UNIVERSITE DE RENNES I;BUFFON - Phase 5;"La phase 5 permettra la réalisation d'investissements pour les trois axes : 
- renforcer les capacités existantes ;
- compléter les capacités d'expérimentations des écosystèmes terrestres et aquatiques ;
- mettre en place un observatoire virtuel environnement et renforcer les capacités de modélisation.";2019-01-03;2021-11-30;2020-10-09;940000.0;28.72;RENNES;France;058-Infrastructures de recherche et d'innovation (publiques);2022-01-20
FEDER;ESPACIL HABITAT SA HLM;Réhabilitation thermique de 10 logements à Fougères;Il s'agit de la réhabilitation thermique de 10 logements à Fougères en vue de réaliser des économies d'énergie et d'améliorer les conditions de vie des résidents.;2017-10-26;2018-12-04;2021-10-06;82502.0;36.36;FOUGERES;France;014-Rénovation en vue d'accroître l'efficacité énergétique du parc de logements existant, projets de démonstration et actions de soutien;2022-01-20
FEDER;UNIVERSITE DE RENNES I;ChemBioMat - Phase 2;La phase 2 du projet CHEMBIOMAT vise l'achat d'équipements (système magnétique activement blindé 500 MHz et console de RMN haute résolution) permettant d'améliorer la performance des instruments de la plateforme PRISM sollicitée pour les recherches liées au Vivant.;2018-01-06;2019-03-31;2018-09-13;540000.0;35.19;RENNES;France;058-Infrastructures de recherche et d'innovation (publiques);2022-01-20
FEDER;ESPACIL HABITAT SA HLM;Réhabilitation thermique de 10 logements sociaux à la résidence Le Clos à Langon;Il s'agit de la réhabilitation thermique et l'amélioration de 10 logements collectifs chauffés à l’électricité à Langon.;2016-04-15;2017-10-31;2021-08-04;100029.0;56.32;LANGON;France;054-Infrastructures de logement;2022-01-20
FEDER;UNIVERSITE DE BRETAGNE OCCIDENTALE;ChemBioMat - UBO - 2020;L'Université de Bretagne Occidentale poursuit sa participation au projet ChemBioMat avec l'acquisition d'équipements scientifiques (spectrometre de masse notamment).;2019-01-09;2020-12-31;2020-06-02;300000.0;33.33;BREST;France;058-Infrastructures de recherche et d'innovation (publiques);2022-01-20
FEDER;NEOTOA;Réhabilitation thermique de 12 logements locatifs sociaux à Guichen;Il s'agit d'une réhabilitation thermique de 12 pavillons locatifs sociaux PLUS à Guichen, Résidence Les Fresnes (35).;2014-01-12;2016-09-30;2016-09-13;164209.0;30.0;GUICHEN;France;054-Infrastructures de logement;2022-01-20
FEDER;ENSTA BRETAGNE;CYBER SSI - ENSTAB;Le projet contribue à la mise en place d'un pôle en cyber sécurité sur le territoire. Il vise aussi à doter les partenaires d'une infrastructure ambitieuse pour mener à bien des recherches dans le domaine particulier des antennes pour renforcer les partenariats inter-académiques et industriels.;2016-01-04;2020-09-30;2017-09-14;2050000.0;14.63;BREST;France;058-Infrastructures de recherche et d'innovation (publiques);2022-01-20
FEDER;LORIENT HABITAT;Réhabilitation thermique de 128 logements sociaux à Lorient;Il s'agit de la réhabilitation thermique de 128 logements à Saint Maudé, Lorient.;2015-03-20;2017-02-11;2018-11-12;1956312.0;13.29;LORIENT;France;014-Rénovation en vue d'accroître l'efficacité énergétique du parc de logements existant, projets de démonstration et actions de soutien;2022-01-20
FEDER;INSTITUT NATIONAL DES SCIENCES APPLIQUEES DE RENNES;CYBER SSI - INSA - 2017;Cette opération inscrite dans le projet CYBER SSI vise la création d'une plateforme pour l'analyse de systèmes embarqués sans contact, ainsi qu'une plateforme pour réaliser des calculs cryptographiques intenses.;2016-01-09;2017-12-31;2016-12-22;73000.0;33.33;RENNES;France;058-Infrastructures de recherche et d'innovation (publiques);2022-01-20
FEDER;BREST METROPOLE HABITAT;Réhabilitation thermique de 168 logements à Brest;Il s'agit de travaux pour la réhabilitation thermique de 168 logements, Le Bergot à Brest afin de réaliser des économies d’énergie.;2014-01-01;2016-04-25;2018-09-13;1169215.0;40.0;BREST;France;014-Rénovation en vue d'accroître l'efficacité énergétique du parc de logements existant, projets de démonstration et actions de soutien;2022-01-20
FEDER;UNIVERSITE DE BRETAGNE OCCIDENTALE;CYBER SSI - UBO;Dans le cadre du projet CYBER SSI, l’Université de Bretagne occidentale accueille le Centre de recherche et d'expertise en cybersécurité qui rassemble deux plateformes : l’une pédagogique, l’autre de recherche.;2016-01-09;2018-03-31;2017-07-02;240000.0;41.67;BREST;France;060-Activités de recherche et d'innovation dans les centres de recherche publics et les centres de compétence, y compris la mise en réseau;2022-01-20
FEDER;SOC HABITATION LOYER MODERE LA RANCE;Réhabilitation thermique de 21 logements à Combourg;Il s'agit d'une réhabilitation thermique de 21 logements individuels, situés dans la résidence Le Vert Bocage à Combourg, afin de réaliser des économies d'énergie.;2017-02-28;2017-03-10;2018-11-10;212379.0;29.66;COMBOURG;France;014-Rénovation en vue d'accroître l'efficacité énergétique du parc de logements existant, projets de démonstration et actions de soutien;2022-01-20
FEDER;UNIVERSITE DE RENNES I;CYBER SSI - UR1 (Cyber Elec);Dans le cadre du projet CYBER SSI, l’Université de Rennes 1 coordonne le sous-projet Cyber Elec.;2017-01-05;2018-07-31;2017-11-05;300000.0;21.0;RENNES;France;060-Activités de recherche et d'innovation dans les centres de recherche publics et les centres de compétence, y compris la mise en réseau;2022-01-20
FEDER;SOC HABITATION LOYER MODERE LA RANCE;Réhabilitation thermique de 24 logements à Combourg;Il s'agit d'une réhabilitation thermique de 24 logements semi-collectifs locatifs, situés dans la résidence La Fauvelière à Combourg, afin de réaliser des économies d'énergie.;2014-04-03;2015-01-12;2018-06-14;388881.0;18.51;COMBOURG;France;014-Rénovation en vue d'accroître l'efficacité énergétique du parc de logements existant, projets de démonstration et actions de soutien;2022-01-20
FEDER;INSTITUT NATIONAL DES SCIENCES APPLIQUEES DE RENNES;DIADEM - 2017;Dans le cadre du sous-projet DIADEM (projet SOPHIE Stic&Ondes), l'INSA poursuit sa participation pour l'année 2017.;2017-01-07;2018-12-31;2017-09-14;374000.0;40.11;RENNES;France;058-Infrastructures de recherche et d'innovation (publiques);2022-01-20
FEDER;ESPACIL HABITAT SA HLM;Réhabilitation thermique de 26 logements à Lorient;"Il s'agit de la réhabilitation thermique de 26 logements collectifs locatifs, situés dans la résidence ""square de Lanveur"" à Lorient, afin de réaliser des économies d'énergie.";2016-05-15;2017-06-21;2020-09-07;397084.0;62.81;LORIENT;France;014-Rénovation en vue d'accroître l'efficacité énergétique du parc de logements existant, projets de démonstration et actions de soutien;2022-01-20
FEDER;INSTITUT NATIONAL DES SCIENCES APPLIQUEES DE RENNES;DURABIMAT - INSA - 2019;Dans le cadre du projet DURABIMAT, l’INSA poursuit sa participation pour l’année 2019.;2019-01-06;2021-01-31;2019-04-07;156000.0;28.53;RENNES;France;058-Infrastructures de recherche et d'innovation (publiques);2022-01-20
FEDER;ESPACIL HABITAT SA HLM;Réhabilitation thermique de 36 logements collectifs à Brest;"Il s'agit de la réhabilitation thermique de 36 logements collectifs sociaux de la résidence ""Coat Ar Gueven"" à Brest.";2016-03-31;2018-11-30;2021-06-05;846052.0;40.0;BREST;France;054-Infrastructures de logement;2022-01-20
FEDER;UNIVERSITE DE BRETAGNE OCCIDENTALE;DURABIMAT - UBO - 2017;Dans le cadre du projet DURABIMAT, cette opération consiste à acquérir des équipements pour poursuivre les tests sur différents matériaux de construction.;2017-01-04;2018-12-31;2017-12-10;228000.0;35.09;BREST;France;058-Infrastructures de recherche et d'innovation (publiques);2022-01-20
FEDER;ESPACIL HABITAT SA HLM;Réhabilitation thermique de 4 logements à Noyal-Pontivy;Il s’agit de la réhabilitation thermique de 4 logements à Noyal-Pontivy en vue de réaliser des économies d'énergie et d'améliorer les conditions de vie des résidents.;2018-06-25;2019-11-20;2021-10-06;72825.0;59.27;NOYAL-PONTIVY;France;054-Infrastructures de logement;2022-01-20
FEDER;UNIVERSITE DE BRETAGNE SUD;DURABIMAT - UBS - 2019;DURABIMAT (sous-projet de MULTIMAT) favorise l’éco-ingénierie de nouveaux produits à partir de nouveaux matériaux en tenant compte des économies d’énergie dans leur fabrication et leur usage, en vue d’augmenter la durabilité des systèmes et des structures qui utilisent ces matériaux tout au long du cycle de vie.;2018-01-06;2019-09-30;2019-03-14;347000.0;39.48;LORIENT;France;058-Infrastructures de recherche et d'innovation (publiques);2022-01-20
FEDER;OPH RENNES METROPOLE ARCHIPEL HABITAT;Réhabilitation thermique de 40 logements - Rennes;Il s'agit de la réhabilitation thermique de 40 logements sociaux du 17 au 21 Bd du Colombier à Rennes. Ces travaux, issus de diagnostics, sont aussi une réponse aux attentes des habitants actuel en matière de confort.;2015-04-05;2017-12-31;2019-09-05;719847.0;36.68;RENNES-CENTRE;France;014-Rénovation en vue d'accroître l'efficacité énergétique du parc de logements existant, projets de démonstration et actions de soutien;2022-01-20
FEDER;UNIVERSITE DE RENNES I;DURABIMAT - UR1 - Phase 3;La phase 3 du projet DURABIMAT permet l'acquisition d'équipements complémentaires de caractérisation des propriétés physiques, hybriques et thermiques venant renforcer le potentiel du LGCGM (Laboratoire de Génie Civile et Génie Mécanique).;2019-01-06;2021-02-28;2020-09-07;103538.0;25.11;RENNES;France;058-Infrastructures de recherche et d'innovation (publiques);2022-01-20
FEDER;ESPACIL HABITAT SA HLM;Réhabilitation thermique de 41 logements à Noyal-Chatillon-Sur-Seiche;"Il s'agit d'une réhabilitation thermique de 41 logements situés dans la résidence ""La Guyomerais"" à Noyal-Chatillon-Sur-Seiche afin de réaliser des économies d'énergie.";2016-06-03;2018-06-29;2020-10-09;565431.0;48.87;NOYAL-CHATILLON-SUR-SEICHE;France;054-Infrastructures de logement;2022-01-20
FEDER;UNIVERSITE DE RENNES I;DURABIMAT - UR1 -2017;Dans le cadre du projet DURABIMAT, l'Université de Rennes 1 poursuit sa participation en contribuant à deux axes de recherche : agro-ressources et valorisation de produits naturels (boues, vases, sédiments).;2017-01-06;2018-11-30;2017-06-07;108000.0;37.5;RENNES;France;058-Infrastructures de recherche et d'innovation (publiques);2022-01-20
FEDER;ESPACIL HABITAT SA HLM;Réhabilitation thermique de 5 maisons individuelles à Lalleu;Le projet mené par Espacil Habitat concerne la réhabilitation globale avec amélioration thermique de la résidence Bellevue composée de 5 maisons individuelles sur la commune de Lalleu. Les travaux d’amélioration thermique consistent à remplacer les menuiseries, rénover complètement l’installation de chauffage et d’eau chaude sanitaire, et mettre en place une VMC Hygroréglable.;2015-01-06;2016-07-12;2019-12-09;75530.0;40.5;LALLEU;France;054-Infrastructures de logement;2022-01-20
FEDER;ENSTA BRETAGNE;ECO-SYS-MER - ENSTAB - 2015;Le projet ECO-SYS-MER est un projet de recherche appliquée en milieu marin. Cette opération consiste en l’acquisition par un laboratoire de l’ENSTAB d’équipements d’étude thermophysiques de matériaux métalliques et organiques utilisés en milieu marin.;2015-01-11;2015-12-31;2016-02-02;45000.0;44.44;BREST;France;060-Activités de recherche et d'innovation dans les centres de recherche publics et les centres de compétence, y compris la mise en réseau;2022-01-20
FEDER;FINISTERE HABITAT;Réhabilitation thermique de 6 logements à Lanmeur;Il s'agît de la réhabilitation thermique de 6 logements en habitat collectif situés à Lanmeur, afin de réaliser des économies d'énergie.;2019-01-03;2019-12-31;2020-10-12;84917.0;7.07;LANMEUR;France;014-Rénovation en vue d'accroître l'efficacité énergétique du parc de logements existant, projets de démonstration et actions de soutien;2022-01-20
FEDER;UNIVERSITE DE BRETAGNE SUD;ECO-SYS-MER - UBS - 2016;Dans le cadre du projet ECO SYS MER, cette opération consiste à améliorer puis maîtriser la fiabilité de systèmes en interaction dynamique avec le milieu marin à partir d'une démarche de type multi-échelle : de l'échelle du matériau à celle du système.;2016-01-09;2017-07-31;2017-06-04;105000.0;26.19;LORIENT;France;058-Infrastructures de recherche et d'innovation (publiques);2022-01-20
FEDER;COTES D'ARMOR HABITAT OPH;Réhabilitation thermique de 6 pavillons à Perros-Guirec;Il s'agit d'une réhabilitation thermique de 6 pavillons situés 9, 11, 13, 15, 17 et 19 rue des Jonquilles à Perros-Guirec, afin de réaliser des économies d'énergie.;2017-05-11;2018-07-20;2020-10-12;95778.0;12.53;PERROS-GUIREC;France;054-Infrastructures de logement;2022-01-20
FEDER;AGENCE NATIONALE SECURITE SANITAIRE ALIMENTATION ENVIRONNEMENT TRAVAIL;ELEPHANS - 2016;Le projet Elephans consiste à acquérir du matériels et des équipements dans le cadre de la restructuration complète du site expérimental aviaire du laboratoire de Ploufragan.;2016-01-01;2016-12-31;2016-12-22;56901.0;50.0;PLOUFRAGAN;France;058-Infrastructures de recherche et d'innovation (publiques);2022-01-20
FEDER;COTES D'ARMOR HABITAT OPH;Réhabilitation thermique de 6 pavillons à Saint-Alban;Il s'agit d'une réhabilitation thermique de 6 pavillons Rue des Chardonnerets à Saint-Alban (22).;2016-03-14;2016-12-12;2017-08-06;130476.0;19.62;SAINT-ALBAN;France;054-Infrastructures de logement;2022-01-20
FEDER;AGENCE NATIONALE SECURITE SANITAIRE ALIMENTATION ENVIRONNEMENT TRAVAIL;ELEPHANS - 2017;Le second volet du projet ELEPHANS consiste en l'acquisitions de matériels et d'équipements scientifiques dans le cadre de la restructuration complète du site expérimental aviaire du Laboratoire de Ploufragan.;2017-01-05;2018-04-30;2017-12-14;46552.0;38.46;PLOUFRAGAN;France;058-Infrastructures de recherche et d'innovation (publiques);2022-01-20
FEDER;HLM LES FOYERS GESTION FOYER;Réhabilitation thermique de 63 logements collectifs à Fougères;Il s'agit de la réhabilitation thermique de 63 logements collectifs à Fougères en vue de réaliser des économies d'énergie et d'améliorer les conditions de vie des résidents.;2014-01-01;2021-12-31;2021-10-06;319545.0;31.4;FOUGERES;France;014-Rénovation en vue d'accroître l'efficacité énergétique du parc de logements existant, projets de démonstration et actions de soutien;2022-01-20
FEDER;CENTRE NATIONAL DE LA RECHERCHE SCIENTIFIQUE;EMBARC - 2018;L’opération EMBARC 2018 se concentre sur les microcosmes par le réaménagement et l'équipement d'un ensemble de structures du Centre de Ressources Biologiques Marines (CRBM) de Roscoff avec des dispositifs pour expérimentations en eau de mer courante, en salles sèches et le stockage d'échantillons.;2018-01-01;2021-07-31;2019-07-11;340000.0;31.18;ROSCOFF;France;058-Infrastructures de recherche et d'innovation (publiques);2022-01-20
FEDER;COTES D'ARMOR HABITAT OPH;Réhabilitation thermique de 7 logements sociaux à Plérin;Il s'agit d'une réhabilitation thermique de 7 pavillons, chauffés à l'électricité, Rue Sémard à Plérin (22).;2016-02-05;2016-05-09;2017-09-03;249156.0;17.54;PLERIN;France;054-Infrastructures de logement;2022-01-20
FEDER;UNIVERSITE DE BRETAGNE OCCIDENTALE;EpiGen Brest - 2016;Dans le cadre du projet Epi Gen Brest, cette opération consiste à poursuivre la création de nouveaux outils donnant accès à une meilleure appréhension de la biodiversité microbienne à la fois chez l'homme et dans le milieu marin.;2016-01-05;2018-01-31;2017-09-03;541598.0;25.48;BREST;France;060-Activités de recherche et d'innovation dans les centres de recherche publics et les centres de compétence, y compris la mise en réseau;2022-01-20
FEDER;HLM LES FOYERS GESTION FOYER;Réhabilitation thermique de 8 logements à Erquy;Il s'agit d'une réhabilitation thermique de 8 logements collectifs locatifs, situés dans la résidence Eden à Erquy, afin de réaliser des économies d’énergie.;2016-10-27;2017-03-04;2017-12-14;151992.0;18.94;ERQUY;France;054-Infrastructures de logement;2022-01-20
FEDER;IFREMER;Euro Argo - 2015;Le projet Euro Argo est la contribution européenne au réseau international Argo qui est un élément essentiel du système global d’observation des océans mis en place pour suivre, comprendre et prévoir le rôle de l’océan sur le climat de la planète. Ce projet vise à accompagner l'installation d’une infrastructure de recherche (ERIC Euro-Argo) à Brest qui sera la première structure légale européenne d'infrastructure marine.;2015-01-01;2017-07-31;2016-04-14;893200.0;12.49;PLOUZANE;France;058-Infrastructures de recherche et d'innovation (publiques);2022-01-20
FEDER;ESPACIL HABITAT SA HLM;Réhabilitation thermique de 9 logements à Retiers;"Il s'agit de la réhabilitation thermique et globale de la résidence ""Jeanne Jugan"" dans la commune de Retiers, pour réaliser des économies d'énergie.";2015-11-06;2017-02-22;2020-10-12;135930.0;33.11;RETIERS;France;014-Rénovation en vue d'accroître l'efficacité énergétique du parc de logements existant, projets de démonstration et actions de soutien;2022-01-20
FEDER;IFREMER;Euro Argo - 2016;Dans le cadre du projet Euro Argo d'observation des océans, l'opération consiste à poursuivre l'acquisition de flotteurs et à consolider la contribution française à Argo. Ces activités sont associées à de forts enjeux scientifiques liés au rôle majeur de l'océan sur le climat avec en particulier les questions posées sur le rôle de l'océan profond sur le bilan thermique de la planète.;2016-01-01;2017-12-31;2016-12-22;1061700.0;22.58;PLOUZANE;France;058-Infrastructures de recherche et d'innovation (publiques);2022-01-20
FEDER;ESPACIL HABITAT SA HLM;"Réhabilitiation thermique de 17 logements - Résidence ""Cadoudal"" à Questembert";Il s'agit d'une réhabilitation thermique de 17 logements situés dans la résidence Cadoudal à Questembert, afin de réaliser des économies d'énergie.;2016-05-13;2017-12-21;2020-08-10;199871.0;45.14;QUESTEMBERT;France;054-Infrastructures de logement;2022-01-20
FEDER;UNIVERSITE DE BRETAGNE OCCIDENTALE;HYPERION;Le projet Hyperion a pour objectif de développer une approche technologique du diagnostic et du suivi des traitements du cancer. Hyperion est le nom du cytomètre de masse, matériel d'imagerie quasi-unique en France et en Europe. Dans le cas des traitements par la technique de l'immunothérapie, Hyperion représente une révolution car il permettra de mettre en évidence jusqu'à 50 marqueurs, au lieu de 2 actuellement, à la surface ou dans les molécules cancéreuses.;2018-01-11;2019-09-30;2019-04-07;997277.0;25.0;BREST;France;058-Infrastructures de recherche et d'innovation (publiques);2022-01-20
FEDER;CC VAL D'ILLE-AUBIGNE;Aménagement d'un PEM à Montreuil-sur-Ille;Le projet consiste en un réaménagement d'un pôle d'échange multimodal au niveau de la gare TER de Montreuil-sur-Ille, identifiée au SCOT du Pays de Rennes comme « pôle multimodal à renforcer ».;2020-10-16;2021-09-16;2021-10-06;634769.0;14.18;MONTREUIL-SUR-ILLE;France;036-Transports multimodaux;2022-01-20
FEDER;INRAE;IAA - High Tech Usine du Futur - 2016;Le projet « IAA - Tech Usine du futur » a pour objectif de renforcer une offre technologique de pointe au service de la compétitivité du secteur agro-industriel. Les actions du projet sont l’intégration de nouveaux capteurs en métrologie, la conception de prototypes et des simulations de fonctionnement. Le projet intègre également la prise en compte des contraintes sanitaires, la réduction de la pénibilité, la réduction de la consommation énergétique et la réduction des déchets.;2015-01-06;2017-05-31;2016-02-02;250000.0;17.0;RENNES;France;058-Infrastructures de recherche et d'innovation (publiques);2022-01-20
FEDER;COMMUNAUTE DE COMMUNES DE SAINT-MEEN MONTAUBAN;Aménagement d'une zone intermodale de la gare de Montauban-de-Bretagne;Réalisation d'une zone intermodale (train, piétons, cycles, dépose-minute, taxis, cars), de liaisons douces et de parcs de stationnement du secteur de la gare de Montauban-de-Bretagne afin d'accompagner le fort développement de la fréquentation de la gare.;2015-05-10;2018-04-30;2018-08-03;930622.0;9.85;"MONTAUBAN-DE-BRETAGNE
SAINT-MEEN-LE-GRAND";France;036-Transports multimodaux;2022-01-20
FEDER;UNIVERSITE DE BRETAGNE SUD;IAA - High Tech Usine du Futur - UBS - 2019;Dans le cadre du projet IAA - High Tech Usine du futur, l'UBS réalise des investissements autour de la problématique du séchage des produits alimentaires.;2018-01-07;2020-02-29;2019-06-13;160000.0;50.0;PONTIVY;France;058-Infrastructures de recherche et d'innovation (publiques);2022-01-20
FEDER;MORLAIX COMMUNAUTE;Aménagements pour le PEM de Morlaix;Le projet consiste en la transformation de la gare de Morlaix en véritable Pôle d'Echanges Multimodal (PEM) avec pour principales réalisations la construction d'une passerelle au-dessus du faisceau de voies ferrées et l'aménagement de l'ensemble des espaces publics de part et d'autre pour faciliter les accès au pôle et les échanges entre tous les modes de transport qui y convergent.;2015-01-01;2019-03-31;2018-08-02;8638021.0;20.84;MORLAIX;France;036-Transports multimodaux;2022-01-20
FEDER;INRAE;IAA Hight Tech Usine du Futur - INRAE - 2019;Le projet IAA-High-Tech contribue à une stratégie transversale aux filières agro-industriels par l'innovation et la modernisation des procédés incluant une recherche de performance écologique au service du développement économique.;2019-01-01;2021-12-31;2020-09-07;331868.0;5.69;RENNES;France;058-Infrastructures de recherche et d'innovation (publiques);2022-01-20
FEDER;NOYAL SUR VILAINE;Étude pour un PEM à Noyal-sur-Vilaine;Le projet consiste à mener une étude sur l'aménagement des abords de la gare TER de Noyal-sur-Vilaine pour en faire un véritable pôle d'échanges multimodal : parc de stationnement, cheminements, abri vélos.;2020-01-01;2022-09-30;2021-04-02;48650.0;32.89;NOYAL-SUR-VILAINE;France;036-Transports multimodaux;2022-01-20
FEDER;IFREMER;IJINMOR;"Le projet a pour objectif de compléter et moderniser les équipements des bassins d'essais de l'Ifremer, afin de renforcer l’offre régionale de recherche et de formation sur la thématique ""interactions Structures-Océans"".";2017-01-01;2022-03-31;2019-07-11;2400000.0;31.25;PLOUZANE;France;058-Infrastructures de recherche et d'innovation (publiques);2022-01-20
FEDER;COMMUNE DE PLOUEDERN;Liaison Plouédern / Landerneau;Le projet porté par la commune de Plouédern consiste en la création d'une liaison cyclable de 2,5 kilomètres le long de la route départementale RD29 (liaison Plouédern- Landerneau) afin de diminuer le recours à la voiture individuelle pour les déplacements quotidiens au profit des modes actifs.;2019-01-12;2022-12-31;2020-10-09;542120.0;40.0;PLOUEDERN;France;036-Transports multimodaux;2022-01-20
FEDER;ECOLE NORMALE SUPERIEURE DE RENNES;IMMERSTAR - IMMERMOVE;Dans le cadre du projet IMMERSTAR, la plateforme IMMERMOVE située sur le campus de Ker Lann, a pour objectif de réaliser des captures de mouvement in situ sur un espace sportif et d'immerger l'utilisateur dans un monde virtuel de grande dimension pour l'analyse du mouvement, de la performance sportive et de l'entraînement.;2016-01-01;2017-09-30;2017-09-03;368000.0;40.76;RENNES;France;058-Infrastructures de recherche et d'innovation (publiques);2022-01-20
FEDER;RENNES METROPOLE;Métro ligne b - 3 parcs-relais et gare-bus associée;Afin de contribuer à la durabilité des transports, Rennes Métropole met en place 3 parcs relais et une gare-bus sur la ligne b du métro de la capitale régionale.;2017-01-01;2022-12-31;2019-07-11;40666956.0;34.43;RENNES;France;036-Transports multimodaux;2022-01-20
FEDER;AGENCE NATIONALE SECURITE SANITAIRE ALIMENTATION ENVIRONNEMENT TRAVAIL;INFECTIO - ANSES;"Le projet INFECTIO traite des relations ""infectiologie-environnement"" et ses impacts sur la santé humaine et animale. L’investissement est dédié à l’acquisition d’équipements scientifiques destinés à la recherche dans ce domaine.";2019-01-07;2021-12-31;2020-08-10;239997.0;40.0;JAVENE;France;058-Infrastructures de recherche et d'innovation (publiques);2022-01-20
FEDER;RENNES METROPOLE;Nouvelle billétique pour le réseau STAR;Le projet porte sur l’acquisition d'autocars fonctionnant au Gaz Naturel Véhicule (GNV) dans le cadre d'un plan de renouvellement du parc d'autocars que la Région met à disposition de sa régie régionale des transports, dans une logique de transition énergétique.;2014-01-01;2021-12-31;2020-11-06;11650761.0;19.81;RENNES;France;036-Transports multimodaux;2022-01-20
FEDER;AGENCE NATIONALE SECURITE SANITAIRE ALIMENTATION ENVIRONNEMENT TRAVAIL;INFECTIO - ANSES - Phase 3;Dans le cadre du projet INFECTIO, l'ANSES poursuit sa participation pour les années 2019-2020.;2018-01-01;2020-03-31;2019-11-04;136301.0;41.27;"PLOUFRAGAN
PLOUZANE";France;058-Infrastructures de recherche et d'innovation (publiques);2022-01-20
FEDER;IFREMER;TBI à vélo;Ce projet porté par l'Ifremer consiste à installer 3 abris à vélos sur son site de Plouzané à proximité de Brest afin d'encourager la pratique du vélo. Les abris seront équipés de panneaux photovoltaïques afin de permettre aux utilisateurs de VAE (vélo à assistance électrique) de recharger leur vélo.;2020-01-09;2021-04-30;2020-09-07;65000.0;40.0;PLOUZANE;France;036-Transports multimodaux;2022-01-20
FEDER;ECOLE NATIONALE D INGENIEURS DE BREST;I-ROMI - ENIB - 2017;Dans le cadre du projet I-ROMI qui a pour objectif global la création d'une plateforme de recherche et d'expérimentation d'observation marine, l’ENIB expérimente des dispositifs de capteurs pour développer des réseaux efficaces en termes d'énergie et de qualité de données transmises.;2017-01-09;2019-12-31;2016-09-11;165000.0;45.45;PLOUZANE;France;058-Infrastructures de recherche et d'innovation (publiques);2022-01-20
FEDER;UNIVERSITE DE BRETAGNE OCCIDENTALE;TBI à vélo - Phase 2;Le projet consiste à installer un stationnement pour vélos sur le site de l'Institut Universitaire Européen de la Mer (IUEM), situé sur le Technopôle Brest-Iroise à Plouzané afin de permettre un changement de pratique vers les mobilités actives.;2020-01-09;2022-04-30;2021-04-02;174800.0;40.0;PLOUZANE;France;036-Transports multimodaux;2022-01-20
FEDER;INSTITUT SUPERIEUR D ELECTRONIQUE ET DU NUMERIQUE ISEN;LMAIR - 2017;L-MAIR (sous-projet de IROMI) a pour but de mettre en oeuvre un laboratoire marin en rade de Brest, accessible à distance pour réaliser des expérimentations en acoustique, en communication et en imagerie.;2017-01-01;2019-10-31;2018-08-02;85000.0;41.18;BREST;France;059-Infrastructures de recherche et d'innovation (privées, y compris les parcs scientifiques);2022-01-20
FEDER;REGION BRETAGNE FONDS EUROPEENS;Evènements partenariaux pour mise en œuvre des FESI - Année 2017-2018;Le projet concerne l'organisation des rencontres avec les partenaires des programmes européens pour les années 2017 et 2018 (comité de suivi, commissions régionales de programmation européennes, autres rencontres partenariales).;2017-01-01;2018-12-31;2018-08-02;75000.0;50.0;REGION BRETAGNE;France;121-Préparation, mise en oeuvre, suivi et contrôle;2022-01-20
FEDER;UNIVERSITE DE RENNES 2;LOUSTIC - 2020;L'objectif du projet LOUSTIC est de renforcer l'observation équipée des usages des TIC sur l'ensemble du territoire breton et de favoriser ainsi le maillage des projets de recherche pluridisciplinaires.;2020-01-01;2020-12-31;2020-09-07;149000.0;46.98;RENNES;France;058-Infrastructures de recherche et d'innovation (publiques);2022-01-20
FEDER;REGION BRETAGNE FONDS EUROPEENS;Organisation des événements partenariaux pour la mise en oeuvre des FESI - Phase de lancement 2015-2016;Cette opération rassemble l’organisation de la grande action de lancement des programmes opérationnels en juillet 2015 ainsi que les réunions nécessaires à la programmation des FESI avec le partenariat pour la période 2014-2016 (Comité de suivi des fonds européens, Commission régionale de programmation européenne, autres réunions partenariales).;2015-01-01;2016-12-31;2016-08-03;90000.0;50.0;REGION BRETAGNE;France;121-Préparation, mise en oeuvre, suivi et contrôle;2022-01-20
FEDER;UNIVERSITE DE BRETAGNE OCCIDENTALE;MATECOM - ANTIDOT - UBO;Dans le cadre du projet MATECOM, le projet ANTIDOT a pour objectif le développement de matériaux innovants et nanotechnologies pour des applications spécifiques en télécommunications sans fil. Cette opération consiste en l’acquisition d’un équipement pour réaliser des microgravures sur les nanostructures élaborées dans le cadre de ce projet pour étudier de nouveaux matériaux magnétiques utilisés dans les télécommunications sans fil.;2015-01-12;2016-09-30;2016-07-06;115000.0;36.52;BREST;France;060-Activités de recherche et d'innovation dans les centres de recherche publics et les centres de compétence, y compris la mise en réseau;2022-01-20
FEDER;COMMUNE DE QUEVEN;REACT-EU - Développement d'un schéma directeur des déplacements doux sur la commune de Queven;Dans le cadre de REACT-EU, réponse de l'Union à la pandémie de COVID 19, la commune de Queven (Morbihan) souhaite rendre opérationnel un schéma directeur des déplacements doux afin de créer le déclic vélo chez ses habitant·es pour une circulation apaisée dans une ville conviviale et durable. Le projet permettra de mieux connecter entre eux les équipements et infrastructures déjà en place dans un souci d'amélioration du maillage des déplacements doux.;2020-06-07;2021-12-30;2021-11-16;641674.0;38.96;QUEVEN;France;036-Transports multimodaux;2022-01-20
FEDER;UNIVERSITE DE RENNES I;MATECOM - Phase 5;La phase 5 du projet MATECOM a pour objectif d'acquérir des équipements scientifiques pour l'analyse moléculaire. Cette acquisisiton permettra de caractériser les performances de ces surfaces réactives.;2019-01-06;2021-02-28;2020-09-07;180000.0;44.44;RENNES;France;058-Infrastructures de recherche et d'innovation (publiques);2022-01-20
FEDER;REGION BRETAGNE FONDS EUROPEENS;REACT-EU - Accompagnement des agent·es et préparation de l'acquisition d'une solution numérique pour la gestion de la relation usagers de la Région Bretagne;Dans le cadre de REACT-EU, réponse de l'Union à la pandémie de COVID 19, la Région Bretagne, soucieuse de simplifier et d'améliorer l'efficacité de sa relation à ses usagers, développe ce projet qui vise à mettre en place au sein de la collectivité, et en transversalité, une solution unique et centralisée permettant de mutualiser les outils de traitement des demandes issues des usagers.La Région Bretagne, par la réalisation de ce projet, escompte gagner en efficacité sur ses points de contact, garantir des données usagers de qualité, harmoniser les pratiques de ses agents tout en accompagnant le changement dans les postures actuelles et enfin de mesurer et piloter la satisfaction perçue de ses usagers.;2021-05-19;2023-06-30;2021-11-16;504441.0;100.0;REGION BRETAGNE;France;"048-TIC: Autres types d'infrastructures TIC/ressources informatiques à grande échelle/ équipements (y compris les infrastructures en ligne, les centres de données et les capteurs; également lorsqu";2022-01-20
FEDER;SERVICE HYDROGRAPHIQUE ET OCEANOGRAPHIQUE DE LA MARINE;MerSure;Le projet MerSure est un projet de recherche en matière de surveillance et de prévisions océanographiques côtières. Les différents dispositifs opérationnels ont pour objectif de répondre aux besoins des politiques maritimes nationales et européennes (directive cadre stratégie pour le milieu marin, action de l'État en mer, prévention et gestion des risques naturels), et de soutenir le développement de l'économie maritime (croissance bleue) en renforçant l'efficience des activités économiques et humaines dans les eaux côtières et littorales.;2015-01-01;2017-06-30;2016-10-14;1090000.0;16.74;BREST;France;058-Infrastructures de recherche et d'innovation (publiques);2022-01-20
FEDER;RENOUARD SA;REACT-EU - Acquisition d'un ERP;Dans le cadre de la réponse à l'AAP Process & Numérisation d'une part et de REACT-EU, réponse de l'Union à la pandémie de COVID 19, d'autre part, l'entreprise souhaite faire l'acquisition d'un logiciel de gestion ERP.;2021-07-10;2022-06-30;2021-09-12;54036.0;40.0;LOUDEAC;France;001-Investissement productif générique dans les petites et moyennes entreprises («PME»);2022-01-20
FEDER;INRAE;Milk-Valley - 2017-2018;Le projet Milk Valley est consacré au renforcement des connaissances sur les constituants du lait et de l'oeuf. Le projet consiste en l'acquisition d'équipements scientifiques (microscope confocal associée à des marquages fluorescents).;2017-01-02;2018-07-31;2016-12-22;410000.0;48.78;RENNES;France;058-Infrastructures de recherche et d'innovation (publiques);2022-01-20
FEDER;LIMA SAS;REACT-EU - Amélioration d'un poste de soudage robotisé, robotisation d'un poste de rectification et meulage/polissage manuel;Dans le cadre, d'une part, de la réponse de l'APP Process & Numérisation, et, d'autre part, dans le cadre de REACT-EU, réponse de l'Union à la pandémie de COVID 19, le projet prévoit l'amélioration d'un poste de soudage robotisé, la robotisation d'un poste de rectification (actuellement réalisée sur un tour) et d'un poste de meulage/polissage (actuellement réalisé manuellement).;2021-09-04;2022-12-31;2021-09-09;457650.0;20.0;QUIMPER;France;001-Investissement productif générique dans les petites et moyennes entreprises («PME»);2022-01-20
FEDER;UNIVERSITE DE RENNES I;NAM Ouest - Phase 4;Cette phase du projet NAM Ouest vise à acquérir des équipements nécessaires aux études du métabolisme cellulaire, dans le domaine des maladies chroniques du foie et de l'appareil digestif.;2019-01-10;2021-09-30;2020-09-07;525000.0;45.71;RENNES;France;058-Infrastructures de recherche et d'innovation (publiques);2022-01-20
FEDER;PEUVREL OUTILS DIAMANTES;REACT-EU - Digitalisation interne et externe de l'entreprise (ERP et vente en ligne);Dans le cadre, d'une part, de la réponse de l'APP Process & Numérisation, et, d'autre part, dans le cadre de REACT-EU, réponse de l'Union à la pandémie de COVID 19, le projet porté par la SAS Peuvrel Outils Diamantés est la digitalisation interne et externe via la mise en place d’un ERP et d’un site de e-commerce afin d’augmenter sa compétitivité et son rayonnement en France.;2021-12-04;2022-12-31;2021-09-09;148164.0;44.0;BONNEMAIN;France;001-Investissement productif générique dans les petites et moyennes entreprises («PME»);2022-01-20
FEDER;UNIVERSITE DE BRETAGNE OCCIDENTALE;Préclinlab 2;Le projet PréclinLab est la mise en place d’une plateforme de planification préclinique/clinique. Il comprend 2 volets : la création d'une Base de données d'informations multimodales, multi échelles, partagée et accessible au niveau de la région et la mise en place d'une plateforme de tests et de planifications pour valider les solutions.;2020-01-09;2021-09-30;2021-04-03;550000.0;27.27;BREST;France;060-Activités de recherche et d'innovation dans les centres de recherche publics et les centres de compétence, y compris la mise en réseau;2022-01-20
FEDER;SARL MODULE CREATION;REACT-EU - Intégration d'un ERP;Dans le cadre, d'une part, de la réponse de l'APP Process & Numérisation, et, d'autre part, dans le cadre de REACT-EU, réponse de l'Union à la pandémie de COVID 19, Le projet porté par Module Création consiste à mettre en place une solution ERP couvrant les services achats, production, suivi des stocks et gestion commerciale de l’entreprise afin de fiabiliser et sécuriser le process de fabrication.;2021-04-14;2022-12-31;2021-09-09;177044.0;44.0;LOSCOUET-SUR-MEU;France;001-Investissement productif générique dans les petites et moyennes entreprises («PME»);2022-01-20
FEDER;IFREMER;ROEC - IFREMER - 2020;Le projet ROEC, Réseau d'Observation (Haute Fréquence) pour l'Environnement Côtier, vise à développer un réseau d’observation du milieu marin côtier afin de fournir un suivi continu à haute fréquence de l’état environnemental des masses d’eau à travers différents paramètres physiques, hydrologiques, biogéochimiques et biologiques.;2020-01-01;2022-06-30;2020-08-10;450000.0;26.44;PLOUZANE;France;058-Infrastructures de recherche et d'innovation (publiques);2022-01-20
FEDER;ENERGY PLUS;REACT-EU - Investissement dans un nouvel atelier de préfabrication et acquisition de logiciels CAO et d'un ERP;"Dans le cadre de la réponse à l'AAP Process & Numérisation d'une part et de REACT-EU, réponse de l'Union à la pandémie de COVID 19, d'autre part, le projet vise la création d'un atelier entièrement équipé pour la préfabrication d'ensemble industrielle et la mise en place de logiciels associés. Il permettra d'augmenter la surface existante de l'atelier de 450m à un total de 1700m. Plusieurs équipements matériels et numériques seront mis en place :
- Pont roulant, rendant possible le déplacement en toute sécurité d'équipements imposants et lourds
- Table de soudage, rapidité d'exécution et ergonomique du poste
- Plieuses, cisailles, postes de soudures, etc.
- un ERP pour assurer le suivi des actions commerciales, de fabrication, de gestion de projet, et de facturation/gestion analytique ;
- un logiciel de conception métier pour la réalisation de nombreux documents techniques spécifiques métiers ;
- logiciels de connections/suivi à distance de nos modules.";2021-04-29;2022-06-30;2021-09-12;637650.0;24.24;SAINT-NOLFF;France;001-Investissement productif générique dans les petites et moyennes entreprises («PME»);2022-01-20
FEDER;SERVICE HYDROGRAPHIQUE ET OCEANOGRAPHIQUE DE LA MARINE;ROEC - SHOM - 2016;"Le projet ROEC (Réseau d'Observations [Haute fréquence] pour l'Environnement Côtier (ROEC) a pour objectifs de déployer et maintenir la composante bretonne du réseau national d'observations côtières ; de développer et tester de nouveaux outils technologiques pour l'observation côtière et de progresser dans la compréhension des conséquences du changement global sur les écosystèmes côtiers. L’opération rassemble les actions du SHOM.";2015-01-05;2017-12-31;2016-10-14;787000.0;35.45;BREST;France;058-Infrastructures de recherche et d'innovation (publiques);2022-01-20
FEDER;SAS EUROTEC DEVELOPPEMENT;REACT-EU - Investissement et déploiement d'un nouvel ERP (Progiciel de Gestion Intégré);Dans le cadre, d'une part, de la réponse de l'APP Process & Numérisation, et, d'autre part, dans le cadre de REACT-EU, réponse de l'Union à la pandémie de COVID 19, le projet porté par Eurotec consiste à faire évoluer son système d’information et de pilotage de l’entreprise grâce à la mise en place d’un nouvel ERP et l’acquisition de logiciels de conception assistée par ordinateur (autocad et solidworks).;2021-01-04;2022-06-30;2021-09-09;103160.0;44.0;GUENIN;France;001-Investissement productif générique dans les petites et moyennes entreprises («PME»);2022-01-20
FEDER;SERVICE HYDROGRAPHIQUE ET OCEANOGRAPHIQUE DE LA MARINE;ROEC - SHOM - 2019;Le SHOM poursuit sa participation au projet ROEC pour l'année 2019 : réseau d'observations continues à haute fréquence de l'environnement côtier, basée sur une approche intégrée pluri-disciplinaire.;2018-01-12;2021-03-31;2020-06-02;572000.0;37.94;BREST;France;058-Infrastructures de recherche et d'innovation (publiques);2022-01-20
FEDER;SAS CONCEPTION METALLERIE DECORATIVE;REACT-EU - Investissements en logiciels et machines-outils;Dans le cadre, d'une part, de la réponse de l'APP Process & Numérisation, et, d'autre part, dans le cadre de REACT-EU, réponse de l'Union à la pandémie de COVID 19, l’entreprise souhaite acquérir une table plasma haute définition, une presse plieuse associée et les matériels de rangement et de levage pour les tôles.;2021-12-04;2022-12-30;2021-09-09;467989.0;22.0;CREVIN;France;001-Investissement productif générique dans les petites et moyennes entreprises («PME»);2022-01-20
FEDER;ENSTA BRETAGNE;SMD-MAR - ENSTAB - 2017;Dans le cadre de SMD-MAR, l'ENSTAB poursuit sa participation pour l'année 2017.;2017-01-07;2018-12-31;2018-08-11;180000.0;45.56;BREST;France;058-Infrastructures de recherche et d'innovation (publiques);2022-01-20
FEDER;AQUATONALE SA;REACT-EU - Nouvel ERP et développement de sites de e-commerce pour l'entreprise Aquatonale;Dans le cadre de la réponse à l'AAP Process & Numérisation d'une part et de REACT-EU, réponse de l'Union à la pandémie de COVID 19, d'autre part, l’entreprise souhaite s'équiper d'un nouvel ERP et développer ses sites internet.;2021-04-29;2022-12-31;2021-07-10;200000.0;44.0;ALLAIRE;France;001-Investissement productif générique dans les petites et moyennes entreprises («PME»);2022-01-20
FEDER;Ecole nationale supérieure Mines-Télécom Atlantique Bretagne-Pays de la Loire;SOPHIE Photonique - RESTO - 2016;Dans la cadre de SOPHIE Photonique, le sous-projet RESTO s'inscrit dans l'axe télécommunication et réseau optique qui regroupe l'ensemble des actions de Télécom Bretagne au sein de SOPHIE-Photonique.;2016-01-01;2017-07-31;2017-11-05;137000.0;36.5;PLOUZANE;France;058-Infrastructures de recherche et d'innovation (publiques);2022-01-20
FSE;Conseil Régional de Bretagne;Programme Régional Supérieur – DCE - CCAP avril 2013;Le FSE du programme opérationnel régional accompagne la formation qualifiante en faveur des demandeurs d'emploi sur le territoire, notamment ceux ayant des caractéristiques plus sensibles et en lien avec les filières socles et les filières émergentes de l’économie régionale. L'opération n°2 regroupe les actions mises en œuvre par des organismes de formation sélectionnés dans le cadre du Programme Régional Supérieur (PRS) après appel d’offres (Cahier des charges administratives particulières d’avril 2013). L'opération concerne 2 lots, à raison d'un prévisionnel de 26 demandeurs d'emploi.;2014-01-06;2016-08-31;2014-11-03;177374.0;50.0;Bretagne;France;117-Amélioration de l'égalité d'accès à l'apprentissage tout au long de la vie pour toutes les catégories d'âges dans un cadre formel, non formel ou informel, mise à niveau des savoirs, des aptitud;2020-01-01
FEDER;Ecole nationale supérieure Mines-Télécom Atlantique Bretagne-Pays de la Loire;SOPHIE Photonique - RESTO - 2018;RESTO (sous-projet de SOPHIE Photonique) porte sur l’étude des réseaux fixes et sans fil, énergétiquement sobres et exploitant la transparence optique afin de développer les capacités de réseaux d’accès et de traitement du signal optique.;2018-01-07;2019-06-30;2019-03-14;50000.0;50.0;PLOUZANE;France;058-Infrastructures de recherche et d'innovation (publiques);2022-01-20
FEDER;UNIVERSITE DE RENNES I;SOPHIE Photonique - UR1 - Phase 3;Dans le cadre du projet SOPHIE Photonique, l'Université de Rennes 1 poursuit sa participation pour lever des verrous technologiques dans le domaine de l'optique.;2018-01-11;2020-05-31;2019-06-13;282000.0;21.1;RENNES;France;060-Activités de recherche et d'innovation dans les centres de recherche publics et les centres de compétence, y compris la mise en réseau;2022-01-20
FEDER;UNIVERSITE DE RENNES I;SOPHIE Stic & Ondes - CAMILL;La première phase du projet SOPHIE Stic&Ondes - CAMILL s’inscrit dans un programme de recherche sur les ondes dans la perspective du développement d’un type d’antennes relais. Conditionnant la suite du projet CAMILL, cette phase consiste à acquérir un système de mesures en hyperfréquences pour le développement de nouvelles antennes relais.;2015-01-09;2016-07-31;2015-10-11;600000.0;40.0;RENNES;France;058-Infrastructures de recherche et d'innovation (publiques);2022-01-20
FEDER;UNIVERSITE DE BRETAGNE OCCIDENTALE;SOPHIE Stic & Ondes - CARENMAT et PROTO-HF;"A travers du sous-projet CAREMMAT, l'objectif est de rassembler les moyens et les compétences en caractérisation électromagnétique des matériaux utilisés comme support de transmission des ondes. Ce plateau permet d'offrir aux chercheurs et aux industriels un ensemble d'outils mutualisés : des systèmes de mesures hyperfréquences ad-hoc, des équipements et des cellules de caractérisation.
En ce qui concerne le sous-projet PROTOHF, il s'agit de mettre à disposition une infrastructure de prototypage de haute qualité pour la fabrication de dispositifs (gamme de fréquences micro-ondes et millimétrique) ouverte à l'ensemble des acteurs de l'opération STIC & Ondes.";2016-01-05;2017-08-31;2016-10-14;250000.0;47.6;BREST;France;060-Activités de recherche et d'innovation dans les centres de recherche publics et les centres de compétence, y compris la mise en réseau;2022-01-20
FEDER;UNIVERSITE DE BRETAGNE OCCIDENTALE;SOPHIE Stic & Ondes - UBO - 2017;Dans le cadre du projet SOPHIE Stic&Ondes, l'Université de Bretagne Occidentale poursuit sa participation pour l'année 2017.;2017-01-01;2018-09-30;2017-12-14;200000.0;40.5;BREST;France;058-Infrastructures de recherche et d'innovation (publiques);2022-01-20
FEDER;UNIVERSITE DE RENNES I;SOPHIE Stic & Ondes - UR1 - Phase 4;Cette phase du projet Stic & Onde vise à acquérir les équipements pour l'étude d'objets en environnement contrôlé et de réaliser des prototypes. Ces équipements participeront à atteindre les objectifs de chacun des sous-projets CAMILL, CACENDRA et DIADEM.;2018-01-11;2021-11-30;2019-06-13;970000.0;32.99;RENNES;France;058-Infrastructures de recherche et d'innovation (publiques);2022-01-20
FEDER;UNIVERSITE DE RENNES I;Système NIRS-EEG;L'équipement EEG-NIRS permet de compléter les protocoles d'imagerie cérébrale de l'équipe de recherche.;2019-01-10;2020-03-31;2020-09-07;105000.0;40.0;RENNES;France;058-Infrastructures de recherche et d'innovation (publiques);2022-01-20
FEDER;UNIVERSITE DE RENNES I;TREMACO;Le sous-projet TREMACO consiste pour l'IRISA à finaliser l'acquisition des équipements du nouveau plateau technique commun. Il permettra la mise en commun de compétences en traitement du signal et en communication optique.;2019-01-10;2022-03-31;2020-09-07;93000.0;64.52;LANNION;France;058-Infrastructures de recherche et d'innovation (publiques);2022-01-20
FEDER;UNIVERSITE DE RENNES I;VERRE - Phase 1;La première phase du projet VERRE est l’acquisition et la mise en place d'un ensemble d'équipements qui outilleront des plateaux techniques de synthèse du verre et de caractérisation technique du verre.;2015-01-09;2017-06-30;2015-08-12;600000.0;12.5;RENNES;France;058-Infrastructures de recherche et d'innovation (publiques);2022-01-20
FEDER;UNIVERSITE DE RENNES I;VERRE - Phase 2;La seconde phase du projet VERRE consiste en l’utilisation des plateaux techniques (synthèse du verre, caractérisation technique du verre) par les équipes de recherche du projet VERRE.;2016-01-10;2018-04-30;2017-07-02;397000.0;39.8;RENNES;France;058-Infrastructures de recherche et d'innovation (publiques);2022-01-20
FEDER;UNIVERSITE DE RENNES I;VERRE - Phase 3;La troisième phase du projet VERRE consiste à poursuivre l'équipement des plateaux techniques (synthèse du verre, caractérisation technique du verre) par les équipes de recherche du projet VERRE.;2017-01-05;2021-03-31;2017-06-07;985000.0;44.16;RENNES;France;058-Infrastructures de recherche et d'innovation (publiques);2022-01-20
FEDER;UNIVERSITE DE RENNES I;VERRE - Phase 4;La phase 4 (année 2018) du projet VERRE poursuit la mise en place des plateaux techniques utilisés pour l'étude du verre dans les trois grands axes de recherche : la photonique, la santé/environnement et l'énergie.;2018-01-11;2021-02-28;2019-06-13;647000.0;44.2;RENNES;France;060-Activités de recherche et d'innovation dans les centres de recherche publics et les centres de compétence, y compris la mise en réseau;2022-01-20
FEDER;Ecole nationale supérieure Mines-Télécom Atlantique Bretagne-Pays de la Loire;VIGISAT 2 - 2016;Dans le cadre du projet VIGISAT 2, l’opération consiste à mettre en place un pôle de ressources et de traitement pour la constitution d'un observatoire spatial régional portant sur des applications terrestres et maritimes.;2016-01-01;2016-12-31;2017-06-04;781000.0;33.16;PLOUZANE;France;058-Infrastructures de recherche et d'innovation (publiques);2022-01-20
FEDER;Ecole nationale supérieure Mines-Télécom Atlantique Bretagne-Pays de la Loire;VIGISAT 2 - 2017;Le projet VIGISAT 2 vise à développer un pôle de ressources et de traitement d'images radar haute résolution pour la constitution d'un observatoire spatial régional portant sur différents thèmes d'application sur les surfaces terrestres et maritimes.;2017-01-01;2018-03-31;2018-08-02;722000.0;28.12;PLOUZANE;France;058-Infrastructures de recherche et d'innovation (publiques);2022-01-20
FEDER;ECOLE NATIONALE D INGENIEURS DE BREST;VITAAL - ENIB - 2017-2;Dans le cadre du projet VITAAL, l'ENIB poursuit sa participation pour l'année 2017.;2017-01-04;2018-10-31;2016-09-11;172000.0;38.95;PLOUZANE;France;058-Infrastructures de recherche et d'innovation (publiques);2022-01-20
FEDER;Ecole nationale supérieure Mines-Télécom Atlantique Bretagne-Pays de la Loire;VITAAL - IMT Atlantique - 2015;Le projet VITAAL (Vaincre l'isolement par les TIC) a pour objectif principal de lutter contre l'isolement grâce à l'exploitation des nouvelles technologies et services du numérique (santé et bien être notamment).;2015-11-05;2015-12-31;2015-08-12;70000.0;28.57;BREST;France;058-Infrastructures de recherche et d'innovation (publiques);2022-01-20
FEDER;Ecole nationale supérieure Mines-Télécom Atlantique Bretagne-Pays de la Loire;VITAAL - IMT Atlantique - 2018;Dans le cadre du projet VITAAL, IMT Atlantique poursuit sa participation pour l'année 2018.;2017-01-07;2018-06-30;2018-12-04;110000.0;50.0;PLOUZANE;France;058-Infrastructures de recherche et d'innovation (publiques);2022-01-20
FEDER;UNIVERSITE DE BRETAGNE OCCIDENTALE;VITAAL - UBO;Le projet VITAAL a pour objectif principal de lutter contre l'isolement grâce à l'exploitation des nouvelles technologies et services du numérique. Des laboratoires de l’UBO étudient et développent des outils permettant de lutter contre la perte de mobilité, la baisse de la vision et de stimuler intellectuellement les personnes âgées ou handicapées.;2016-01-01;2016-09-30;2016-07-06;155000.0;32.26;BREST;France;060-Activités de recherche et d'innovation dans les centres de recherche publics et les centres de compétence, y compris la mise en réseau;2022-01-20
FEDER;UNIVERSITE DE BRETAGNE SUD;VITAAL - UBS - 2016;Le projet VITAAL a pour objectif principal de lutter contre l'isolement grâce à l'exploitation des nouvelles technologies et services du numérique. Des laboratoires de l’UBS mettent développement des outils numériques destinés à améliorer le confort, à virtualiser une relation qui n'est pas possible physiquement, à permettre les soins ou l'intervention de personnels de santé à distance.;2016-01-07;2017-07-31;2017-06-04;297000.0;33.67;LORIENT;France;058-Infrastructures de recherche et d'innovation (publiques);2022-01-20
FEDER;UNIVERSITE DE BRETAGNE SUD;VITAAL - UBS - 2018;Dans le cadre du projet VITAAL, l'UBS poursuit sa participation pour les années 2018 et 2019.;2018-01-06;2019-09-30;2019-03-14;100000.0;20.0;LORIENT;France;058-Infrastructures de recherche et d'innovation (publiques);2022-01-20
FEDER;UNIVERSITE DE RENNES I;CAP EUROPE;CAP Europe a pour objectif de renforcer le positionnement de l'Université Bretagne Loire et de ses membres dans l'Espace européen de l'enseignement supérieur et dans l'Espace européen de la recherche.;2017-01-01;2017-10-31;2017-12-10;365550.0;50.0;RENNES;France;060-Activités de recherche et d'innovation dans les centres de recherche publics et les centres de compétence, y compris la mise en réseau;2022-01-20
FEDER;CENTRALE SUPELEC;Chaire Cybersécurité à Centrale Supélec;L’objectif du projet est de financer une chaire internationale dans le domaine de la cybersécurité sur la menace et l’analyse des vulnérabilités des systèmes militaires et civils. Elle permettra de réunir des chercheurs spécialistes confrontés à la réalité des problèmes de sécurité.;2017-01-11;2018-10-31;2018-09-13;99000.0;50.0;RENNES;France;060-Activités de recherche et d'innovation dans les centres de recherche publics et les centres de compétence, y compris la mise en réseau;2022-01-20
FEDER;CENTRALE SUPELEC;Chaire Cybersécurité au LHS;Le projet consiste à financer une chaire internationale dans le domaine de la cybersécurité, et plus précisément sur la vulnérabilité des systèmes militaires et civils. Elle permet de réunir des chercheurs spécialistes confrontés à la réalité des problèmes de sécurité.;2016-01-09;2017-10-31;2017-09-14;99000.0;50.0;RENNES;France;060-Activités de recherche et d'innovation dans les centres de recherche publics et les centres de compétence, y compris la mise en réseau;2022-01-20
FEDER;Ecole nationale supérieure Mines-Télécom Atlantique Bretagne-Pays de la Loire;Chaire Industrie du futur - 2021;Mise en place d'une chaire Franco-Australienne sur la thématique de l'Industrie du Futur pour le développement de la coopération académique et industrielle. Les partenaires sont University of South Australia, Adelaide et IMT Atlantique.;2021-01-05;2023-06-30;2021-01-07;450580.0;51.91;PLOUZANE;France;060-Activités de recherche et d'innovation dans les centres de recherche publics et les centres de compétence, y compris la mise en réseau;2022-01-20
FEDER;UNIVERSITE DE RENNES I;Plateforme projets européens (2PE) - 2018;La Plateforme projets européens (2PE) est un dispositif mutualisé qui soutient et valorise la participation des acteurs académiques bretons aux programmes européens dédiés à la recherche et l'innovation, Horizon 2020 et à l'éducation et la formation tout au long de la vie, Erasmus +.;2017-01-11;2018-12-31;2018-11-12;655500.0;50.0;"BREST
RENNES";France;060-Activités de recherche et d'innovation dans les centres de recherche publics et les centres de compétence, y compris la mise en réseau;2022-01-20
FEDER;UNIVERSITE DE RENNES I;Plateforme projets européens (2PE) - 2019-2020;La Plateforme projets européens (2PE) Bretagne est un dispositif mutualisé qui soutient et valorise la participation de la communauté académique bretonne aux programmes cadres européens dédiés à la recherche et l'innovation et à l'éducation et la formation tout au long de la vie.;2019-01-01;2020-12-31;2019-12-09;1313484.0;25.0;RENNES;France;060-Activités de recherche et d'innovation dans les centres de recherche publics et les centres de compétence, y compris la mise en réseau;2022-01-20
FEDER;BREST METROPOLE;Sea Tech Week - 2016;"L'opération soutien l'organisation par Brest métropole organise (10-14 octobre 2016) de la 10ème édition de la Sea Tech Week (Semaine internationale des sciences et technologies de la mer) sur le thème ""Mer et numérique"".";2015-01-12;2016-12-31;2016-10-14;219500.0;22.78;BREST;France;060-Activités de recherche et d'innovation dans les centres de recherche publics et les centres de compétence, y compris la mise en réseau;2022-01-20
FEDER;UNIVERSITE DE BRETAGNE SUD;ViFoMeTi;Le projet ViFoMeTi a pour objectif la conception virtuelle de procédés de mise en forme à chaud de pièces en alliages de titanes.;2020-01-09;2022-09-30;2020-09-07;140400.0;50.0;LORIENT;France;060-Activités de recherche et d'innovation dans les centres de recherche publics et les centres de compétence, y compris la mise en réseau;2022-01-20
FEDER;ASSOCIATION GROUPE D ETUDE DES INVERTEBRES ARMORICAINS;Banque de données sur les invertébrés continentaux de Bretagne;"Ce projet collaboratif vise la création d’une banque de données collectées depuis 1996 sur les invertébrés. Il est porté par le GRETIA en partenariat avec les associations Vivarmor et Bretagne Vivante et le GIP Bretagne Environnement.
Le projet se décline sur 5 années avec pour chacune d'elles une description précise des objectifs poursuivis : montage du projet ; recensement, la collecte et le catalogage des références disponibles sur les invertébrés continentaux en Bretagne ; bancarisation des données et leur valorisation en continue.";2016-01-01;2020-12-31;2016-12-22;438241.0;11.89;REGION BRETAGNE;France;060-Activités de recherche et d'innovation dans les centres de recherche publics et les centres de compétence, y compris la mise en réseau;2022-01-20
FEDER;URCPIE BRETAGNE;CHEMINS;CHEMINS est un projet consacré à la trame verte et bleue (TVB). Il vise à expérimenter la mise en œuvre du SRCE aux échelles infra-régionales dans les territoires ruraux, littoraux et péri-urbains en s'appuyant sur le plan d'actions stratégique de ce schéma. Les actions envisagées dans ce projet vont permettre de co-construire des méthodes et de tester leurs opérationnalités autour des continuités écologiques et de la TVB. Le projet ambitionne de rapprocher différents publics autour de la TVB (fédération d'associations d'éducation à l'environnement, instituts de recherche).;2016-01-01;2020-12-31;2016-12-22;687032.0;50.0;REGION BRETAGNE;France;060-Activités de recherche et d'innovation dans les centres de recherche publics et les centres de compétence, y compris la mise en réseau;2022-01-20
FEDER;OBSERVATOIRE DE L ENVIRONNEMENT EN BRETAGNE;Faciliter l'acces à la connaissance et à la compréhension des enjeux environnementaux en Bretagne;Ce projet porté par le GIP Bretagne Environnement lui permettra de continuer et d'accroître son action d'accès à la connaissance environnementale et d’en poursuivre la vulgariser pour atteindre des publics experts tout comme le grand public.;2016-01-01;2020-12-31;2016-02-02;1331465.0;16.67;RENNES;France;060-Activités de recherche et d'innovation dans les centres de recherche publics et les centres de compétence, y compris la mise en réseau;2022-01-20
FEDER;GROUPE MAMMALOGIQUE BRETON;Observatoire des Mammifères de Bretagne - Phase 2;Le projet d'observatoire permettra l'organisation, la structuration et la circulation des données concernant les mammifères en Bretagne, en lien avec la mise en place d'une plateforme régionale d'échange des données sur la biodiversité.;2021-01-01;2022-06-30;2021-10-06;200607.0;50.0;REGION BRETAGNE;France;061-Activités de recherche et d'innovation dans les centres de recherche privés, y compris la mise en réseau;2022-01-20
FEDER;BRETAGNE VIVANTE SEPNB;Observatoire régional de l'avifaune;La mise en place de l'Observatoire Régional de l'Avifaune vise à améliorer la collecte et l'analyse des données ornithologiques pour accroitre et diffuser informations et connaissances sur les oiseaux de Bretagne.;2018-01-01;2020-12-31;2019-06-13;594425.0;47.1;REGION BRETAGNE;France;061-Activités de recherche et d'innovation dans les centres de recherche privés, y compris la mise en réseau;2022-01-20
FEDER;DEPARTEMENT D ILLE ET VILAINE;Programme d'actions en faveur des paysages;"Les paysages font partie de la compétence départementale des Espaces Naturels Sensibles. Dans ce cadre, l'atlas des paysages du département d'Ille-et-Vilaine a été réalisé en 2014 et inclut pour la première fois au niveau national un volet sociologique. Le projet a été en mené en concertation avec différents partenaires du Département (services de l'Etat, collectivités locales, associations). Suite à la mise en ligne de l'atlas (http://www.paysages-ille-et-vilaine.fr/), le Département a alors émis la volonté de mettre en place un programme d'actions en faveur des paysages d'Ille-et-Vilaine pour :
- Assurer un suivi scientifique de l'évolution et de la dynamique des paysages en Ille-et-Vilaine ;
- Diffuser la connaissance autour des paysages auprès d'un large public. 
Ce programme d'actions comprend d'une part des actions de diffusion de la connaissance auprès du grand public (exposition virtuelle, plateforme d'échanges, exposition itinérante, programme pédagogique et animations grand public) et le développement d'outils d'aide à la décision pour les acteurs socio-économiques d'autre part (formations et ateliers techniques).";2018-01-14;2021-05-12;2018-12-04;165456.0;50.0;ILLE-ET-VILAINE;France;061-Activités de recherche et d'innovation dans les centres de recherche privés, y compris la mise en réseau;2022-01-20
FEDER;BRETAGNE VIVANTE SEPNB;Structuration de l'observatoire régional de l'avifaune;La structuration de l'Observatoire régional de l'avifaune a pour principaux objectifs d'améliorer la connaissance des oiseaux de Bretagne, de suivre leur évolution, d'évaluer les états de conservation, de contribuer à l'élaboration d'indicateurs et ainsi mettre à disposition des données ornithologiques validées.;2021-01-01;2022-06-30;2021-11-16;244066.0;43.02;REGION BRETAGNE;France;061-Activités de recherche et d'innovation dans les centres de recherche privés, y compris la mise en réseau;2022-01-20
FEDER;CHAMBRE AGRICULTURE DEPT COTES D ARMOR;Évolution de la station porcine de Crécom;La station porcine de Crécom est rénovée pour améliorer ses travaux de recherche sur l’élevage porcin, notamment en matière de logement animal.;2019-01-09;2022-12-31;2020-12-03;243369.0;40.0;SAINT-NICOLAS-DU-PELEM;France;058-Infrastructures de recherche et d'innovation (publiques);2022-01-20
FEDER;TECHNOPOLE BREST IROISE;French Tech Brest + 2019;Le projet porté par le Technopôle Brest Iroise vise à coordonner le lancement de la saison 2 du programme French Tech Brest + sur la période 2019-2020.;2019-01-01;2020-12-31;2019-04-07;301571.0;33.33;PLOUZANE;France;059-Infrastructures de recherche et d'innovation (privées, y compris les parcs scientifiques);2022-01-20
FEDER;INSTITUT MAUPERTUIS;FSW 2 - Institut Maupertuis;Le projet FSW 2 a pour objet de lever certains freins technologiques pour diffuser le procédé auprès du plus grand nombre d'entreprises. L'institut Maupertuis est partenaire de ce projet de recherche collaborative coordonné par l'ENS Rennes.;2016-01-10;2019-06-30;2016-09-13;164800.0;32.04;BRUZ;France;061-Activités de recherche et d'innovation dans les centres de recherche privés, y compris la mise en réseau;2022-01-20
FEDER;INRIA;INRIA Tech;Le projet INRIA Tech vise à faciliter le transfert de technologies issues de la recherche INRIA en offrant la possibilité de tester et valider rapidement l'adéquation de ces technologies innovantes à leurs propres besoins.;2017-01-10;2020-12-31;2017-09-14;496800.0;25.0;REGION BRETAGNE;France;062-Transfert de technologies et coopération entre universités et entreprises, principalement au profit des PME;2022-01-20
FEDER;SATT OUEST VALORISATION SAS;"Maturation de projets d'innovation 
2014-2016";La société d'accélération du transfert de technologies (SATT) Ouest Valorisation détecte les projets innovants, évalue ces dossiers, propose des stratégies de protection intellectuelle et des stratégies de transfert de technologie. Ce projet porté par la SATT Ouest Valorisation vise à soutenir la phase de maturation (entre les premiers résultats et le transfert au monde socio-économique) de projets issus de plusieurs acteurs de la recherche publique en Bretagne pour la période 2014-2016.;2014-01-03;2016-03-31;2015-07-07;1200000.0;12.5;REGION BRETAGNE;France;062-Transfert de technologies et coopération entre universités et entreprises, principalement au profit des PME;2022-01-20
FEDER;SATT OUEST VALORISATION SAS;Maturation de projets d'innovation 2017-2019;Dans le cadre de ses missions de valorisation de la recherche publique et de transfert de technologies, le programme de maturation vise à financer 8 à 12 projets de maturation issus de la recherche publique bretonne pour un transfert vers le monde industriel.;2017-04-10;2020-03-31;2018-08-02;1200000.0;8.33;REGION BRETAGNE;France;062-Transfert de technologies et coopération entre universités et entreprises, principalement au profit des PME;2022-01-20
FEDER;UNIVERSITE DE RENNES I;PEPITE - 2014-2017;Le projet PEPITE a pour objet d'informer et de sensibiliser les étudiants à l'entrepreneuriat, et de les accompagner dans la création d’une activité professionnelle.;2014-01-10;2017-12-31;2015-04-14;597500.0;5.36;REGION BRETAGNE;France;062-Transfert de technologies et coopération entre universités et entreprises, principalement au profit des PME;2022-01-20
FEDER;PHOTONICS BRETAGNE;Photonic Parks;Le projet Photonic Parks consiste à acquérir des équipements de fibrage pour la fabrication d’un nouveau type de fibres optiques qui pourront être utilisées dans les domaines de la santé, de l’agroalimentaire, de l’environnement, de la défense, de l’énergie et de la mer.;2015-01-10;2017-12-31;2015-11-17;810800.0;7.25;LANNION;France;059-Infrastructures de recherche et d'innovation (privées, y compris les parcs scientifiques);2022-01-20
FEDER;PHOTONICS BRETAGNE;PHOTONICS - Investissements 2019-2020;Le projet vise l’acquisition d’équipements de R&D visant le développement de nouvelles générations de fibres innovantes, avec des applications dans le domaine de la biophotonique.;2019-01-09;2022-02-28;2019-12-12;787000.0;27.41;LANNION;France;061-Activités de recherche et d'innovation dans les centres de recherche privés, y compris la mise en réseau;2022-01-20
FEDER;COMMISSARIAT A L' ENERGIE ATOMIQUE ET AUX ENERGIES ALTERNATIVES;Plateforme Technologique pour la Qualité des Productions Agroalimentaires;Il s'agit de mettre à disposition une plate-forme applicative pour adapter, développer et intégrer des solutions capteurs et outils d'analyse dans le domaine agroalimentaire.;2020-01-09;2022-06-30;2020-12-11;838633.0;50.0;QUIMPER;France;062-Transfert de technologies et coopération entre universités et entreprises, principalement au profit des PME;2022-01-20
FEDER;PHOTONICS BRETAGNE;SCOFAB;Le projet SCOFAB vise à mettre au point des systèmes de capteurs à base de fibres optiques spécifiques pour deux marchés : l’agriculture (pour l'étude des couverts végétaux) et la santé (pour l’amélioration des performances de la chirurgie).;2018-01-07;2019-12-31;2018-05-07;200000.0;20.0;LANNION;France;061-Activités de recherche et d'innovation dans les centres de recherche privés, y compris la mise en réseau;2022-01-20
FEDER;COMMISSARIAT A L' ENERGIE ATOMIQUE ET AUX ENERGIES ALTERNATIVES;Showroom 2020-2022 du CEA Tech Bretagne;Le projet consiste à compléter l’offre existante du showroom du CEA Tech Bretagne à Quimper pour appuyer les nouvelles technologies pour l'écosystème agri-agro breton.;2020-01-11;2022-06-30;2020-10-12;345633.0;37.5;QUIMPER;France;062-Transfert de technologies et coopération entre universités et entreprises, principalement au profit des PME;2022-01-20
FEDER;COMMISSARIAT A L' ENERGIE ATOMIQUE ET AUX ENERGIES ALTERNATIVES;Showroom CEA Tech - 2017-2020;Le projet porte sur la mise en place d'un showroom sur le site de Quimper. Cela constituera un accès incontournable aux technologies protégées par des brevets et développées par les laboratoires du CEA (LETI, LIST et LITEN) ainsi qu'aux moyens et plates-formes technologiques dont il dispose.;2017-01-07;2020-01-07;2018-08-11;500269.0;18.75;QUIMPER;France;062-Transfert de technologies et coopération entre universités et entreprises, principalement au profit des PME;2022-01-20
FEDER;PHOTONICS BRETAGNE;SOFA;L'objectif de SOFA (Solutions Optiques Fibrées pour l'Agronomie) est d’acquérir et de développer de nouvelles compétences dans les technologies optiques (fibres optiques et capteurs notamment) appliquées à l’agronomie.;2021-01-05;2023-04-30;2021-06-05;300000.0;40.0;LANNION;France;061-Activités de recherche et d'innovation dans les centres de recherche privés, y compris la mise en réseau;2022-01-20
FEDER;PREMIER TECH AQUA;PTWE Résilience;Dans le contexte de pandémie, le projet vise à renforcer les capacités d'innovation de PTWE avec un couple produit-procédé amélioré, fondé sur l'évolution technologique et industrielle au service de l'environnement et de la santé humaine.;2020-06-25;2023-06-24;2020-10-12;2000000.0;25.0;CHATEAUNEUF-D'ILLE-ET-VILAINE;France;064-Processus de recherche et d'innovation dans les PME (y compris systèmes de bons, processus, conception, service et innovation sociale);2022-01-20
FEDER;MANITOU BF;Ultra Light Manitou;Le projet Ultra Light Manitou (ULM), porté par l’entreprise Manitou sur son site de Laillé, consiste à développer, industrialiser et fabriquer un chariot télescopique compact et transportable sur remorque légère afin de s'ouvrir à de nouveaux marchés.;2020-10-20;2022-06-20;2021-04-02;1903102.0;25.0;LAILLE;France;057-Investissements dans les infrastructures, capacités et équipements des grandes entreprises directement liés aux activités de recherche et d'innovation;2022-01-20
FEDER;SOLINA FRANCE;VEGLINE;SOLINA France finalise la mise en place de sa nouvelle ligne de production 100% végétarienne pour répondre à la demende croissante des consommateurs.;2020-11-16;2023-06-30;2021-10-06;1005703.0;25.0;BREAL-SOUS-MONTFORT;France;057-Investissements dans les infrastructures, capacités et équipements des grandes entreprises directement liés aux activités de recherche et d'innovation;2022-01-20
FEDER;THERENVA;Armorique - Therenva;Therenva est partenaire du projet de recherche collaborative Armorique coordonné par l'Université Rennes 1.;2019-08-04;2022-07-04;2018-11-12;526334.0;22.5;RENNES;France;062-Transfert de technologies et coopération entre universités et entreprises, principalement au profit des PME;2022-01-20
FEDER;UNIVERSITE DE RENNES I;Armorique - UR1;L'ambition du projet Armorique est de développer et commercialiser un logiciel d'aide à la décision clinique pour la planification personnalisée et l'assistance à la radiothérapie métabolique interne, utilisée pour le traitement du carcinome hépatocellulaire. Rennes 1 est chef de file de ce projet de recherche collaborative réalisé en partenariat avec Therenva.;2019-08-04;2022-07-04;2018-11-12;137223.0;50.0;RENNES;France;062-Transfert de technologies et coopération entre universités et entreprises, principalement au profit des PME;2022-01-20
FEDER;UNIVERSITE DE RENNES I;CREDOC - UR1;L'Université Rennes 1 est partenaire avec SEMSOFT du projet de recherche collaborative CREDOC coordonné par CLS.;2018-03-09;2021-02-09;2018-11-10;99665.0;25.08;LANNION;France;062-Transfert de technologies et coopération entre universités et entreprises, principalement au profit des PME;2022-01-20
FEDER;OXXIUS SA;DEEP BLUE - OXXIUS;Oxxius est partenaire avec l'Ifremer du projet de recherche collaborative DEEP BLUE coordonné par l'Université Rennes 1.;2016-01-11;2019-04-30;2016-12-22;315439.0;11.25;LANNION;France;062-Transfert de technologies et coopération entre universités et entreprises, principalement au profit des PME;2022-01-20
FEDER;SAMSON AGRO;EPSOLYS - Etbs Michel Pichon;Le projet EPSOLYS vise à développer une nouvelle génération de remorques d'épandage permettant d'apporter une quantité d'azote adaptée aux besoins. Les établissements Michel Pichon sont chefs de file de ce projet de recherche collaborative, réalisé en partenariat avec Photon Lines et l'INRA.;2017-01-12;2021-07-31;2017-12-14;436975.0;22.5;LANDIVISIAU;France;062-Transfert de technologies et coopération entre universités et entreprises, principalement au profit des PME;2022-01-20
FEDER;INRAE;EPSOLYS - INRA;L'INRA est partenaire avec Photon Lines du projet de recherche collaborative EPSOLYS coordonné par les établissements Michel Pichon.;2017-01-12;2021-07-31;2017-12-14;214676.0;50.0;RHEU (LE);France;062-Transfert de technologies et coopération entre universités et entreprises, principalement au profit des PME;2022-01-20
